Workbook

Sheet Key Points About Model
B2: Points:
B4: 1. Demonstrates as usual how to integrate history in model
B5: 2. Focus on Free Cash Flow and EV/EBITDA
B6: 3. Use together with Files that Download Data on Multiples and Cost of Capital
B7: 4. Includes Alternative Methods for Terminal Value
B8: 5. Includes Very Detailed Analysis of Stabalised Cash Flow
B9: 6. Graphs with the UNION Function
B11: Issues Raised with Calculation of ROIC
B12: 1. Should the re-structuring charges be included as EBITDA
B13: 2. Should adjustments be made to invested capital for re-structuring charges

Sheet Summary
K3: Share Price | L3: ='Assumptions and Free Cash Flow'!W75 -> 612.5
K4: P/E Ratio | L4: ='Assumptions and Free Cash Flow'!W78 -> 20.50430108
K5: EV/EBITDA | L5: ='Assumptions and Free Cash Flow'!W84 -> 10.72903042
K6: P/B Ratio | L6: ='Assumptions and Free Cash Flow'!W87 -> 2.148545609
L8: DCF with growth method | M8: DCF with value driver formula | N8: DCF with multiple terminal value
K9: Enterprise Value | L9: =Valuation!E56 -> 100640.0048 | M9: =Valuation!E57 -> 110522.5748 | N9: =Valuation!E58 -> 83874.2853
K10: Less: Bridge Equity to EV | L10: =-Valuation!$D$104 -> -39364 | M10: =-Valuation!$D$104 -> -39364 | N10: =-Valuation!$D$104 -> -39364
K11: Equity Value | L11: =SUM(L9:L10) -> 61276.00482 | M11: =SUM(M9:M10) -> 71158.57481 | N11: 44510.2853
K12: Shares Outstanding | L12: ='Historic Data from PDF'!$V$188 -> 152542 | M12: ='Historic Data from PDF'!$V$188 -> 152542 | N12: ='Historic Data from PDF'!$V$188 -> 152542
K13: Equity Value per Share | L13: =L11/L12*1000 -> 401.6992358 | M13: =M11/M12*1000 -> 466.4851307 | N13: 291.7903613
K14: Implied EV/EBITDA | L14: =Valuation!E62 -> 8.910072339 | M14: =Valuation!E72 -> 7.425734435 | N14: =Valuation!E68 -> 9.785016787
K15: Implied Terminal EV/EBITDA | L15: =Valuation!E65 -> 9.936495251 | M15: =Valuation!E73 -> 7.880846415 | N15: =Valuation!E69 -> 11.14819949
L17: General Valuation Parameters
K18: WACC | L18: =Valuation!D9 -> 0.057
K19: Terminal growth rate | L19: =Valuation!D10 -> 0.013
K20: Terminal EV/EBITDA | L20: =Valuation!D13 -> 10.5
L22: Normalised Terminal Cash Flow Parameters
K23: Long-term ROIC/WACC | L23: =Valuation!D12 -> 0.057
K24: Time to Reach Long-term ROIC | L24: =Valuation!D16 -> 15
K25: Asset Life | L25: =Valuation!D17 -> 10
K26: NWC/EBITDA | L26: =Valuation!D19 -> -0.973
K27: Deferred Tax/Cap Exp | L27: =Valuation!D20 -> 10

Sheet Valuation
A1: Free Cash Flow and Valuation
B2: Period Switches
C3: Year | H3: 2000 | I3: 2001 | J3: 2002 | K3: 2003 | L3: 2004 | M3: 2005 | N3: 2006 | O3: 2007 | P3: 2008 | Q3: 2009 | R3: 2010 | S3: 2011 | T3: 2012 | U3: 2013 | V3: 2014 | W3: 2015 | X3: 2016 | Y3: 2017 | Z3: 2018 | AA3: 2019 | AB3: 2020 | AC3: 2021 | AD3: 2022 | AE3: 2023 | AF3: 2024 | AG3: 2025
C4: Valuation Explicit Cash Flow Switch | D4: 2016 | I4: =AND(Valuation!I3>=$D$4,Valuation!I3<=$D$5) -> FALSE | J4: =AND(Valuation!J3>=$D$4,Valuation!J3<=$D$5) -> FALSE | K4: =AND(Valuation!K3>=$D$4,Valuation!K3<=$D$5) -> FALSE | L4: =AND(Valuation!L3>=$D$4,Valuation!L3<=$D$5) -> FALSE | M4: =AND(Valuation!M3>=$D$4,Valuation!M3<=$D$5) -> FALSE | N4: =AND(Valuation!N3>=$D$4,Valuation!N3<=$D$5) -> FALSE | O4: =AND(Valuation!O3>=$D$4,Valuation!O3<=$D$5) -> FALSE | P4: =AND(Valuation!P3>=$D$4,Valuation!P3<=$D$5) -> FALSE | Q4: =AND(Valuation!Q3>=$D$4,Valuation!Q3<=$D$5) -> FALSE | R4: =AND(Valuation!R3>=$D$4,Valuation!R3<=$D$5) -> FALSE | S4: =AND(Valuation!S3>=$D$4,Valuation!S3<=$D$5) -> FALSE | T4: =AND(Valuation!T3>=$D$4,Valuation!T3<=$D$5) -> FALSE | U4: =AND(Valuation!U3>=$D$4,Valuation!U3<=$D$5) -> FALSE | V4: =AND(Valuation!V3>=$D$4,Valuation!V3<=$D$5) -> FALSE | W4: =AND(Valuation!W3>=$D$4,Valuation!W3<=$D$5) -> FALSE | X4: =AND(Valuation!X3>=$D$4,Valuation!X3<=$D$5) -> TRUE | Y4: =AND(Valuation!Y3>=$D$4,Valuation!Y3<=$D$5) -> TRUE | Z4: =AND(Valuation!Z3>=$D$4,Valuation!Z3<=$D$5) -> TRUE | AA4: =AND(Valuation!AA3>=$D$4,Valuation!AA3<=$D$5) -> TRUE | AB4: =AND(Valuation!AB3>=$D$4,Valuation!AB3<=$D$5) -> TRUE | AC4: =AND(Valuation!AC3>=$D$4,Valuation!AC3<=$D$5) -> TRUE | AD4: =AND(Valuation!AD3>=$D$4,Valuation!AD3<=$D$5) -> FALSE | AE4: =AND(Valuation!AE3>=$D$4,Valuation!AE3<=$D$5) -> FALSE | AF4: =AND(Valuation!AF3>=$D$4,Valuation!AF3<=$D$5) -> FALSE | AG4: =AND(Valuation!AG3>=$D$4,Valuation!AG3<=$D$5) -> FALSE
C5: Terminal year switch | D5: 2021 | I5: =Valuation!I3=$D$5 -> FALSE | J5: =Valuation!J3=$D$5 -> FALSE | K5: =Valuation!K3=$D$5 -> FALSE | L5: =Valuation!L3=$D$5 -> FALSE | M5: =Valuation!M3=$D$5 -> FALSE | N5: =Valuation!N3=$D$5 -> FALSE | O5: =Valuation!O3=$D$5 -> FALSE | P5: =Valuation!P3=$D$5 -> FALSE | Q5: =Valuation!Q3=$D$5 -> FALSE | R5: =Valuation!R3=$D$5 -> FALSE | S5: =Valuation!S3=$D$5 -> FALSE | T5: =Valuation!T3=$D$5 -> FALSE | U5: =Valuation!U3=$D$5 -> FALSE | V5: =Valuation!V3=$D$5 -> FALSE | W5: =Valuation!W3=$D$5 -> FALSE | X5: =Valuation!X3=$D$5 -> FALSE | Y5: =Valuation!Y3=$D$5 -> FALSE | Z5: =Valuation!Z3=$D$5 -> FALSE | AA5: =Valuation!AA3=$D$5 -> FALSE | AB5: =Valuation!AB3=$D$5 -> FALSE | AC5: =Valuation!AC3=$D$5 -> TRUE | AD5: =Valuation!AD3=$D$5 -> FALSE | AE5: =Valuation!AE3=$D$5 -> FALSE | AF5: =Valuation!AF3=$D$5 -> FALSE | AG5: =Valuation!AG3=$D$5 -> FALSE
A7: General Valuation Assumptions and Explicit Cash Flow
B8: Basic Valuation Assumptions
C9: WACC | D9: =I9/1000 -> 0.057 | I9: 57
C10: Terminal growth rate | D10: =I10/1000 -> 0.013 | I10: 13
C11: ROIC - WACC | D11: =I11/1000 -> 0 | I11: 0
C12: RONIC | D12: =D9+D11 -> 0.057 | I12: 70
C13: Terminal EV/EBITDA | D13: =I13/10 -> 10.5 | I13: 105
B15: Other Adjustments for Stable Ratios
C16: Years to Stable ROIC | D16: =I16 -> 15 | I16: 15
C17: Plant Life for Stable Depreciation Analysis | D17: =I17 -> 10 | I17: 10
C18: Historic Growth in Cap Exp | D18: =I18/1000 -> 0.011 | I18: 11
C19: NWC/EBITDA | D19: =(I19-1000)/1000 -> -0.973 | I19: 27
C20: Change in Deferred Tax/Capital Expenditure | D20: =I20 -> 10 | I20: 10
B22: Transferred Variables Adjusted with Switches
C23: Tax Rate | I23: =IF(I4,'Assumptions and Free Cash Flow'!I184) -> FALSE | J23: =IF(J4,'Assumptions and Free Cash Flow'!J184) -> FALSE | K23: =IF(K4,'Assumptions and Free Cash Flow'!K184) -> FALSE | L23: =IF(L4,'Assumptions and Free Cash Flow'!L184) -> FALSE | M23: =IF(M4,'Assumptions and Free Cash Flow'!M184) -> FALSE | N23: =IF(N4,'Assumptions and Free Cash Flow'!N184) -> FALSE | O23: =IF(O4,'Assumptions and Free Cash Flow'!O184) -> FALSE | P23: =IF(P4,'Assumptions and Free Cash Flow'!P184) -> FALSE | Q23: =IF(Q4,'Assumptions and Free Cash Flow'!Q184) -> FALSE | R23: =IF(R4,'Assumptions and Free Cash Flow'!R184) -> FALSE | S23: =IF(S4,'Assumptions and Free Cash Flow'!S184) -> FALSE | T23: =IF(T4,'Assumptions and Free Cash Flow'!T184) -> FALSE | U23: =IF(U4,'Assumptions and Free Cash Flow'!U184) -> FALSE | V23: =IF(V4,'Assumptions and Free Cash Flow'!V184) -> FALSE | W23: =IF(W4,'Assumptions and Free Cash Flow'!W184) -> FALSE | X23: =IF(X4,'Assumptions and Free Cash Flow'!X184) -> 0.25 | Y23: =IF(Y4,'Assumptions and Free Cash Flow'!Y184) -> 0.25 | Z23: =IF(Z4,'Assumptions and Free Cash Flow'!Z184) -> 0.25 | AA23: =IF(AA4,'Assumptions and Free Cash Flow'!AA184) -> 0.25 | AB23: =IF(AB4,'Assumptions and Free Cash Flow'!AB184) -> 0.25 | AC23: =IF(AC4,'Assumptions and Free Cash Flow'!AC184) -> 0.25 | AD23: =IF(AD4,'Assumptions and Free Cash Flow'!AD184) -> FALSE | AE23: =IF(AE4,'Assumptions and Free Cash Flow'!AE184) -> FALSE | AF23: =IF(AF4,'Assumptions and Free Cash Flow'!AF184) -> FALSE | AG23: =IF(AG4,'Assumptions and Free Cash Flow'!AG184) -> FALSE
C24: Depreciation Expense | I24: =IF(I4,'Assumptions and Free Cash Flow'!I163) -> FALSE | J24: =IF(J4,'Assumptions and Free Cash Flow'!J163) -> FALSE | K24: =IF(K4,'Assumptions and Free Cash Flow'!K163) -> FALSE | L24: =IF(L4,'Assumptions and Free Cash Flow'!L163) -> FALSE | M24: =IF(M4,'Assumptions and Free Cash Flow'!M163) -> FALSE | N24: =IF(N4,'Assumptions and Free Cash Flow'!N163) -> FALSE | O24: =IF(O4,'Assumptions and Free Cash Flow'!O163) -> FALSE | P24: =IF(P4,'Assumptions and Free Cash Flow'!P163) -> FALSE | Q24: =IF(Q4,'Assumptions and Free Cash Flow'!Q163) -> FALSE | R24: =IF(R4,'Assumptions and Free Cash Flow'!R163) -> FALSE | S24: =IF(S4,'Assumptions and Free Cash Flow'!S163) -> FALSE | T24: =IF(T4,'Assumptions and Free Cash Flow'!T163) -> FALSE | U24: =IF(U4,'Assumptions and Free Cash Flow'!U163) -> FALSE | V24: =IF(V4,'Assumptions and Free Cash Flow'!V163) -> FALSE | W24: =IF(W4,'Assumptions and Free Cash Flow'!W163) -> FALSE | X24: =IF(X4,'Assumptions and Free Cash Flow'!X163) -> 4535.26 | Y24: =IF(Y4,'Assumptions and Free Cash Flow'!Y163) -> 4699.2658 | Z24: =IF(Z4,'Assumptions and Free Cash Flow'!Z163) -> 4835.390614 | AA24: =IF(AA4,'Assumptions and Free Cash Flow'!AA163) -> 4948.37421 | AB24: =IF(AB4,'Assumptions and Free Cash Flow'!AB163) -> 5042.150594 | AC24: =IF(AC4,'Assumptions and Free Cash Flow'!AC163) -> 5119.984993 | AD24: =IF(AD4,'Assumptions and Free Cash Flow'!AD163) -> FALSE | AE24: =IF(AE4,'Assumptions and Free Cash Flow'!AE163) -> FALSE | AF24: =IF(AF4,'Assumptions and Free Cash Flow'!AF163) -> FALSE | AG24: =IF(AG4,'Assumptions and Free Cash Flow'!AG163) -> FALSE
C25: NWC to EBITDA | I25: =IF(I4,'Assumptions and Free Cash Flow'!I152) -> FALSE | J25: =IF(J4,'Assumptions and Free Cash Flow'!J152) -> FALSE | K25: =IF(K4,'Assumptions and Free Cash Flow'!K152) -> FALSE | L25: =IF(L4,'Assumptions and Free Cash Flow'!L152) -> FALSE | M25: =IF(M4,'Assumptions and Free Cash Flow'!M152) -> FALSE | N25: =IF(N4,'Assumptions and Free Cash Flow'!N152) -> FALSE | O25: =IF(O4,'Assumptions and Free Cash Flow'!O152) -> FALSE | P25: =IF(P4,'Assumptions and Free Cash Flow'!P152) -> FALSE | Q25: =IF(Q4,'Assumptions and Free Cash Flow'!Q152) -> FALSE | R25: =IF(R4,'Assumptions and Free Cash Flow'!R152) -> FALSE | S25: =IF(S4,'Assumptions and Free Cash Flow'!S152) -> FALSE | T25: =IF(T4,'Assumptions and Free Cash Flow'!T152) -> FALSE | U25: =IF(U4,'Assumptions and Free Cash Flow'!U152) -> FALSE | V25: =IF(V4,'Assumptions and Free Cash Flow'!V152) -> FALSE | W25: =IF(W4,'Assumptions and Free Cash Flow'!W152) -> FALSE | X25: =IF(X4,'Assumptions and Free Cash Flow'!X152) -> -1.026206502 | Y25: =IF(Y4,'Assumptions and Free Cash Flow'!Y152) -> -1.026528723 | Z25: =IF(Z4,'Assumptions and Free Cash Flow'!Z152) -> -1.026854404 | AA25: =IF(AA4,'Assumptions and Free Cash Flow'!AA152) -> -1.026854404 | AB25: =IF(AB4,'Assumptions and Free Cash Flow'!AB152) -> -1.026854404 | AC25: =IF(AC4,'Assumptions and Free Cash Flow'!AC152) -> -1.026854404 | AD25: =IF(AD4,'Assumptions and Free Cash Flow'!AD152) -> FALSE | AE25: =IF(AE4,'Assumptions and Free Cash Flow'!AE152) -> FALSE | AF25: =IF(AF4,'Assumptions and Free Cash Flow'!AF152) -> FALSE | AG25: =IF(AG4,'Assumptions and Free Cash Flow'!AG152) -> FALSE
C27: EBITDA | I27: =IF(I4,'Assumptions and Free Cash Flow'!I139) -> FALSE | J27: =IF(J4,'Assumptions and Free Cash Flow'!J139) -> FALSE | K27: =IF(K4,'Assumptions and Free Cash Flow'!K139) -> FALSE | L27: =IF(L4,'Assumptions and Free Cash Flow'!L139) -> FALSE | M27: =IF(M4,'Assumptions and Free Cash Flow'!M139) -> FALSE | N27: =IF(N4,'Assumptions and Free Cash Flow'!N139) -> FALSE | O27: =IF(O4,'Assumptions and Free Cash Flow'!O139) -> FALSE | P27: =IF(P4,'Assumptions and Free Cash Flow'!P139) -> FALSE | Q27: =IF(Q4,'Assumptions and Free Cash Flow'!Q139) -> FALSE | R27: =IF(R4,'Assumptions and Free Cash Flow'!R139) -> FALSE | S27: =IF(S4,'Assumptions and Free Cash Flow'!S139) -> FALSE | T27: =IF(T4,'Assumptions and Free Cash Flow'!T139) -> FALSE | U27: =IF(U4,'Assumptions and Free Cash Flow'!U139) -> FALSE | V27: =IF(V4,'Assumptions and Free Cash Flow'!V139) -> FALSE | W27: =IF(W4,'Assumptions and Free Cash Flow'!W139) -> FALSE | X27: =IF(X4,'Assumptions and Free Cash Flow'!X139) -> 11295.0828 | Y27: =IF(Y4,'Assumptions and Free Cash Flow'!Y139) -> 11178.62197 | Z27: =IF(Z4,'Assumptions and Free Cash Flow'!Z139) -> 11063.32575 | AA27: =IF(AA4,'Assumptions and Free Cash Flow'!AA139) -> 11063.32575 | AB27: =IF(AB4,'Assumptions and Free Cash Flow'!AB139) -> 11063.32575 | AC27: =IF(AC4,'Assumptions and Free Cash Flow'!AC139) -> 11063.32575 | AD27: =IF(AD4,'Assumptions and Free Cash Flow'!AD139) -> FALSE | AE27: =IF(AE4,'Assumptions and Free Cash Flow'!AE139) -> FALSE | AF27: =IF(AF4,'Assumptions and Free Cash Flow'!AF139) -> FALSE | AG27: =IF(AG4,'Assumptions and Free Cash Flow'!AG139) -> FALSE
C28: Change in NWC | I28: =IF(I4,'Assumptions and Free Cash Flow'!I150) -> FALSE | J28: =IF(J4,'Assumptions and Free Cash Flow'!J150) -> FALSE | K28: =IF(K4,'Assumptions and Free Cash Flow'!K150) -> FALSE | L28: =IF(L4,'Assumptions and Free Cash Flow'!L150) -> FALSE | M28: =IF(M4,'Assumptions and Free Cash Flow'!M150) -> FALSE | N28: =IF(N4,'Assumptions and Free Cash Flow'!N150) -> FALSE | O28: =IF(O4,'Assumptions and Free Cash Flow'!O150) -> FALSE | P28: =IF(P4,'Assumptions and Free Cash Flow'!P150) -> FALSE | Q28: =IF(Q4,'Assumptions and Free Cash Flow'!Q150) -> FALSE | R28: =IF(R4,'Assumptions and Free Cash Flow'!R150) -> FALSE | S28: =IF(S4,'Assumptions and Free Cash Flow'!S150) -> FALSE | T28: =IF(T4,'Assumptions and Free Cash Flow'!T150) -> FALSE | U28: =IF(U4,'Assumptions and Free Cash Flow'!U150) -> FALSE | V28: =IF(V4,'Assumptions and Free Cash Flow'!V150) -> FALSE | W28: =IF(W4,'Assumptions and Free Cash Flow'!W150) -> FALSE | X28: =IF(X4,'Assumptions and Free Cash Flow'!X150) -> 926.912591 | Y28: =IF(Y4,'Assumptions and Free Cash Flow'!Y150) -> 115.9108741 | Z28: =IF(Z4,'Assumptions and Free Cash Flow'!Z150) -> 114.7517653 | AA28: =IF(AA4,'Assumptions and Free Cash Flow'!AA150) -> 0 | AB28: =IF(AB4,'Assumptions and Free Cash Flow'!AB150) -> 0 | AC28: =IF(AC4,'Assumptions and Free Cash Flow'!AC150) -> 0 | AD28: =IF(AD4,'Assumptions and Free Cash Flow'!AD150) -> FALSE | AE28: =IF(AE4,'Assumptions and Free Cash Flow'!AE150) -> FALSE | AF28: =IF(AF4,'Assumptions and Free Cash Flow'!AF150) -> FALSE | AG28: =IF(AG4,'Assumptions and Free Cash Flow'!AG150) -> FALSE
C29: CAPEX | I29: =IF(I4,'Assumptions and Free Cash Flow'!I156) -> FALSE | J29: =IF(J4,'Assumptions and Free Cash Flow'!J156) -> FALSE | K29: =IF(K4,'Assumptions and Free Cash Flow'!K156) -> FALSE | L29: =IF(L4,'Assumptions and Free Cash Flow'!L156) -> FALSE | M29: =IF(M4,'Assumptions and Free Cash Flow'!M156) -> FALSE | N29: =IF(N4,'Assumptions and Free Cash Flow'!N156) -> FALSE | O29: =IF(O4,'Assumptions and Free Cash Flow'!O156) -> FALSE | P29: =IF(P4,'Assumptions and Free Cash Flow'!P156) -> FALSE | Q29: =IF(Q4,'Assumptions and Free Cash Flow'!Q156) -> FALSE | R29: =IF(R4,'Assumptions and Free Cash Flow'!R156) -> FALSE | S29: =IF(S4,'Assumptions and Free Cash Flow'!S156) -> FALSE | T29: =IF(T4,'Assumptions and Free Cash Flow'!T156) -> FALSE | U29: =IF(U4,'Assumptions and Free Cash Flow'!U156) -> FALSE | V29: =IF(V4,'Assumptions and Free Cash Flow'!V156) -> FALSE | W29: =IF(W4,'Assumptions and Free Cash Flow'!W156) -> FALSE | X29: =IF(X4,'Assumptions and Free Cash Flow'!X156) -> 5500 | Y29: =IF(Y4,'Assumptions and Free Cash Flow'!Y156) -> 5500 | Z29: =IF(Z4,'Assumptions and Free Cash Flow'!Z156) -> 5500 | AA29: =IF(AA4,'Assumptions and Free Cash Flow'!AA156) -> 5500 | AB29: =IF(AB4,'Assumptions and Free Cash Flow'!AB156) -> 5500 | AC29: =IF(AC4,'Assumptions and Free Cash Flow'!AC156) -> 5500 | AD29: =IF(AD4,'Assumptions and Free Cash Flow'!AD156) -> FALSE | AE29: =IF(AE4,'Assumptions and Free Cash Flow'!AE156) -> FALSE | AF29: =IF(AF4,'Assumptions and Free Cash Flow'!AF156) -> FALSE | AG29: =IF(AG4,'Assumptions and Free Cash Flow'!AG156) -> FALSE
C30: Taxes on EBIT | I30: =IF(I4,'Assumptions and Free Cash Flow'!I185) -> FALSE | J30: =IF(J4,'Assumptions and Free Cash Flow'!J185) -> FALSE | K30: =IF(K4,'Assumptions and Free Cash Flow'!K185) -> FALSE | L30: =IF(L4,'Assumptions and Free Cash Flow'!L185) -> FALSE | M30: =IF(M4,'Assumptions and Free Cash Flow'!M185) -> FALSE | N30: =IF(N4,'Assumptions and Free Cash Flow'!N185) -> FALSE | O30: =IF(O4,'Assumptions and Free Cash Flow'!O185) -> FALSE | P30: =IF(P4,'Assumptions and Free Cash Flow'!P185) -> FALSE | Q30: =IF(Q4,'Assumptions and Free Cash Flow'!Q185) -> FALSE | R30: =IF(R4,'Assumptions and Free Cash Flow'!R185) -> FALSE | S30: =IF(S4,'Assumptions and Free Cash Flow'!S185) -> FALSE | T30: =IF(T4,'Assumptions and Free Cash Flow'!T185) -> FALSE | U30: =IF(U4,'Assumptions and Free Cash Flow'!U185) -> FALSE | V30: =IF(V4,'Assumptions and Free Cash Flow'!V185) -> FALSE | W30: =IF(W4,'Assumptions and Free Cash Flow'!W185) -> FALSE | X30: =IF(X4,'Assumptions and Free Cash Flow'!X185) -> 1689.9557 | Y30: =IF(Y4,'Assumptions and Free Cash Flow'!Y185) -> 1619.839043 | Z30: =IF(Z4,'Assumptions and Free Cash Flow'!Z185) -> 1556.983785 | AA30: =IF(AA4,'Assumptions and Free Cash Flow'!AA185) -> 1528.737886 | AB30: =IF(AB4,'Assumptions and Free Cash Flow'!AB185) -> 1505.29379 | AC30: =IF(AC4,'Assumptions and Free Cash Flow'!AC185) -> 1485.83519 | AD30: =IF(AD4,'Assumptions and Free Cash Flow'!AD185) -> FALSE | AE30: =IF(AE4,'Assumptions and Free Cash Flow'!AE185) -> FALSE | AF30: =IF(AF4,'Assumptions and Free Cash Flow'!AF185) -> FALSE | AG30: =IF(AG4,'Assumptions and Free Cash Flow'!AG185) -> FALSE
C31: FCF | I31: =IF(I4,I27-I28-I29-I30) -> FALSE | J31: FALSE | K31: FALSE | L31: FALSE | M31: FALSE | N31: FALSE | O31: FALSE | P31: FALSE | Q31: FALSE | R31: FALSE | S31: FALSE | T31: FALSE | U31: FALSE | V31: FALSE | W31: FALSE | X31: 3178.214509 | Y31: 3942.872055 | Z31: 3891.590202 | AA31: 4034.587867 | AB31: 4058.031963 | AC31: 4077.490562 | AD31: FALSE | AE31: FALSE | AF31: FALSE | AG31: FALSE
D32: Full year | E32: Half year
B33: Value of Cash Flow over Explicit Period
C34: NPV over Explicit Forecast Period | D34: =NPV(D9,31:31) -> 19062.9217 | E34: =D34*(1+$D$9)^0.5 -> 19598.68613
A36: Analysis of Normalised Cash Flow in Terminal Period
B37: Stable EBITDA
C38: Average Invested Capital | I38: ='Assumptions and Free Cash Flow'!I172 -> 0 | J38: ='Assumptions and Free Cash Flow'!J172 -> 0 | K38: ='Assumptions and Free Cash Flow'!K172 -> 0 | L38: ='Assumptions and Free Cash Flow'!L172 -> 0 | M38: ='Assumptions and Free Cash Flow'!M172 -> 41658 | N38: ='Assumptions and Free Cash Flow'!N172 -> 41299.5 | O38: ='Assumptions and Free Cash Flow'!O172 -> 41900 | P38: ='Assumptions and Free Cash Flow'!P172 -> 74931 | Q38: ='Assumptions and Free Cash Flow'!Q172 -> 102014.5 | R38: ='Assumptions and Free Cash Flow'!R172 -> 99516 | S38: ='Assumptions and Free Cash Flow'!S172 -> 103404.5 | T38: ='Assumptions and Free Cash Flow'!T172 -> 106142.9001 | U38: ='Assumptions and Free Cash Flow'!U172 -> 108978.4001 | V38: ='Assumptions and Free Cash Flow'!V172 -> 102668 | W38: ='Assumptions and Free Cash Flow'!W172 -> 88857.5 | X38: ='Assumptions and Free Cash Flow'!X172 -> 83798.8263 | Y38: ='Assumptions and Free Cash Flow'!Y172 -> 85202.97513 | Z38: ='Assumptions and Free Cash Flow'!Z172 -> 86050.97824 | AA38: ='Assumptions and Free Cash Flow'!AA172 -> 86716.47171 | AB38: ='Assumptions and Free Cash Flow'!AB172 -> 87221.20931 | AC38: ='Assumptions and Free Cash Flow'!AC172 -> 87640.14152 | AD38: ='Assumptions and Free Cash Flow'!AD172 -> 87987.85525 | AE38: ='Assumptions and Free Cash Flow'!AE172 -> 88276.45764 | AF38: ='Assumptions and Free Cash Flow'!AF172 -> 88515.99763 | AG38: ='Assumptions and Free Cash Flow'!AG172 -> 88714.81583
C39: NOPAT | I39: ='Assumptions and Free Cash Flow'!I186 -> 25814.25 | J39: ='Assumptions and Free Cash Flow'!J186 -> 26658 | K39: ='Assumptions and Free Cash Flow'!K186 -> 25969.5 | L39: ='Assumptions and Free Cash Flow'!L186 -> 26990.25 | M39: ='Assumptions and Free Cash Flow'!M186 -> 4018.073467 | N39: ='Assumptions and Free Cash Flow'!N186 -> 2497.73958 | O39: ='Assumptions and Free Cash Flow'!O186 -> 3497.18457 | P39: ='Assumptions and Free Cash Flow'!P186 -> 6140.13548 | Q39: ='Assumptions and Free Cash Flow'!Q186 -> 6313.742663 | R39: ='Assumptions and Free Cash Flow'!R186 -> 7363.145278 | S39: ='Assumptions and Free Cash Flow'!S186 -> 6919.867302 | T39: ='Assumptions and Free Cash Flow'!T186 -> 6654.045096 | U39: ='Assumptions and Free Cash Flow'!U186 -> 6666.567845 | V39: ='Assumptions and Free Cash Flow'!V186 -> 6072.555871 | W39: ='Assumptions and Free Cash Flow'!W186 -> 5499.329764 | X39: ='Assumptions and Free Cash Flow'!X186 -> 5069.8671 | Y39: ='Assumptions and Free Cash Flow'!Y186 -> 4859.517129 | Z39: ='Assumptions and Free Cash Flow'!Z186 -> 4670.951354 | AA39: ='Assumptions and Free Cash Flow'!AA186 -> 4586.213657 | AB39: ='Assumptions and Free Cash Flow'!AB186 -> 4515.881369 | AC39: ='Assumptions and Free Cash Flow'!AC186 -> 4457.505569 | AD39: ='Assumptions and Free Cash Flow'!AD186 -> 4409.053656 | AE39: ='Assumptions and Free Cash Flow'!AE186 -> 4368.838568 | AF39: ='Assumptions and Free Cash Flow'!AF186 -> 4335.460045 | AG39: ='Assumptions and Free Cash Flow'!AG186 -> 4307.755871
C40: ROIC | I40: =IF(I38,I39/I38) -> FALSE | J40: =IF(J38,J39/J38) -> FALSE | K40: FALSE | L40: FALSE | M40: 0.09645382561 | N40: 0.06047868813 | O40: 0.08346502553 | P40: 0.08194386143 | Q40: 0.06189063969 | R40: 0.07398956226 | S40: 0.06692036905 | T40: 0.06268949775 | U40: 0.06117329526 | V40: 0.05914750332 | W40: 0.06188931451 | X40: 0.06050045477 | Y40: 0.05703459441 | Z40: 0.05428121155 | AA40: 0.05288745686 | AB40: 0.05177503734 | AC40: 0.0508614602 | AD40: 0.05010979804 | AE40: 0.0494904155 | AF40: 0.04897939537 | AG40: 0.04855734446
C42: Stable EBITDA | D42: =D137 -> 11746.3012 | I42: =$D$42*I5 -> 0 | J42: =$D$42*J5 -> 0 | K42: 0 | L42: 0 | M42: 0 | N42: 0 | O42: 0 | P42: 0 | Q42: 0 | R42: 0 | S42: 0 | T42: 0 | U42: 0 | V42: 0 | W42: 0 | X42: 0 | Y42: 0 | Z42: 0 | AA42: 0 | AB42: 0 | AC42: 11746.3012 | AD42: 0 | AE42: 0 | AF42: 0 | AG42: 0
C43: Stable CAPEX | D43: =D147 -> 1.066705799 | I43: =$D$43*I24*I5 -> 0 | J43: =$D$43*J24*J5 -> 0 | K43: 0 | L43: 0 | M43: 0 | N43: 0 | O43: 0 | P43: 0 | Q43: 0 | R43: 0 | S43: 0 | T43: 0 | U43: 0 | V43: 0 | W43: 0 | X43: 0 | Y43: 0 | Z43: 0 | AA43: 0 | AB43: 0 | AC43: 5461.51768 | AD43: 0 | AE43: 0 | AF43: 0 | AG43: 0
C44: Stable NWC | D44: =D156 -> -146.6722249 | I44: =$D$44*I5 -> 0 | J44: =$D$44*J5 -> 0 | K44: 0 | L44: 0 | M44: 0 | N44: 0 | O44: 0 | P44: 0 | Q44: 0 | R44: 0 | S44: 0 | T44: 0 | U44: 0 | V44: 0 | W44: 0 | X44: 0 | Y44: 0 | Z44: 0 | AA44: 0 | AB44: 0 | AC44: -146.6722249 | AD44: 0 | AE44: 0 | AF44: 0 | AG44: 0
C45: Stable taxes | D45: =D164 -> 1656.579051 | I45: =$D$45*I5 -> 0 | J45: =$D$45*J5 -> 0 | K45: 0 | L45: 0 | M45: 0 | N45: 0 | O45: 0 | P45: 0 | Q45: 0 | R45: 0 | S45: 0 | T45: 0 | U45: 0 | V45: 0 | W45: 0 | X45: 0 | Y45: 0 | Z45: 0 | AA45: 0 | AB45: 0 | AC45: 1656.579051 | AD45: 0 | AE45: 0 | AF45: 0 | AG45: 0
C47: Stable FCF in terminal period | I47: =I42-I43-I44-I45 -> 0 | J47: 0 | K47: 0 | L47: 0 | M47: 0 | N47: 0 | O47: 0 | P47: 0 | Q47: 0 | R47: 0 | S47: 0 | T47: 0 | U47: 0 | V47: 0 | W47: 0 | X47: 0 | Y47: 0 | Z47: 0 | AA47: 0 | AB47: 0 | AC47: 4774.87669 | AD47: 0 | AE47: 0 | AF47: 0 | AG47: 0
C48: NOPAT | I48: =I42-I45-I24 -> 0 | J48: =J42-J45-J24 -> 0 | K48: 0 | L48: 0 | M48: 0 | N48: 0 | O48: 0 | P48: 0 | Q48: 0 | R48: 0 | S48: 0 | T48: 0 | U48: 0 | V48: 0 | W48: 0 | X48: -4535.26 | Y48: -4699.2658 | Z48: -4835.390614 | AA48: -4948.37421 | AB48: -5042.150594 | AC48: 4969.737152 | AD48: 0 | AE48: 0 | AF48: 0 | AG48: 0
C50: Terminal value | D50: Full year | E50: Half year
C51: Gordon's growth formula, regular forecast | D51: =NPV($D$9,I51:AG51) -> 78825.91225 | E51: =D51*(1+$D$9)^0.5 -> 81041.31869 | I51: =IF(I4,(1+$D$10)/($D$9-$D$10)*I47*I5) -> FALSE | J51: =IF(J4,(1+$D$10)/($D$9-$D$10)*J47*J5) -> FALSE | K51: FALSE | L51: FALSE | M51: FALSE | N51: FALSE | O51: FALSE | P51: FALSE | Q51: FALSE | R51: FALSE | S51: FALSE | T51: FALSE | U51: FALSE | V51: FALSE | W51: FALSE | X51: 0 | Y51: 0 | Z51: 0 | AA51: 0 | AB51: 0 | AC51: 109930.6838 | AD51: FALSE | AE51: FALSE | AF51: FALSE | AG51: FALSE
C52: Terminal value based on exit EV/EBITDA | D52: =NPV($D$9,I52:AG52) -> 88438.32488 | E52: =D52*(1+$D$9)^0.5 -> 90923.88869 | I52: =IF(I4,$D$13*I42*I5) -> FALSE | J52: FALSE | K52: FALSE | L52: FALSE | M52: FALSE | N52: FALSE | O52: FALSE | P52: FALSE | Q52: FALSE | R52: FALSE | S52: FALSE | T52: FALSE | U52: FALSE | V52: FALSE | W52: FALSE | X52: 0 | Y52: 0 | Z52: 0 | AA52: 0 | AB52: 0 | AC52: 123336.1626 | AD52: FALSE | AE52: FALSE | AF52: FALSE | AG52: FALSE
C53: Value driver method | D53: =NPV($D$9,I53:AG53) -> 62518.51305 | E53: =D53*(1+$D$9)^0.5 -> 64275.59917 | I53: =IF(I4,(1-$D$10/$D$12)/($D$9-$D$10)*I48*I5) -> FALSE | J53: =IF(J4,(1-$D$10/$D$12)/($D$9-$D$10)*J48*J5) -> FALSE | K53: FALSE | L53: FALSE | M53: FALSE | N53: FALSE | O53: FALSE | P53: FALSE | Q53: FALSE | R53: FALSE | S53: FALSE | T53: FALSE | U53: FALSE | V53: FALSE | W53: FALSE | X53: 0 | Y53: 0 | Z53: 0 | AA53: 0 | AB53: 0 | AC53: 87188.37109 | AD53: FALSE | AE53: FALSE | AF53: FALSE | AG53: FALSE
C55: EV | D55: Full year | E55: Half year
C56: Gordon's | D56: =D$34+D51 -> 97888.83395 | E56: =E$34+E51 -> 100640.0048
C57: Terminal EV/EBITDA | D57: =D$34+D52 -> 107501.2466 | E57: =E$34+E52 -> 110522.5748
C58: Value Driver Method | D58: =D53+D34 -> 81581.43475 | E58: =E53+E34 -> 83874.2853
C60: Enterprise value - Gordons | D60: =D34+D51 -> 97888.83395 | E60: =E34+E51 -> 100640.0048
C61: EBITDA, valuation year | D61: =LOOKUP(D4,Valuation!3:3,27:27) -> 11295.0828 | E61: =D61 -> 11295.0828
C62: Implied EV/EBITDA | D62: =D60/D61 -> 8.6664999 | E62: =E60/E61 -> 8.910072339
C63: EBITDA, terminal year | D63: =LOOKUP(D5,Valuation!3:3,27:27) -> 11063.32575 | E63: =D63 -> 11063.32575
C64: Value of terminal year | D64: =SUM(I51:AG51) -> 109930.6838 | E64: =D64 -> 109930.6838
C65: Implied EV/EBITDA, terminal year | D65: =D64/D63 -> 9.936495251 | E65: =E64/E63 -> 9.936495251
C67: Enterprise value - EV/EBITDA | D67: =D57 -> 107501.2466 | E67: =E57 -> 110522.5748
C68: Implied EV/EBITDA | D68: =D67/D61 -> 9.517526209 | E68: =E67/E61 -> 9.785016787
C69: Terminal EV/EBITDA | D69: =SUM(I52:AG52)/D63 -> 11.14819949 | E69: =SUM(I52:AG52)/E63 -> 11.14819949
C71: Enterprise value - Value Driver | D71: =D58 -> 81581.43475 | E71: =E58 -> 83874.2853
C72: Implied EV/EBITDA | D72: =D71/D61 -> 7.222738974 | E72: =E71/E61 -> 7.425734435
C73: Terminal EV/EBITDA | D73: =SUM(I53:AG53)/D63 -> 7.880846415 | E73: =D73 -> 7.880846415
B76: Enterprise Value Tables
I77: Conditional formating | K77: 100
H79: Growth | I79: =E51/1000 -> 81.04131869 | J79: 0.05 | K79: =J79+1% -> 0.06 | L79: =K79+1% -> 0.07 | M79: =L79+1% -> 0.08
I80: 0 | J80: 111.4735306 | K80: 93.34060793 | L80: 79.71317124 | M80: 69.05401759 | O80: =J80/$I$79 -> 1.375514768 | P80: 1.15176566 | Q80: 0.9836114777 | R80: 0.8520840814
I81: =I80+1% -> 0.01 | J81: 145.3884523 | K81: 117.0461946 | L81: 97.28271356 | M81: 82.61283613 | O81: 1.794004029 | P81: 1.444278011 | Q81: 1.200408818 | R81: 1.019391558
I82: =I81+1% -> 0.02 | J82: 202.8056717 | K82: 153.3013084 | L82: 122.4481064 | M82: 101.1663709 | O82: 2.502497182 | P82: 1.891643804 | Q82: 1.510934279 | R82: 1.248330759
I83: =I82+1% -> 0.03 | J83: 319.0775244 | K83: 214.7242636 | L83: 160.9592796 | M83: 127.7545254 | O83: 3.937220291 | P83: 2.649565272 | Q83: 1.986138456 | R83: 1.576412224
H85: EV/EBITDA | I85: =E52/1000 -> 90.92388869 | J85: 0.05 | K85: =J85+1% -> 0.06 | L85: =K85+1% -> 0.07 | M85: =L85+1% -> 0.08
I86: 9 | J86: 106.4036881 | K86: 104.9586984 | L86: 103.0016646 | M86: 100.6855665 | O86: =J86/$I$85 -> 1.170250081 | P86: 1.154357781 | Q86: 1.132833913 | R86: 1.10736098
I87: 10 | J87: 118.2263201 | K87: 116.6207759 | L87: 114.446294 | M87: 111.8728517 | O87: 1.300277868 | P87: 1.282619756 | Q87: 1.258704348 | R87: 1.230401089
I88: 11 | J88: 130.0489521 | K88: 128.2828535 | L88: 125.8909235 | M88: 123.0601368 | O88: 1.430305655 | P88: 1.410881732 | Q88: 1.384574783 | R88: 1.353441198
I89: 12 | J89: 141.8715841 | K89: 139.9449311 | L89: 137.3355529 | M89: 134.247422 | O89: 1.560333441 | P89: 1.539143708 | Q89: 1.510445218 | R89: 1.476481307
H91: Value Driver | I91: =E53/1000 -> 64.27559917 | J91: 0.05 | K91: =J91+1% -> 0.06 | L91: =K91+1% -> 0.07 | M91: =L91+1% -> 0.08
I92: 0 | J92: 111.130473 | K92: 93.01713171 | L92: 79.40808067 | M92: 68.76619372 | O92: =J92/$I$91 -> 1.728968294 | P92: 1.447160865 | Q92: 1.235431201 | R92: 1.069864686
I93: =I92+1% -> 0.01 | J93: 116.8366903 | K93: 97.82588485 | L93: 83.52604975 | M93: 72.3339013 | O93: 1.817745642 | P93: 1.521975464 | Q93: 1.299498578 | R93: 1.125371093
I94: =I93+1% -> 0.02 | J94: 122.8889737 | K94: 102.9277177 | L94: 87.89556097 | M94: 76.11960976 | O94: 1.911907088 | P94: 1.601349797 | Q94: 1.367479449 | R94: 1.184269159
I95: =I94+1% -> 0.03 | J95: 129.3095881 | K95: 108.3415414 | L95: 92.5328669 | M95: 80.13740722 | O95: 2.011799031 | P95: 1.685578085 | Q95: 1.439626672 | R95: 1.246778066
A97: Equity Value
B98: Bridge - Equity to Enterprise Value
C99: Net Debt | D99: ='Historic Data from PDF'!V63 -> 38132
C100: Less: Associated Investments | D100: ='Historic Data from PDF'!V64 -> -4676
C101: Minority Interest | D101: ='Historic Data from PDF'!V65 -> 3742
C102: Other Liabilities | D102: ='Historic Data from PDF'!V66 -> 2547
C103: Net Assets Held for Disposal | D103: ='Historic Data from PDF'!V67 -> -381
C104: Total | D104: ='Historic Data from PDF'!V68 -> 39364
A106: Stable ROIC Analysis
C107: Invested Capital | E107: =SUMIF(5:5,TRUE,38:38) -> 87640.14152
C108: Terminal ROIC | E108: =SUMIF(5:5,TRUE,40:40) -> 0.0508614602
C109: Stable ROIC | E109: =D12 -> 0.057
C110: Growth | E110: =D10 -> 0.013
C111: WACC | E111: =D9 -> 0.057
C112: Years | E112: 1 | F112: =D16 -> 15
E113: =E108 -> 0.0508614602 | F113: =E109 -> 0.057
C114: Years for NPV | E114: 11
C116: Year | F116: 1 | G116: 2 | H116: 3 | I116: 4 | J116: 5 | K116: 6 | L116: 7 | M116: 8 | N116: 9 | O116: 10 | P116: 11 | Q116: 12 | R116: 13 | S116: 14 | T116: 15 | U116: 16 | V116: 17 | W116: 18 | X116: 19 | Y116: 20 | Z116: 21 | AA116: 22 | AB116: 23 | AC116: 24 | AD116: 25 | AE116: 26 | AF116: 27 | AG116: 28 | AH116: 29 | AI116: 30 | AJ116: 31 | AK116: 32 | AL116: 33 | AM116: 34 | AN116: 35 | AO116: 36 | AP116: 37 | AQ116: 38 | AR116: 39 | AS116: 40 | AT116: 41 | AU116: 42 | AV116: 43 | AW116: 44 | AX116: 45 | AY116: 46 | AZ116: 47 | BA116: 48 | BB116: 49 | BC116: 50
E117: =E114 -> 11 | F117: =F116<=$E$117 -> TRUE | G117: =G116<=$E$117 -> TRUE | H117: TRUE | I117: TRUE | J117: TRUE | K117: TRUE | L117: TRUE | M117: TRUE | N117: TRUE | O117: TRUE | P117: TRUE | Q117: FALSE | R117: FALSE | S117: FALSE | T117: FALSE | U117: FALSE | V117: FALSE | W117: FALSE | X117: FALSE | Y117: FALSE | Z117: FALSE | AA117: FALSE | AB117: FALSE | AC117: FALSE | AD117: FALSE | AE117: FALSE | AF117: FALSE | AG117: FALSE | AH117: FALSE | AI117: FALSE | AJ117: FALSE | AK117: FALSE | AL117: FALSE | AM117: FALSE | AN117: FALSE | AO117: FALSE | AP117: FALSE | AQ117: FALSE | AR117: FALSE | AS117: FALSE | AT117: FALSE | AU117: FALSE | AV117: FALSE | AW117: FALSE | AX117: FALSE | AY117: FALSE | AZ117: FALSE | BA117: FALSE | BB117: FALSE | BC117: FALSE
C118: Invested Capital | E118: =E107 -> 87640.14152 | F118: =E118*(1+$E$110) -> 88779.46336 | G118: =F118*(1+$E$110) -> 89933.59638 | H118: 91102.73313 | I118: 92287.06866 | J118: 93486.80056 | K118: 94702.12896 | L118: 95933.25664 | M118: 97180.38898 | N118: 98443.73403 | O118: 99723.50258 | P118: 101019.9081 | Q118: 102333.1669 | R118: 103663.4981 | S118: 105011.1236 | T118: 106376.2682 | U118: 107759.1597 | V118: 109160.0287 | W118: 110579.1091 | X118: 112016.6375 | Y118: 113472.8538 | Z118: 114948.0009 | AA118: 116442.3249 | AB118: 117956.0751 | AC118: 119489.5041 | AD118: 121042.8677 | AE118: 122616.425 | AF118: 124210.4385 | AG118: 125825.1742 | AH118: 127460.9014 | AI118: 129117.8932 | AJ118: 130796.4258 | AK118: 132496.7793 | AL118: 134219.2374 | AM118: 135964.0875 | AN118: 137731.6207 | AO118: 139522.1317 | AP118: 141335.9194 | AQ118: 143173.2864 | AR118: 145034.5391 | AS118: 146919.9881 | AT118: 148829.948 | AU118: 150764.7373 | AV118: 152724.6789 | AW118: 154710.0997 | AX118: 156721.331 | AY118: 158758.7083 | AZ118: 160822.5715 | BA118: 162913.2649 | BB118: 165031.1374 | BC118: 167176.5422
C119: ROIC | F119: =interpolate_look_up(F116,112:112,113:113) -> 0.0508614602 | G119: =interpolate_look_up(G116,112:112,113:113) -> 0.05127711008 | H119: 0.05169615673 | I119: 0.05211862792 | J119: 0.05254455162 | K119: 0.05297395606 | L119: 0.05340686967 | M119: 0.05384332114 | N119: 0.05428333938 | O119: 0.05472695353 | P119: 0.05517419298 | Q119: 0.05562508737 | R119: 0.05607966655 | S119: 0.05653796064 | T119: 0.057 | U119: 0.057 | V119: 0.057 | W119: 0.057 | X119: 0.057 | Y119: 0.057 | Z119: 0.057 | AA119: 0.057 | AB119: 0.057 | AC119: 0.057 | AD119: 0.057 | AE119: 0.057 | AF119: 0.057 | AG119: 0.057 | AH119: 0.057 | AI119: 0.057 | AJ119: 0.057 | AK119: 0.057 | AL119: 0.057 | AM119: 0.057 | AN119: 0.057 | AO119: 0.057 | AP119: 0.057 | AQ119: 0.057 | AR119: 0.057 | AS119: 0.057 | AT119: 0.057 | AU119: 0.057 | AV119: 0.057 | AW119: 0.057 | AX119: 0.057 | AY119: 0.057 | AZ119: 0.057 | BA119: 0.057 | BB119: 0.057 | BC119: 0.057
C120: NOPAT | F120: =F118*F119 -> 4515.453142 | G120: =G118*G119 -> 4611.534921 | H120: 4709.661171 | I120: 4809.875393 | J120: 4912.222018 | K120: 5016.746418 | L120: 5123.494934 | M120: 5232.514892 | N120: 5343.854624 | O120: 5457.563491 | P120: 5573.691905 | Q120: 5692.29135 | R120: 5813.414406 | S120: 5937.11477 | T120: 6063.447285 | U120: 6142.2721 | V120: 6222.121637 | W120: 6303.009219 | X120: 6384.948339 | Y120: 6467.952667 | Z120: 6552.036052 | AA120: 6637.21252 | AB120: 6723.496283 | AC120: 6810.901735 | AD120: 6899.443457 | AE120: 6989.136222 | AF120: 7079.994993 | AG120: 7172.034928 | AH120: 7265.271382 | AI120: 7359.71991 | AJ120: 7455.396269 | AK120: 7552.31642 | AL120: 7650.496534 | AM120: 7749.952989 | AN120: 7850.702378 | AO120: 7952.761509 | AP120: 8056.147408 | AQ120: 8160.877324 | AR120: 8266.96873 | AS120: 8374.439323 | AT120: 8483.307034 | AU120: 8593.590026 | AV120: 8705.306696 | AW120: 8818.475683 | AX120: 8933.115867 | AY120: 9049.246373 | AZ120: 9166.886576 | BA120: 9286.056102 | BB120: 9406.774831 | BC120: 9529.062904
C122: One | E122: 1 | F122: 1 | G122: 1 | H122: 1 | I122: 1 | J122: 1 | K122: 1 | L122: 1 | M122: 1 | N122: 1 | O122: 1 | P122: 1 | Q122: 1 | R122: 1 | S122: 1 | T122: 1 | U122: 1 | V122: 1 | W122: 1 | X122: 1 | Y122: 1 | Z122: 1 | AA122: 1 | AB122: 1 | AC122: 1 | AD122: 1 | AE122: 1 | AF122: 1 | AG122: 1 | AH122: 1 | AI122: 1 | AJ122: 1 | AK122: 1 | AL122: 1 | AM122: 1 | AN122: 1 | AO122: 1 | AP122: 1 | AQ122: 1 | AR122: 1 | AS122: 1 | AT122: 1 | AU122: 1 | AV122: 1 | AW122: 1 | AX122: 1 | AY122: 1 | AZ122: 1 | BA122: 1 | BB122: 1 | BC122: 1
C123: PV Factor | E123: 1 | F123: =E123*(1+$E$111) -> 1.057 | G123: =F123*(1+$E$111) -> 1.117249 | H123: 1.180932193 | I123: 1.248245328 | J123: 1.319395312 | K123: 1.394600844 | L123: 1.474093093 | M123: 1.558116399 | N123: 1.646929034 | O123: 1.740803989 | P123: 1.840029816 | Q123: 1.944911515 | R123: 2.055771472 | S123: 2.172950446 | T123: 2.296808621 | U123: 2.427726712 | V123: 2.566107135 | W123: 2.712375242 | X123: 2.866980631 | Y123: 3.030398526 | Z123: 3.203131242 | AA123: 3.385709723 | AB123: 3.578695178 | AC123: 3.782680803 | AD123: 3.998293608 | AE123: 4.226196344 | AF123: 4.467089536 | AG123: 4.721713639 | AH123: 4.990851317 | AI123: 5.275329842 | AJ123: 5.576023643 | AK123: 5.89385699 | AL123: 6.229806839 | AM123: 6.584905829 | AN123: 6.960245461 | AO123: 7.356979452 | AP123: 7.776327281 | AQ123: 8.219577936 | AR123: 8.688093878 | AS123: 9.183315229 | AT123: 9.706764197 | AU123: 10.26004976 | AV123: 10.84487259 | AW123: 11.46303033 | AX123: 12.11642306 | AY123: 12.80705917 | AZ123: 13.53706155 | BA123: 14.30867405 | BB123: 15.12426848 | BC123: 15.98635178
C125: PV of NOPAT | D125: =SUMPRODUCT(F120:BC120/F123:BC123*F117:BC117) -> 39804.15463
C126: PV Factor | D126: =SUMPRODUCT(F122:BC122/F123:BC123*F117:BC117) -> 8.009307819
C127: Levelised NOPAT | D127: =D125/D126 -> 4969.737152
C129: NOPAT without Adjustment | D129: =SUMIF(5:5,TRUE,39:39) -> 4457.505569
C130: Adjustment to NOPAT | D130: =D127-D129 -> 512.2315829
C132: Percent Adjustment | D132: =D130/D129 -> 0.1149144011
C133: Tax Rate | D133: =SUMIF(5:5,TRUE,23:23) -> 0.25
C135: EBITDA Adjustment | D135: =D130/(1-D133) -> 682.9754439
C136: EBITDA in Terminal Year | D136: =SUMIF(5:5,TRUE,27:27) -> 11063.32575
C137: Normalised EBITDA | D137: =D136+D135 -> 11746.3012
A139: Stable Capital Expenditure Adjustment
C140: Depreciation Expense | D140: =SUMIF(5:5,TRUE,24:24) -> 5119.984993
C141: Historic Growth | D141: =D18 -> 0.011
C142: Projected Growth | D142: =E110 -> 0.013
C143: Depreciation Life | D143: =D17 -> 10
C144: WACC | D144: =E111 -> 0.057
C145: Timing Code | D145: 2
C147: Cap Exp to Depreciation | D147: =stable_capexp(D141,D142,D143,D144,D145) -> 1.066705799
C148: Stable Cap Exp | D148: =D147*D140 -> 5461.51768
C150: Cap Exp in Terminal Year | D150: =SUMIF(5:5,TRUE,29:29) -> 5500
A152: Stable Net Working Capital
C153: NWC/EBITDA | D153: =D19 -> -0.973
C154: Growth | D154: =E110 -> 0.013
C155: Stable EBITDA | D155: =D137 -> 11746.3012
C156: Stable Change in NWC | D156: =D155*D153*D154/(1+D154) -> -146.6722249
C158: Terminal NWC Change | D158: =SUMIF(5:5,TRUE,28:28) -> 0
C159: Adjustment | D159: =D156-D158 -> -146.6722249
A161: Tax Adjustment
C162: Taxes in Terminal Year | D162: =SUMIF(5:5,TRUE,30:30) -> 1485.83519
C163: Adjustment to Taxes | D163: =D135*D133 -> 170.743861
C164: Stable Taxes | D164: =SUM(D162:D163) -> 1656.579051

Sheet Scenario analysis
D4: Scenario | E4: 2
E5: 1 | F5: 2 | G5: 3 | H5: 4 | I5: 5
A6: Base Variables
D7: Scenario Name | E7: Volume | F7: Price | G7: COGS pct of sales | H7: SG&A in pct of sales | I7: Admin in pct of sales | K7: DCF with growth method | L7: DCF with value driver formula | M7: DCF with multiple terminal value | N7: IRR from LBO
K8: =Valuation!E56 -> 100640.0048 | L8: =Valuation!E53 -> 64275.59917 | M8: =Valuation!E57 -> 110522.5748 | N8: =LBO!D34 -> 0.0179433018
C9: 1 | D9: Base case | E9: 1 | F9: 1 | G9: 0.44 | H9: 0.29 | I9: 0.07 | J9: 1 | K9: 129062.2387 | L9: 79668.41211 | M9: 130692.0486 | N9: 0.0385376364
C10: 2 | D10: Bear case | E10: 2 | F10: 3 | G10: 0.445 | H10: 0.3 | I10: 0.075 | J10: 2 | K10: 100640.0048 | L10: 64275.59917 | M10: 110522.5748 | N10: 0.0179433018
C11: 3 | D11: Bull case | E11: 3 | F11: 2 | G11: 0.435 | H11: 0.28 | I11: 0.065 | J11: 3 | K11: 173820.1575 | L11: 104509.1293 | M11: 162131.7727 | N11: 0.08114983737
C12: 1 | D12: =TRANSPOSE(E7:I7)&" Bear case" -> Volume Bear case | E12: =IF(E$5=$C12,E$10,E$9) -> 2 | F12: 1 | G12: 0.44 | H12: 0.29 | I12: 0.07 | J12: 4 | K12: 121527.5454 | L12: 75771.9837 | M12: 125246.401 | N12: 0.03290270865
C13: 2 | D13: Price Bear case | E13: 1 | F13: 3 | G13: 0.44 | H13: 0.29 | I13: 0.07 | J13: 5 | K13: 124799.0291 | L13: 77061.8621 | M13: 127826.3244 | N13: 0.02967989147
C14: 3 | D14: COGS pct of sales Bear case | E14: 1 | F14: 1 | G14: 0.445 | H14: 0.29 | I14: 0.07 | J14: 6 | K14: 124792.1641 | L14: 77359.38118 | M14: 127659.9465 | N14: 0.03717918694
C15: 4 | D15: SG&A in pct of sales Bear case | E15: 1 | F15: 1 | G15: 0.44 | H15: 0.3 | I15: 0.07 | J15: 7 | K15: 120380.5514 | L15: 75077.94966 | M15: 124471.509 | N15: 0.03574843109
C16: 5 | D16: Admin in pct of sales Bear case | E16: 1 | F16: 1 | G16: 0.44 | H16: 0.29 | I16: 0.075 | J16: 8 | K16: 124737.6964 | L16: 77385.39945 | M16: 127591.5292 | N16: 0.03717482984
C17: 1 | D17: =TRANSPOSE(E7:I7)&" Bull case" -> Volume Bull case | E17: =IF(E$5=$C17,E$11,E$9) -> 3 | F17: 1 | G17: 0.44 | H17: 0.29 | I17: 0.07 | J17: 9 | K17: 141927.1926 | L17: 87220.03403 | M17: 139508.2477 | N17: 0.05951965153
C18: 2 | D18: Price Bull case | E18: 1 | F18: 2 | G18: 0.44 | H18: 0.29 | I18: 0.07 | J18: 10 | K18: 141691.6683 | L18: 86746.26607 | M18: 139526.7312 | N18: 0.05570162237
C19: 3 | D19: COGS pct of sales Bull case | E19: 1 | F19: 1 | G19: 0.435 | H19: 0.29 | I19: 0.07 | J19: 11 | K19: 133303.1508 | L19: 81955.58444 | M19: 133706.7076 | N19: 0.03983688653
C20: 4 | D20: SG&A in pct of sales Bull case | E20: 1 | F20: 1 | G20: 0.44 | H20: 0.28 | I20: 0.07 | J20: 12 | K20: 137620.9478 | L20: 84166.69695 | M20: 136839.0305 | N20: 0.04108891785
C21: 5 | D21: Admin in pct of sales Bull case | E21: 1 | F21: 1 | G21: 0.44 | H21: 0.29 | I21: 0.065 | J21: 13 | K21: 133356.0825 | L21: 81928.41486 | M21: 133774.2061 | N21: 0.03984105885
D24: =INDEX(D9:D22,$E$4) -> Bear case | E24: 2 | F24: 3 | G24: =INDEX(G9:G22,$E$4) -> 0.445 | H24: 0.3 | I24: 0.075
E26: Base VS Bull | F26: Base VS Bear
D27: =TRANSPOSE(E7:I7) -> Volume | E27: =K17-$K$9 -> 12864.95386 | F27: =K12-$K$9 -> -7534.693292
D28: Price | E28: =K18-$K$9 -> 12629.42963 | F28: =K13-$K$9 -> -4263.209661
D29: COGS pct of sales | E29: =K19-$K$9 -> 4240.912068 | F29: =K14-$K$9 -> -4270.074579
D30: SG&A in pct of sales | E30: =K20-$K$9 -> 8558.709119 | F30: =K15-$K$9 -> -8681.687294
D31: Admin in pct of sales | E31: =K21-$K$9 -> 4293.843807 | F31: =K16-$K$9 -> -4324.542325
A33: Time Series Sensitivities
F34: ='Historic Data from PDF'!W1 -> 2016 | G34: ='Historic Data from PDF'!X1 -> 2017 | H34: ='Historic Data from PDF'!Y1 -> 2018 | I34: ='Historic Data from PDF'!Z1 -> 2019 | J34: ='Historic Data from PDF'!AA1 -> 2020 | K34: ='Historic Data from PDF'!AB1 -> 2021 | L34: ='Historic Data from PDF'!AC1 -> 2022 | M34: ='Historic Data from PDF'!AD1 -> 2023 | N34: ='Historic Data from PDF'!AE1 -> 2024 | O34: ='Historic Data from PDF'!AF1 -> 2025
B36: 1 | C36: Base case Volumes | F36: 0.005 | G36: 0.005 | H36: 0.005 | I36: 0 | J36: 0 | K36: 0 | L36: 0 | M36: 0 | N36: 0 | O36: 0
B37: 2 | C37: Bear case Volumes | F37: -0.01 | G37: =F37 -> -0.01 | H37: =G37 -> -0.01 | I37: 0 | J37: 0 | K37: 0 | L37: 0 | M37: 0 | N37: 0 | O37: 0
B38: 3 | C38: Bull case Volumes | F38: 0.01 | G38: 0.01 | H38: 0.02 | I38: 0.02 | J38: 0.02 | K38: 0.02 | L38: 0.02 | M38: 0.02 | N38: 0.02 | O38: 0.02
B41: 1 | C41: Base case Price | F41: 0 | G41: 0 | H41: 0.005 | I41: 0.005 | J41: 0.01 | K41: =J41 -> 0.01 | L41: =K41 -> 0.01 | M41: =L41 -> 0.01 | N41: =M41 -> 0.01 | O41: =N41 -> 0.01
B42: 2 | C42: Bull case Price | F42: 0.015 | G42: 0.015 | H42: 0.015 | I42: 0.015 | J42: 0.025 | K42: 0.025 | L42: 0.025 | M42: 0.025 | N42: 0.025 | O42: 0.025
B43: 3 | C43: Bear case Price | F43: 0 | G43: 0 | H43: 0 | I43: 0 | J43: 0 | K43: 0 | L43: 0 | M43: 0 | N43: 0 | O43: 0

Sheet Historic Data from PDF
H1: 2001 | I1: 2002 | J1: 2003 | K1: 2004 | L1: 2005 | M1: 2006 | N1: 2007 | O1: 2008 | P1: 2009 | Q1: 2010 | R1: 2011 | S1: 2012 | T1: 2013 | U1: 2014 | V1: 2015 | W1: 2016 | X1: 2017 | Y1: 2018 | Z1: 2019 | AA1: 2020 | AB1: 2021 | AC1: 2022 | AD1: 2023 | AE1: 2024 | AF1: 2025
B2: Historical switch | C2: 2015 | G2: =Valuation!H3<=$C$2 -> TRUE | H2: =Valuation!I3<=$C$2 -> TRUE | I2: =Valuation!J3<=$C$2 -> TRUE | J2: =Valuation!K3<=$C$2 -> TRUE | K2: =Valuation!L3<=$C$2 -> TRUE | L2: =Valuation!M3<=$C$2 -> TRUE | M2: =Valuation!N3<=$C$2 -> TRUE | N2: =Valuation!O3<=$C$2 -> TRUE | O2: =Valuation!P3<=$C$2 -> TRUE | P2: =Valuation!Q3<=$C$2 -> TRUE | Q2: =Valuation!R3<=$C$2 -> TRUE | R2: =Valuation!S3<=$C$2 -> TRUE | S2: =Valuation!T3<=$C$2 -> TRUE | T2: =Valuation!U3<=$C$2 -> TRUE | U2: =Valuation!V3<=$C$2 -> TRUE | V2: =Valuation!W3<=$C$2 -> TRUE | W2: =Valuation!X3<=$C$2 -> FALSE | X2: =Valuation!Y3<=$C$2 -> FALSE | Y2: =Valuation!Z3<=$C$2 -> FALSE | Z2: =Valuation!AA3<=$C$2 -> FALSE | AA2: =Valuation!AB3<=$C$2 -> FALSE | AB2: =Valuation!AC3<=$C$2 -> FALSE | AC2: =Valuation!AD3<=$C$2 -> FALSE | AD2: =Valuation!AE3<=$C$2 -> FALSE | AE2: =Valuation!AF3<=$C$2 -> FALSE | AF2: =Valuation!AG3<=$C$2 -> FALSE
B3: Full data switch | C3: 2005 | G3: =AND(Valuation!H3>=$C$3,Valuation!H3<=$C$2) -> FALSE | H3: =AND(Valuation!I3>=$C$3,Valuation!I3<=$C$2) -> FALSE | I3: =AND(Valuation!J3>=$C$3,Valuation!J3<=$C$2) -> FALSE | J3: =AND(Valuation!K3>=$C$3,Valuation!K3<=$C$2) -> FALSE | K3: =AND(Valuation!L3>=$C$3,Valuation!L3<=$C$2) -> FALSE | L3: =AND(Valuation!M3>=$C$3,Valuation!M3<=$C$2) -> TRUE | M3: =AND(Valuation!N3>=$C$3,Valuation!N3<=$C$2) -> TRUE | N3: =AND(Valuation!O3>=$C$3,Valuation!O3<=$C$2) -> TRUE | O3: =AND(Valuation!P3>=$C$3,Valuation!P3<=$C$2) -> TRUE | P3: =AND(Valuation!Q3>=$C$3,Valuation!Q3<=$C$2) -> TRUE | Q3: =AND(Valuation!R3>=$C$3,Valuation!R3<=$C$2) -> TRUE | R3: =AND(Valuation!S3>=$C$3,Valuation!S3<=$C$2) -> TRUE | S3: =AND(Valuation!T3>=$C$3,Valuation!T3<=$C$2) -> TRUE | T3: =AND(Valuation!U3>=$C$3,Valuation!U3<=$C$2) -> TRUE | U3: =AND(Valuation!V3>=$C$3,Valuation!V3<=$C$2) -> TRUE | V3: =AND(Valuation!W3>=$C$3,Valuation!W3<=$C$2) -> TRUE | W3: =AND(Valuation!X3>=$C$3,Valuation!X3<=$C$2) -> FALSE | X3: =AND(Valuation!Y3>=$C$3,Valuation!Y3<=$C$2) -> FALSE | Y3: =AND(Valuation!Z3>=$C$3,Valuation!Z3<=$C$2) -> FALSE | Z3: =AND(Valuation!AA3>=$C$3,Valuation!AA3<=$C$2) -> FALSE | AA3: =AND(Valuation!AB3>=$C$3,Valuation!AB3<=$C$2) -> FALSE | AB3: =AND(Valuation!AC3>=$C$3,Valuation!AC3<=$C$2) -> FALSE | AC3: =AND(Valuation!AD3>=$C$3,Valuation!AD3<=$C$2) -> FALSE | AD3: =AND(Valuation!AE3>=$C$3,Valuation!AE3<=$C$2) -> FALSE | AE3: =AND(Valuation!AF3>=$C$3,Valuation!AF3<=$C$2) -> FALSE | AF3: =AND(Valuation!AG3>=$C$3,Valuation!AG3<=$C$2) -> FALSE
B4: Last historic year | G4: =Valuation!H3=$C$2 -> FALSE | H4: =Valuation!I3=$C$2 -> FALSE | I4: =Valuation!J3=$C$2 -> FALSE | J4: =Valuation!K3=$C$2 -> FALSE | K4: =Valuation!L3=$C$2 -> FALSE | L4: =Valuation!M3=$C$2 -> FALSE | M4: =Valuation!N3=$C$2 -> FALSE | N4: =Valuation!O3=$C$2 -> FALSE | O4: =Valuation!P3=$C$2 -> FALSE | P4: =Valuation!Q3=$C$2 -> FALSE | Q4: =Valuation!R3=$C$2 -> FALSE | R4: =Valuation!S3=$C$2 -> FALSE | S4: =Valuation!T3=$C$2 -> FALSE | T4: =Valuation!U3=$C$2 -> FALSE | U4: =Valuation!V3=$C$2 -> FALSE | V4: =Valuation!W3=$C$2 -> TRUE | W4: =Valuation!X3=$C$2 -> FALSE | X4: =Valuation!Y3=$C$2 -> FALSE | Y4: =Valuation!Z3=$C$2 -> FALSE | Z4: =Valuation!AA3=$C$2 -> FALSE | AA4: =Valuation!AB3=$C$2 -> FALSE | AB4: =Valuation!AC3=$C$2 -> FALSE | AC4: =Valuation!AD3=$C$2 -> FALSE | AD4: =Valuation!AE3=$C$2 -> FALSE | AE4: =Valuation!AF3=$C$2 -> FALSE | AF4: =Valuation!AG3=$C$2 -> FALSE
A5: . | B5: BALANCE SHEET | W5: Financing | X5: Direct | Y5: Net Debt | Z5: Total receivables | AA5: Total other current liabilities
B6: Intangible assets | L6: 20672 | M6: 21279 | N6: 21205 | O6: 84678 | P6: 81611 | Q6: 87813 | R6: 89041 | S6: 91216 | T6: 94236 | U6: 81754 | V6: 72920 | X6: 1
B7: Property plant and equipment | L7: 20355 | M7: 20367 | N7: 22109 | O7: 34043 | P7: 31825 | Q7: 32420 | R7: 31848 | S7: 31991 | T7: 31738 | U7: 28748 | V7: 26678 | X7: 1
B8: Investments in associates | L8: 1105 | M8: 579 | N8: 622 | O8: 2224 | P8: 2667 | Q8: 4877 | R8: 5051 | S8: 6241 | T8: 3771 | U8: 4277 | V8: 4676 | W8: -1
B9: Receivables | L9: 1235 | M9: 1139 | N9: 1476 | O9: 1707 | P9: 1604 | Q9: 1747 | R9: 1650 | S9: 2208 | T9: 2049 | U9: 2131 | V9: 1854 | X9: 1 | Z9: 1
B10: Deferred tax assets | L10: 1005 | M10: 822 | N10: 733 | O10: 1254 | P10: 1483 | Q10: 1301 | R10: 1199 | S10: 1170 | T10: 1130 | U10: 1430 | V10: 1697 | X10: 1
B11: Retirement benefit net assets | L11: 21 | M11: 14 | N11: 11 | O11: 2 | P11: 2 | Q11: 8 | R11: 5 | S11: 0 | T11: 0 | U11: 0 | V11: 0 | W11: -1 | Y11: -1
B12: Total non current assets | L12: =SUM(L6:L11) -> 44393 | M12: 44200 | N12: 46156 | O12: 123908 | P12: 119192 | Q12: 128166 | R12: 128794 | S12: 132826 | T12: 132924 | U12: 118340 | V12: 107825
B13: Current assets Inventories | L13: 2866 | M13: 3220 | N13: 3818 | O13: 5317 | P13: 3601 | Q13: 4191 | R13: 4350 | S13: 4541 | T13: 4592 | U13: 4498 | V13: 3817 | X13: 1
B14: Tax receivables | L14: 132 | M14: 84 | N14: 62 | O14: 262 | P14: 175 | Q14: 172 | R14: 129 | S14: 60 | T14: 203 | U14: 196 | V14: 324 | X14: 1 | Z14: 1
B15: Trade receivables | L15: 5979 | M15: 6108 | N15: 6341 | O15: 6369 | P15: 5898 | Q15: 5687 | R15: 7855 | S15: 7828 | T15: 7681 | U15: 6872 | V15: 5729 | X15: 1 | Z15: 1
B16: Other receivables | L16: 3015 | M16: 1145 | N16: 1453 | O16: 3095 | P16: 1750 | Q16: 1766 | R16: 1846 | S16: 2093 | T16: 1795 | U16: 2614 | V16: 2532 | X16: 1 | Z16: 1
B17: Cash and cash equivalents | L17: 2240 | M17: 2490 | N17: 2249 | O17: 2857 | P17: 2734 | Q17: 2735 | R17: 3145 | S17: 5760 | T17: 3612 | U17: 2418 | V17: 3131 | W17: -1 | Y17: -1
B18: Prepayments | L18: 587 | M18: 917 | N18: 950 | O18: 1211 | P18: 666 | Q18: 938 | R18: 867 | S18: 853 | T18: 1501 | U18: 977 | V18: 1074 | X18: 1 | Z18: 1
B19: Assets held for sale | L19: 328 | M19: 109 | N19: 34 | O19: 162 | P19: 388 | Q19: 419 | R19: 570 | S19: 0 | T19: 0 | U19: 0 | V19: 469 | W19: -1
B20: Securities | L20: 2710 | M20: 170 | N20: 123 | O20: 118 | P20: 94 | Q20: 124 | R20: 134 | S20: 0 | T20: 0 | U20: 0 | V20: 0 | W20: -1 | Y20: -1
B21: Total current assets | L21: =SUM(L13:L20) -> 17857 | M21: 14243 | N21: 15030 | O21: 19391 | P21: 15306 | Q21: 16032 | R21: 18896 | S21: 21135 | T21: 19384 | U21: 17575 | V21: 17076
B22: Assets classified as held for sale | L22: 0 | M22: 0 | N22: 0 | O22: 0 | P22: 0 | Q22: 0 | R22: 0 | S22: 0 | T22: 0 | U22: 1068 | V22: 0 | W22: -1
B23: Total assets | L23: =L22+L21+L12 -> 62250 | M23: 58443 | N23: 61186 | O23: 143299 | P23: 134498 | Q23: 144198 | R23: 147690 | S23: 153961 | T23: 152308 | U23: 136983 | V23: 124901
B24: Equity and liabilities
B25: Equity:
B26: Share capital | L26: 1526 | M26: 1526 | N26: 1.526000023 | O26: 3051 | P26: 3051 | Q26: 3051 | R26: 3051 | S26: 3051 | T26: 3051 | U26: 3051 | V26: 3051
B27: Reserves | L27: 16442 | M27: 16071 | N27: 17.09499931 | O27: 52470 | P27: -11816 | Q27: -7056 | R27: -8740 | S27: -6476 | T27: -13755 | U27: -31006 | V27: -35447
B28: Retained earnings | L28: 0 | M28: 0 | N28: 0 | O28: 0 | P28: 63594 | Q28: 68253 | R28: 71555 | S28: 73686 | T28: 78515 | U28: 80392 | V28: 75885
B29: Equity shareholders in Carlsberg A/S | L29: 17968 | M29: 17597 | N29: 18.62100029 | O29: 55521 | P29: 54829 | Q29: 64248 | R29: 65866 | S29: 70261 | T29: 67811 | U29: 52437 | V29: 43489
B30: Minority interests | L30: 1528 | M30: 1390 | N30: 1.322999954 | O30: 5230 | P30: 4660 | Q30: 5381 | R30: 5763 | S30: 3389 | T30: 3688 | U30: 3560 | V30: 3742
B31: Total equity | L31: =L29+L30 -> 19496 | M31: =M29+M30 -> 18987 | N31: 19944 | O31: =O29+O30 -> 60751 | P31: 59489 | Q31: 69629 | R31: 71629 | S31: 73650 | T31: 71499 | U31: 55997 | V31: 47231 | W31: 1
B32: Non current liabilities: Borrowings | L32: 17765 | M32: 16241 | N32: 19385 | O32: 43230 | P32: 36075 | Q32: 32587 | R32: 34364 | S32: 36706 | T32: 30686 | U32: 38690 | V32: 31479 | W32: 1 | Y32: 1
B33: Retirement benefit obligations and similar obligations | L33: 2061 | M33: 2006 | N33: 2220 | O33: 1793 | P33: 2153 | Q33: 2434 | R33: 3263 | S33: 3957 | T33: 3093 | U33: 4626 | V33: 5235 | W33: 1 | Y33: 1
B34: Deferred tax liabilities | L34: 2362 | M34: 2425 | N34: 2191 | O34: 9803 | P34: 9688 | Q34: 9947 | R34: 9652 | S34: 9682 | T34: 8837 | U34: 7147 | V34: 5924 | X34: -1
B35: Other liabilities | L35: 517 | M35: 512 | N35: 480 | O35: 933 | P35: 1821 | Q35: 1382 | R35: 1749 | S35: 1820 | T35: 3054 | U35: 1477 | V35: 2547 | W35: 1
B36: Total non current liabilities | L36: =SUM(L32:L35) -> 22705 | M36: 21184 | N36: 24276 | O36: 55759 | P36: 49737 | Q36: 46350 | R36: 49028 | S36: 52165 | T36: 45670 | U36: 51940 | V36: 45185
B37: Current liabilities: Borrowings | L37: 8213 | M37: 6556 | N37: 3869 | O37: 5291 | P37: 3322 | Q37: 3959 | R37: 1875 | S37: 3352 | T37: 9525 | U37: 1835 | V37: 4549 | W37: 1 | Y37: 1
B38: Trade payables | L38: 4513 | M38: 5147 | N38: 5833 | O38: 7993 | P38: 7929 | Q38: 9385 | R38: 11021 | S38: 11862 | T38: 12927 | U38: 12048 | V38: 12260 | X38: -1 | AA38: 0
B39: Deposits on returnable packaging | L39: 1224 | M39: 1159 | N39: 1207 | O39: 1455 | P39: 1361 | Q39: 1279 | R39: 1291 | S39: 1381 | T39: 1630 | U39: 2034 | V39: 1819 | X39: -1 | AA39: 1
B40: Corporation tax | L40: 720 | M40: 187 | N40: 197 | O40: 279 | P40: 411 | Q40: 534 | R40: 527 | S40: 537 | T40: 531 | U40: 796 | V40: 601 | X40: -1 | AA40: 1
B41: Provisions | L41: 195 | M41: 366 | N41: 249 | O41: 1498 | P41: 1353 | Q41: 1506 | R41: 1001 | S41: 1230 | T41: 1278 | U41: 3010 | V41: 3374 | X41: -1 | AA41: 1
B42: Other liabilities etc | L42: 5174 | M42: 4856 | N42: 5611 | O42: 9905 | P42: 10845 | Q42: 11378 | R42: 10490 | S42: 9784 | T42: 9248 | U42: 9323 | V42: 9794 | X42: -1 | AA42: 1
B43: Liabilities associated with assets held for sale | L43: 10 | M43: 1 | N43: 0 | O43: 368 | P43: 51 | Q43: 178 | R43: 828 | S43: 0 | T43: 0 | U43: 0 | V43: 88 | W43: 1
B44: Total current liabilities | L44: =SUM(L37:L43) -> 20049 | M44: 18272 | N44: 16966 | O44: 26789 | P44: 25272 | Q44: 28219 | R44: 27033 | S44: 28146 | T44: 35139 | U44: 29046 | V44: 32485
B45: Total liabilities | L45: =L44+L36 -> 42754 | M45: 39456 | N45: 41242 | O45: 82548 | P45: 75009 | Q45: 74569 | R45: 76061 | S45: 80311 | T45: 80809 | U45: 80986 | V45: 77670
B46: Total equity and liabilities | L46: =L31+L36+L44 -> 62250 | M46: 58443 | N46: 61186 | O46: 143299 | P46: 134498 | Q46: 144198 | R46: 147690 | S46: 153961 | T46: 152308 | U46: 136983 | V46: 124901
L47: =L46-L23 -> 0 | M47: 0 | N47: 0 | O47: 0 | P47: 0 | Q47: 0 | R47: 0 | S47: 0 | T47: 0 | U47: 0 | V47: 0
B48: Net capital invested associated with EBITDA | L48: =SUMPRODUCT(L6:L46,$W$6:$W$46) -> 41658 | M48: 40941 | N48: 42859 | O48: 107003 | P48: 97026 | Q48: 102006 | R48: 104803 | S48: 107484 | T48: 110474 | U48: 94862 | V48: 82853 | W48: =SUM(V13:V16) -> 12402
B49: Net finance Invested Capital | L49: =SUMPRODUCT(L6:L46,$X$6:$X$46) -> 41658 | M49: 40941 | N49: 42859 | O49: 107003 | P49: 97026 | Q49: 102006 | R49: 104803 | S49: 107484 | T49: 110474 | U49: 94862 | V49: 82853 | W49: =SUM(V38:V42) -> 27848
B50: Net Debt | L50: =SUMPRODUCT(L6:L46,$Y$6:$Y$46) -> 23068 | M50: 22129 | N50: 23091 | O50: 47337 | P50: 38720 | Q50: 36113 | R50: 36218 | S50: 38255 | T50: 39692 | U50: 42733 | V50: 38132 | W50: =W49-W48 -> 15446
B51: Other Liabilities | L51: =L35-L47 -> 517 | M51: 512 | N51: 480 | O51: 933 | P51: 1821 | Q51: 1382 | R51: 1749 | S51: 1820 | T51: 3054 | U51: 1477 | V51: 2547
B52: Total receivables | L52: =SUMPRODUCT(L6:L46,$Z$6:$Z$46) -> 10948 | M52: 9393 | N52: 10282 | O52: 12644 | P52: 10093 | Q52: 10310 | R52: 12347 | S52: 13042 | T52: 13229 | U52: 12790 | V52: 11513
B53: Total other current liabilities | L53: =SUMPRODUCT(L6:L46,$AA$6:$AA$46) -> 7313 | M53: 6568 | N53: 7264 | O53: 13137 | P53: 13970 | Q53: 14697 | R53: 13309 | S53: 12932 | T53: 12687 | U53: 15163 | V53: 15588
B54: Net Deferred Tax | H54: =H10-H34 -> 0 | I54: =I10-I34 -> 0 | J54: 0 | K54: 0 | L54: -1357 | M54: -1603 | N54: -1458 | O54: -8549 | P54: -8205 | Q54: -8646 | R54: -8453 | S54: -8512 | T54: -7707 | U54: -5717 | V54: -4227
B55: Other Assets | H55: =H14+H18 -> 0 | I55: =I14+I18 -> 0 | J55: 0 | K55: 0 | L55: 719 | M55: 1001 | N55: 1012 | O55: 1473 | P55: 841 | Q55: 1110 | R55: 996 | S55: 913 | T55: 1704 | U55: 1173 | V55: 1398
B57: Bridge between EV and Equity Value - Book Value
B58: Invested Capital | H58: =H48 -> 0 | I58: =I48 -> 0 | J58: 0 | K58: 0 | L58: 41658 | M58: 40941 | N58: 42859 | O58: 107003 | P58: 97026 | Q58: 102006 | R58: 104803 | S58: 107484 | T58: 110474 | U58: 94862 | V58: 82853
B59: Less: Equity Value | H59: =-H31 -> 0 | I59: =-I31 -> 0 | J59: 0 | K59: 0 | L59: -19496 | M59: -18987 | N59: -19944 | O59: -60751 | P59: -59489 | Q59: -69629 | R59: -71629 | S59: -73650 | T59: -71499 | U59: -55997 | V59: -47231
B60: Add: Minority Interest | H60: =H30 -> 0 | I60: =I30 -> 0 | J60: 0 | K60: 0 | L60: 1528 | M60: 1390 | N60: 1.322999954 | O60: 5230 | P60: 4660 | Q60: 5381 | R60: 5763 | S60: 3389 | T60: 3688 | U60: 3560 | V60: 3742
B61: Total Bridge | H61: =SUM(H58:H60) -> 0 | I61: =SUM(I58:I60) -> 0 | J61: 0 | K61: 0 | L61: 23690 | M61: 23344 | N61: 22916.323 | O61: 51482 | P61: 42197 | Q61: 37758 | R61: 38937 | S61: 37223 | T61: 42663 | U61: 42425 | V61: 39364
B63: Net Debt | H63: =H50 -> 0 | I63: =I50 -> 0 | J63: 0 | K63: 0 | L63: 23068 | M63: 22129 | N63: 23091 | O63: 47337 | P63: 38720 | Q63: 36113 | R63: 36218 | S63: 38255 | T63: 39692 | U63: 42733 | V63: 38132
B64: Less: Associated Investments | H64: =-H8 -> 0 | I64: =-I8 -> 0 | J64: 0 | K64: 0 | L64: -1105 | M64: -579 | N64: -622 | O64: -2224 | P64: -2667 | Q64: -4877 | R64: -5051 | S64: -6241 | T64: -3771 | U64: -4277 | V64: -4676
B65: Minority Interest | H65: =H60 -> 0 | I65: =I60 -> 0 | J65: 0 | K65: 0 | L65: 1528 | M65: 1390 | N65: 1.322999954 | O65: 5230 | P65: 4660 | Q65: 5381 | R65: 5763 | S65: 3389 | T65: 3688 | U65: 3560 | V65: 3742
B66: Other Liabilities | H66: =H51 -> 0 | I66: =I51 -> 0 | J66: 0 | K66: 0 | L66: 517 | M66: 512 | N66: 480 | O66: 933 | P66: 1821 | Q66: 1382 | R66: 1749 | S66: 1820 | T66: 3054 | U66: 1477 | V66: 2547
B67: Net Assets Held for Disposal | H67: =-H22+H43-H19 -> 0 | I67: =-I22+I43-I19 -> 0 | J67: 0 | K67: 0 | L67: -318 | M67: -108 | N67: -34 | O67: 206 | P67: -337 | Q67: -241 | R67: 258 | S67: 0 | T67: 0 | U67: -1068 | V67: -381
B68: Total Bridge | H68: =SUM(H63:H67) -> 0 | I68: =SUM(I63:I67) -> 0 | J68: 0 | K68: 0 | L68: 23690 | M68: 23344 | N68: 22916.323 | O68: 51482 | P68: 42197 | Q68: 37758 | R68: 38937 | S68: 37223 | T68: 42663 | U68: 42425 | V68: 39364
H70: =H61-H68 -> 0 | I70: =I61-I68 -> 0 | J70: 0 | K70: 0 | L70: 0 | M70: 0 | N70: 0 | O70: 0 | P70: 0 | Q70: 0 | R70: 0 | S70: 0 | T70: 0 | U70: 0 | V70: 0
A72: . | B72: PROFIT AND LOSS
B73: Revenue | L73: 51847 | M73: 55753 | N73: 60111 | O73: 76557 | P73: 75676 | Q73: 81295 | R73: 86555 | S73: 93100 | T73: 91237 | U73: 91569 | V73: 91012
B74: Excise duties on beer and soft drinks etc | L74: -13800 | M74: -14670 | N74: -15361 | O74: -16613 | P74: -16294 | Q74: -21241 | R74: -22994 | S74: -25899 | T74: -26887 | U74: -27063 | V74: -25658
B75: Net revenue | L75: 38047 | M75: 41083 | N75: 44750 | O75: 59944 | P75: 59382 | Q75: 60054 | R75: 63561 | S75: 67201 | T75: 64350 | U75: 64506 | V75: 65354
B76: Cost of sales | L76: -18879 | M76: -20151 | N76: -22423 | O76: -31248 | P76: -30197 | Q76: -28982 | R76: -31788 | S76: -33831 | T76: -32423 | U76: -32725 | V76: -33429
B77: Gross profit | L77: 19168 | M77: 20932 | N77: 22327 | O77: 28696 | P77: 29185 | Q77: 31072 | R77: 31773 | S77: 33370 | T77: 31927 | U77: 31781 | V77: 31925
B78: Sales and distribution expenses | L78: -13332 | M78: -14173 | N78: -14528 | O78: -17592 | P78: -15989 | Q78: -17158 | R78: -18483 | S78: -19645 | T78: -18181 | U78: -18695 | V78: -19158
B79: Administrative expenses | L79: -2961 | M79: -3065 | N79: -3123 | O79: -3934 | P79: -3873 | Q79: -4040 | R79: -3903 | S79: -4185 | T79: -4415 | U79: -4633 | V79: -4909
B80: Other operating income | L80: 876 | M80: 660 | N80: 933 | O80: 1178 | P80: 554 | Q80: 815 | R80: 671 | S80: 589 | T80: 22 | U80: 369 | V80: 235
B81: Other operating expenses | L81: -465 | M81: -393 | N81: -448 | O81: -450 | P81: -599 | Q81: -588 | R81: -422 | S81: -444 | T81: 0 | U81: 0 | V81: 0
B82: Share of profit after tax associates | L82: 232 | M82: 85 | N82: 101 | O82: 81 | P82: 112 | Q82: 148 | R82: 180 | S82: 108 | T82: 370 | U82: 408 | V82: 364
B83: Operating profit before special items | L83: 3518 | M83: 4046 | N83: 5262 | O83: 7979 | P83: 9390 | Q83: 10249 | R83: 9816 | S83: 9793 | T83: 9723 | U83: 9230 | V83: 8457
B84: Special items net | L84: -386 | M84: -160 | N84: -427 | O84: -1641 | P84: -695 | Q84: -249 | R84: -268 | S84: 85 | T84: -435 | U84: -1353 | V84: -8659
B85: Financial expenses | L85: -1788 | M85: -1582 | N85: -1852 | O85: -4766 | P85: -3599 | Q85: -3240 | R85: -2648 | S85: -2672 | T85: -2223 | U85: -1997 | V85: -2021
B86: Financial income | L86: 548 | M86: 725 | N86: 651 | O86: 1310 | P86: 609 | Q86: 1085 | R86: 630 | S86: 900 | T86: 717 | U86: 806 | V86: 490
B87: Profit before tax | L87: 1892 | M87: 3029 | N87: 3634 | O87: 2882 | P87: 5705 | Q87: 7845 | R87: 7530 | S87: 8106 | T87: 7782 | U87: 6686 | V87: -1733
B88: Corporation tax | L88: -521 | M88: -858 | N88: -1038 | O88: 324 | P88: -1538 | Q88: -1885 | R88: -1838 | S88: -1861 | T88: -1833 | U88: -1748 | V88: -849
B89: Consolidated profit | L89: 1371 | M89: 2171 | N89: 2596 | O89: 3206 | P89: 4167 | Q89: 5960 | R89: 5692 | S89: 6245 | T89: 5949 | U89: 4938 | V89: -2582
B90: Attributable to: Minority interests | L90: 261 | M90: 287 | N90: 299 | O90: 575 | P90: 565 | Q90: 609 | R90: 543 | S90: 638 | T90: 478 | U90: 524 | V90: 344
B91: Shareholders in Carlsberg A/S | L91: 1110 | M91: 1884 | N91: 2297 | O91: 2631 | P91: 3602 | Q91: 5351 | R91: 5149 | S91: 5607 | T91: 5471 | U91: 4414 | V91: -2926
B92: Diluted earnings per share | L92: 14.60000038 | M92: 24.60000038 | N92: 24.20000076 | O92: 22.20000076 | P92: 11 | Q92: 35 | R92: 33.70000076 | S92: 36.70000076 | T92: 35.70000076 | U92: 28.79999924 | V92: -19.20000076
B93: Earnings per share Basic earnings per share | L93: 14.60000038 | M93: 24.70000076 | N93: 24.29999924 | O93: 22.20000076 | P93: 23.60000038 | Q93: 35.09999847 | R93: 33.79999924 | S93: 36.79999924 | T93: 35.90000153 | U93: 28.89999962 | V93: -19.20000076
A96: . | B96: STATEMENT OF CASH FLOW
B97: Operating profit before special items | L97: 3518 | M97: 4046 | N97: 5262 | O97: 7979 | P97: 9390 | Q97: 10249 | R97: 9816 | S97: 9793 | T97: 9723 | U97: 9230 | V97: 8457
B98: Adjustment for depreciation and amortisation | L98: 2796 | M98: 2953 | N98: 2768 | O98: 3627 | P98: 3769 | Q98: 3987 | R98: 3780 | S98: 3991 | T98: 3863 | U98: 4103 | V98: 4674
B99: Adjustment for impairment losses | L99: 0 | M99: 36 | N99: 104 | O99: 4 | P99: 10 | Q99: 0 | R99: 4 | S99: 28 | T99: 6 | U99: 5 | V99: 82
B100: Operating profit before depreciation amortisation and impairment | L100: 6314 | M100: 7035 | N100: 8134 | O100: 11610 | P100: 13169 | Q100: 14236 | R100: 13600 | S100: 13812 | T100: 13592 | U100: 13338 | V100: 13213
B101: Adjustment for other non cash items | L101: -309 | M101: -173 | N101: -403 | O101: -604 | P101: 265 | Q101: 493 | R101: 315 | S101: 334 | T101: -221 | U101: -514 | V101: -374
B102: Change in working capital | L102: 1002 | M102: 389 | N102: -230 | O102: 1556 | P102: 3675 | Q102: 716 | R102: -571 | S102: 852 | T102: 620 | U102: -177 | V102: 1284
B103: Change in other working capital | L103: 0 | M103: 0 | N103: 0 | O103: 0 | P103: 0 | Q103: 0 | R103: -421 | S103: -523 | T103: -843 | U103: -682 | V103: 561
B104: Interest etc paid | L104: -1235 | M104: -1512 | N104: -1507 | O104: -3010 | P104: -1852 | Q104: -2344 | R104: -2288 | S104: -2350 | T104: -2424 | U104: -2219 | V104: -2050
B105: Interest etc received | L105: 123 | M105: 186 | N105: 187 | O105: 256 | P105: 255 | Q105: 255 | R105: 218 | S105: 354 | T105: 329 | U105: 224 | V105: 232
B106: Restructuring costs paid | L106: -537 | M106: -477 | N106: -379 | O106: -482 | P106: -507 | Q106: -446 | R106: -448 | S106: -324 | T106: -617 | U106: -397 | V106: -586
B107: Corporation tax paid | L107: -624 | M107: -978 | N107: -965 | O107: -1514 | P107: -1374 | Q107: -1890 | R107: -1592 | S107: -2284 | T107: -2294 | U107: -2168 | V107: -2140
B108: Cash flow from operating activities | L108: 4734 | M108: 4470 | N108: 4837 | O108: 7812 | P108: 13631 | Q108: 11020 | R108: 8813 | S108: 9871 | T108: 8142 | U108: 7405 | V108: 10140
B109: Acquisition of property plant and equipment and intangible assets | L109: -3010 | M109: -3188 | N109: -4929 | O109: -5292 | P109: -2767 | Q109: -3326 | R109: -4329 | S109: -5067 | T109: -5582 | U109: -5888 | V109: -4069
B110: Disposal of property plant and equipment and intangible assets | L110: 427 | M110: 305 | N110: 351 | O110: 374 | P110: 255 | Q110: 181 | R110: 276 | S110: 440 | T110: 149 | U110: 261 | V110: 575
B111: Total operational investments | L111: -2615 | M111: -3083 | N111: -4721 | O111: -5208 | P111: -2923 | Q111: -3575 | R111: -4571 | S111: -5074 | T111: -5385 | U111: -5549 | V111: -3307
B112: Change in trade loans | L112: -32 | M112: -200 | N112: -143 | O112: -290 | P112: -411 | Q112: -430 | R112: -518 | S112: -447 | T112: 48 | U112: 78 | V112: 187
B113: Acquisition and divestment of entities net | L113: -738 | M113: 18 | N113: -179 | O113: -51444 | P113: 95 | Q113: -477 | R113: -260 | S113: -27 | T113: 0 | U113: 0 | V113: 0
B114: Acquisition of financial assets | L114: -710 | M114: -82 | N114: 0 | O114: 0 | P114: 0 | Q114: 0 | R114: 0 | S114: 0 | T114: 0 | U114: 0 | V114: 0
B115: Free operating cash flow | L115: 0 | M115: 0 | N115: 0 | O115: 0 | P115: 10708 | Q115: 7445 | R115: 4242 | S115: 4797 | T115: 2757 | U115: 1856 | V115: 6833
B116: Acquisition and disposal of entities net | L116: 0 | M116: 0 | N116: 0 | O116: 0 | P116: 0 | Q116: 0 | R116: 0 | S116: 0 | T116: -2314 | U116: -1681 | V116: -33
B117: Acquisitions of associated companies | L117: 0 | M117: 0 | N117: 0 | O117: -587 | P117: -48 | Q117: -2041 | R117: 0 | S117: 0 | T117: 0 | U117: 0 | V117: 0
B118: Disposals of associated companies | L118: 0 | M118: 0 | N118: 0 | O118: 300 | P118: -7 | Q118: 0 | R118: 15 | S118: 3 | T118: 0 | U118: 0 | V118: 0
B119: Acquisitions of associates | L119: 0 | M119: 0 | N119: 0 | O119: 0 | P119: 0 | Q119: 0 | R119: -75 | S119: -825 | T119: -191 | U119: -90 | V119: 9
B120: Acquisition of financial assets | L120: 0 | M120: 0 | N120: -43 | O120: -961 | P120: -11 | Q120: -35 | R120: -9 | S120: -39 | T120: 5 | U120: 25 | V120: 29
B121: Change in financial receivables | L121: -1620 | M121: 1834 | N121: -86 | O121: 427 | P121: -98 | Q121: -233 | R121: -47 | S121: -28 | T121: -250 | U121: 400 | V121: -193
B122: Disposal of financial assets | L122: 2002 | M122: 1494 | N122: 37 | O122: 39 | P122: 44 | Q122: 18 | R122: 7 | S122: 25 | T122: 0 | U122: 0 | V122: 0
B123: Dividends received | L123: 245 | M123: 70 | N123: 127 | O123: 75 | P123: 56 | Q123: 93 | R123: 58 | S123: 100 | T123: 141 | U123: 180 | V123: 305
B124: Other investments in property plant and equipment | L124: -176 | M124: -371 | N124: -667 | O124: -1117 | P124: -388 | Q124: -51 | R124: -36 | S124: -6 | T124: -18 | U124: -20 | V124: -81
B125: Disposal of other property plant and equipment | L125: 1258 | M125: 185 | N125: 605 | O125: 1323 | P125: 198 | Q125: 460 | R125: 35 | S125: 1897 | T125: 0 | U125: 0 | V125: 653
B126: Total financial investments | L126: -821 | M126: 3334 | N126: -144 | O126: -52151 | P126: 31 | Q126: -2675 | R126: -311 | S126: -791 | T126: -2609 | U126: -1166 | V126: 117
B127: Total other activities | L127: 1082 | M127: -186 | N127: -62 | O127: 206 | P127: -190 | Q127: 409 | R127: -1 | S127: 1891 | T127: -18 | U127: -20 | V127: 572
B128: Cash flow from investing activities | L128: -2354 | M128: 65 | N128: -4927 | O128: -57153 | P128: -3082 | Q128: -5841 | R128: -4883 | S128: -3974 | T128: -8012 | U128: -6735 | V128: -2618
B129: Free cash flow | L129: 2380 | M129: 4535 | N129: -90 | O129: -49341 | P129: 10549 | Q129: 5179 | R129: 3930 | S129: 5897 | T129: 130 | U129: 670 | V129: 7522
B130: Shareholders in Carlsberg A/S | L130: -325 | M130: -397 | N130: -508 | O130: 29482 | P130: -540 | Q130: -581 | R130: -812 | S130: -864 | T130: -985 | U130: -1234 | V130: -1505
B131: Minority interests | L131: -1581 | M131: -701 | N131: -451 | O131: -549 | P131: 0 | Q131: 0 | R131: 0 | S131: 0 | T131: 0 | U131: 0 | V131: 0
B132: External financing | L132: -84 | M132: -3592 | N132: 775 | O132: 21151 | P132: -8862 | Q132: -3950 | R132: -1003 | S132: 2473 | T132: -67 | U132: 82 | V132: -4557
B133: Non controlling interests | L133: 0 | M133: 0 | N133: 0 | O133: 0 | P133: -591 | Q133: -878 | R133: -1876 | S133: -5198 | T133: -677 | U133: -663 | V133: -513
B134: Cash flow from financing activities | L134: -1990 | M134: -4690 | N134: -184 | O134: 50084 | P134: -9993 | Q134: -5409 | R134: -3691 | S134: -3589 | T134: -1729 | U134: -1815 | V134: -6575
B135: Cash and cash equivalents at January | L135: 1500 | M135: 1940 | N135: 1708 | O135: 1351 | P135: 2065 | Q135: 2583 | R135: 2601 | S135: 2835 | T135: 5000 | U135: 3234 | V135: 2178
B136: Net cash flow | L136: 390 | M136: -155 | N136: -274 | O136: 743 | P136: 556 | Q136: -230 | R136: 239 | S136: 2308 | T136: -1599 | U136: -1145 | V136: 947
B137: Foreign exchange adjustment of cash and cash equivalents | L137: 50 | M137: -77 | N137: -83 | O137: -29 | P137: -38 | Q137: 248 | R137: -5 | S137: -84 | T137: -167 | U137: 89 | V137: -105
B138: Cash and cash equivalents at December | L138: 1940 | M138: 1708 | N138: 1351 | O138: 2065 | P138: 2583 | Q138: 2601 | R138: 2835 | S138: 5059 | T138: 3234 | U138: 2178 | V138: 3020
A139: . | B139: SUMMARY
B140: Sales volumes gross million hl
B141: Beer | G141: 39.79999924 | H141: 67 | I141: 78.59999847 | J141: 81.40000153 | K141: 92 | L141: 101.5999985 | M141: 100.6999969 | N141: 115.1999969 | O141: 126.8000031 | P141: 137 | Q141: 136.5 | R141: 139.8000031 | S141: 140.8999939 | T141: 138.6999969 | U141: 134.5 | V141: 131.8000031
B142: Other beverages | G142: 14.80000019 | H142: 21.20000076 | I142: 20.89999962 | J142: 21.20000076 | K142: 19.39999962 | L142: 19.10000038 | M142: 20.20000076 | N142: 20.79999924 | O142: 22.29999924 | P142: 22.20000076 | Q142: 22.5 | R142: 22.20000076 | S142: 22 | T142: 21.5 | U142: 22.70000076 | V142: 23.29999924
B143: Net revenue | G143: 25650 | H143: 34419 | I143: 35544 | J143: 34626 | K143: 35987 | L143: 38047 | M143: 41083 | N143: 44750 | O143: 59944 | P143: 59382 | Q143: 60054 | R143: 63561 | S143: 66468 | T143: 64350 | U143: 64506 | V143: 65354
B144: Operating profit before special items | G144: 1995 | H144: 3294 | I144: 3779 | J144: 3564 | K144: 3442 | L144: 3518 | M144: 4046 | N144: 5262 | O144: 7978 | P144: 9390 | Q144: 10249 | R144: 9816 | S144: 9793 | T144: 9723 | U144: 9230 | V144: 8457
B145: Operating profit before depreciation amortisation and impairment losses | G145: 0 | H145: 0 | I145: 0 | J145: 0 | K145: 0 | L145: 0 | M145: 0 | N145: 0 | O145: 0 | P145: 0 | Q145: 10249 | R145: 13600 | S145: 13812 | T145: 13592 | U145: 13338 | V145: 13213
B146: Special items net | G146: 363 | H146: 32 | I146: -23 | J146: -401 | K146: -301 | L146: -386 | M146: -160 | N146: -427 | O146: -1641 | P146: -695 | Q146: -249 | R146: -268 | S146: 85 | T146: -435 | U146: -1353 | V146: -8659
B147: Goodwill amortisation and impairments | G147: -1664 | H147: -303 | I147: -375 | J147: -379 | K147: -976 | L147: 0 | M147: 0 | N147: 0 | O147: 0 | P147: 0 | Q147: 0 | R147: 0 | S147: 0 | T147: 0 | U147: 0 | V147: 0
B148: Financial items net | G148: -264 | H148: -255 | I148: -884 | J148: -475 | K148: -1079 | L148: -1240 | M148: -857 | N148: -1201 | O148: -3456 | P148: -2990 | Q148: -2155 | R148: -2018 | S148: -1772 | T148: -1506 | U148: -1191 | V148: -1531
B150: Profit before tax | G150: 2094 | H150: 3071 | I150: 2872 | J150: 2688 | K150: 2062 | L150: 1892 | M150: 3029 | N150: 3634 | O150: 2881 | P150: 5705 | Q150: 7845 | R150: 7530 | S150: 8106 | T150: 7782 | U150: 6686 | V150: -1733
B151: Corporation tax | G151: -547 | H151: -617 | I151: -723 | J151: -590 | K151: -459 | L151: -521 | M151: -858 | N151: -1038 | O151: 312 | P151: -1538 | Q151: -1885 | R151: -1838 | S151: -1861 | T151: -1833 | U151: -1748 | V151: -849
B152: Consolidated profit | G152: -117 | H152: 2151 | I152: 1774 | J152: 1719 | K152: 627 | L152: 1371 | M152: 2171 | N152: 2596 | O152: 3193 | P152: 4167 | Q152: 5960 | R152: 5692 | S152: 6245 | T152: 5949 | U152: 4938 | V152: -2582
B153: Attributable to: Non controlling interests | G153: -151 | H153: 957 | I153: 763 | J153: 763 | K153: 150 | L153: 261 | M153: 287 | N153: 299 | O153: 572 | P153: 565 | Q153: 609 | R153: 543 | S153: 638 | T153: 478 | U153: 524 | V153: 344
B154: Shareholders in Carlsberg A/S | G154: 34 | H154: 1194 | I154: 1011 | J154: 956 | K154: 477 | L154: 1110 | M154: 1884 | N154: 2297 | O154: 2621 | P154: 3602 | Q154: 5351 | R154: 5149 | S154: 5607 | T154: 5471 | U154: 4414 | V154: -2926
B155: Shareholders in Carlsberg A/S adjusted | G155: 1698 | H155: 1370 | I155: 1011 | J155: 1179 | K155: 1425 | L155: 1110 | M155: 1884 | N155: 2297 | O155: 4077 | P155: 4170 | Q155: 5425 | R155: 5203 | S155: 5504 | T155: 5772 | U155: 5496 | V155: 4557
B156: Statement of financial position Total assets | G156: 40168 | H156: 47455 | I156: 46523 | J156: 46712 | K156: 56731 | L156: 62359 | M156: 58451 | N156: 61220 | O156: 142639 | P156: 134515 | Q156: 144250 | R156: 147714 | S156: 153961 | T156: 152308 | U156: 137458 | V156: 124901
B157: Equity shareholders in Carlsberg A/S | G157: 12529 | H157: 12041 | I157: 10836 | J157: 11276 | K157: 14410 | L157: 17968 | M157: 17597 | N157: 18621 | O157: 54750 | P157: 54829 | Q157: 64248 | R157: 65866 | S157: 70261 | T157: 67811 | U157: 52437 | V157: 43489
B158: Interest bearing debt net | G158: 10309 | H158: 10918 | I158: 10923 | J158: 8929 | K158: 21733 | L158: 20753 | M158: 19229 | N158: 19726 | O158: 44156 | P158: 35679 | Q158: 32743 | R158: 32460 | S158: 32480 | T158: 34610 | U158: 36567 | V158: 30945
B159: Invested capital | G159: 26636 | H159: 32195 | I159: 30971 | J159: 29255 | K159: 43198 | L159: 42734 | M159: 43160 | N159: 45394 | O159: 118643 | P159: 109538 | Q159: 117119 | R159: 118196 | S159: 121467 | T159: 119112 | U159: 104006 | V159: 90102
B160: Invested capital excluding goodwill | G160: 0 | H160: 0 | I160: 0 | J160: 0 | K160: 0 | L160: 0 | M160: 0 | N160: 0 | O160: 0 | P160: 0 | Q160: 66281 | R160: 62199 | S160: 67553 | T160: 61946 | U160: 51143 | V160: 39832
B161: Return on invested capital ROIC | G161: 7.5 | H161: 10.19999981 | I161: 12.19999981 | J161: 12.19999981 | K161: 8 | L161: 7.800000191 | M161: 9.199999809 | N161: 11.69999981 | O161: 8.199999809 | P161: 8.199999809 | Q161: 8.800000191 | R161: 8.399999619 | S161: 8 | T161: 8.100000381 | U161: 8 | V161: 8.100000381
B162: ROIC excl goodwill | G162: 0 | H162: 0 | I162: 0 | J162: 0 | K162: 0 | L162: 0 | M162: 0 | N162: 0 | O162: 0 | P162: 0 | Q162: 15.39999962 | R162: 14.69999981 | S162: 14.30000019 | T162: 14.5 | U162: 15.30000019 | V162: 16.89999962
B164: Free cash flow | G164: -3752 | H164: -1299 | I164: 1604 | J164: 2613 | K164: 1512 | L164: 2380 | M164: 4535 | N164: -90 | O164: -49341 | P164: 10549 | Q164: 5179 | R164: 3930 | S164: 5897 | T164: 130 | U164: 670 | V164: 7522
B165: Statement of cash flows | G165: 0 | H165: 0 | I165: 0 | J165: 0 | K165: 0 | L165: 0 | M165: 0 | N165: 4837 | O165: 0 | P165: 0 | R165: 8813 | S165: 9871 | T165: 8142 | U165: 7405 | V165: 10140
B166: Acquisition and disposal of entities net | G166: 0 | H166: 0 | I166: 0 | J166: 0 | K166: 0 | L166: 0 | M166: 0 | N166: -179 | O166: -51438 | P166: 95 | Q166: -477 | R166: -260 | S166: -27 | T166: -2314 | U166: -1681 | V166: -33
B167: Cash flow from operating activities | G167: 2305 | H167: 2215 | I167: 5550 | J167: 4517 | K167: 3806 | L167: 4734 | M167: 4470 | N167: 0 | O167: 7812 | P167: 13631 | Q167: 11020 | R167: 0 | S167: 0 | T167: 0 | U167: 0 | V167: 0
B168: Acquisition and disposal of property plant and equipment net | G168: 2770 | H168: 3551 | I168: 2991 | J168: 1218 | K168: 1141 | L168: 0 | M168: 2864 | N168: 0 | O168: 0 | P168: 0 | Q168: 0 | R168: 0 | S168: 0 | T168: 0 | U168: 0 | V168: 0
B169: Investments Acquisition and disposal of property plant and equipment net | G169: 4309 | H169: 1996 | I169: 1131 | J169: 143 | K169: 4252 | L169: 1323 | M169: -18 | N169: -4596 | O169: -4669 | P169: -2342 | Q169: -2197 | R169: -3618 | S169: -2264 | T169: -4522 | U169: -4828 | V169: -2439
B170: Cash flow from investing activities | G170: -6057 | H170: -3514 | I170: -3946 | J170: -1904 | K170: -2294 | L170: -2354 | M170: 65 | N170: -4927 | O170: -57153 | P170: -3082 | Q170: -5841 | R170: -4883 | S170: -3974 | T170: -8012 | U170: -6735 | V170: -2618
B172: Financial ratios Operating margin | G172: 7.800000191 | H172: 9.600000381 | I172: 10.60000038 | J172: 10.30000019 | K172: 9.600000381 | L172: 9.199999809 | M172: 9.800000191 | N172: 11.80000019 | O172: 13.30000019 | P172: 15.80000019 | Q172: 17.10000038 | R172: 15.39999962 | S172: 14.60000038 | T172: 15.10000038 | U172: 14.30000019 | V172: 12.89999962
B173: Debt/equity ratio financial gearing x | G173: 0.8199999928 | H173: 0.9100000262 | I173: 1.00999999 | J173: 0.7900000215 | K173: 1.50999999 | L173: 1.059999943 | M173: 1.090000033 | N173: 0.9900000095 | O173: 0.7400000095 | P173: 0.6000000238 | Q173: 0.4699999988 | R173: 0.4499999881 | S173: 0.4399999976 | T173: 0.4799999893 | U173: 0.6499999762 | V173: 0.6600000262
B174: Debt/operating profit before depreciation and amortisation x | G174: 0 | H174: 0 | I174: 1.700000048 | J174: 0 | K174: 0 | L174: 3.289999962 | M174: 2.730000019 | N174: 2.430000067 | O174: 3.799999952 | P174: 2.710000038 | Q174: 2.299999952 | R174: 2.390000105 | S174: 2.349999905 | T174: 2.549999952 | U174: 2.74000001 | V174: 2.339999914
B175: Interest cover x | G175: 7.559999943 | H175: 12.92000008 | I175: 4.269999981 | J175: 7.5 | K175: 3.190000057 | L175: 2.839999914 | M175: 4.71999979 | N175: 4.380000114 | O175: 2.309999943 | P175: 3.140000105 | Q175: 4.760000229 | R175: 4.860000134 | S175: 5.53000021 | T175: 6.460000038 | U175: 7.75 | V175: 5.53000021
B176: Equity ratio | G176: 31.20000076 | H176: 25.39999962 | I176: 23.29999924 | J176: 24.10000038 | K176: 25.39999962 | L176: 31.29999924 | M176: 30.10000038 | N176: 30.39999962 | O176: 38.40000153 | P176: 40.79999924 | Q176: 44.5 | R176: 44.59999847 | S176: 45.59999847 | T176: 45.20000076 | U176: 38.29999924 | V176: 34.79999924
B178: Stock market ratios Earnings per share EPS DKK | G178: 0.5 | H178: 18.70000076 | I178: 16.60000038 | J178: 15.69999981 | K178: 6.699999809 | L178: 11.69999981 | M178: 24.70000076 | N178: 24.29999924 | O178: 22.10000038 | P178: 23.60000038 | Q178: 35.09999847 | R178: 33.79999924 | S178: 36.79999924 | T178: 35.90000153 | U178: 28.89999962 | V178: -19.20000076
B179: Earnings per share adjusted EPS A DKK | G179: 0 | H179: 0 | I179: 0 | J179: 0 | K179: 0 | L179: 0 | M179: 0 | N179: 0 | O179: 34.29999924 | P179: 27.29999924 | Q179: 35.59999847 | R179: 34.09999847 | S179: 36.09999847 | T179: 37.79999924 | U179: 36 | V179: 29.89999962
B180: Earnings per share before goodwill amortisation DKK | G180: 14 | H180: 21.5 | I180: 0 | J180: 19.39999962 | K180: 20.10000038 | L180: 0 | M180: 0 | N180: 0 | O180: 0 | P180: 0 | Q180: 0 | R180: 0 | S180: 0 | T180: 0 | U180: 0 | V180: 0
B181: Dividend per share proposed DKK | G181: 5.400000095 | H181: 5 | I181: 5 | J181: 5 | K181: 5 | L181: 4 | M181: 6 | N181: 4.800000191 | O181: 3.5 | P181: 3.5 | Q181: 5 | R181: 5.5 | S181: 6 | T181: 8 | U181: 9 | V181: 9
B182: Free cash flow per share FCFPS DKK | G182: 0 | H182: 0 | I182: 26.39999962 | J182: 0 | K182: 0 | L182: 25.20000076 | M182: 59.5 | N182: -1 | O182: -415.3999939 | P182: 69.09999847 | Q182: 33.90000153 | R182: 25.70000076 | S182: 38.59999847 | T182: 0.8999999762 | U182: 4.400000095 | V182: 49.20000076
B183: Cash flow from operating activities per share CFPS DKK | G183: 40.40000153 | H183: 34.70000076 | I183: 91.19999695 | J183: 74.19999695 | K183: 53.59999847 | L183: 50.09999847 | M183: 58.59999847 | N183: 51.20000076 | O183: 65.80000305 | P183: 89.30000305 | Q183: 72.09999847 | R183: 57.70000076 | S183: 64.59999847 | T183: 53.40000153 | U183: 48.40000153 | V183: 66.30000305
B184: Payout ratio | G184: 0 | H184: 27 | I184: 30 | J184: 32 | K184: 80 | L184: 34 | M184: 24 | N184: 20 | O184: 20 | P184: 15 | Q184: 14 | R184: 0 | S184: 16 | T184: 16 | U184: 22 | V184: 31
B185: Payout ratio adjusted | G185: 0 | H185: 0 | I185: 0 | J185: 0 | K185: 0 | L185: 0 | M185: 0 | N185: 0 | O185: 0 | P185: 0 | Q185: 14 | R185: 16 | S185: 17 | T185: 21 | U185: 25 | V185: 30
B186: Share price B shares DKK | G186: 440.1000061 | H186: 329.7999878 | I186: 295.1000061 | J186: 259.5 | K186: 278.1000061 | L186: 272.7999878 | M186: 561 | N186: 498.1000061 | O186: 171.3000031 | P186: 384 | Q186: 558.5 | R186: 405 | S186: 554 | T186: 600 | U186: 478.7999878 | V186: 612.5
B187: Number of shares year end | G187: 63906 | H187: 63906 | I187: 63906 | J187: 63906 | K187: 76278 | L187: 0 | M187: 0 | N187: 0 | O187: 0 | P187: 0 | Q187: 0 | R187: 0 | S187: 0 | T187: 0 | U187: 0 | V187: 0
B188: Number of shares average excl treasury shares | G188: 63706 | H188: 63706 | I188: 60862 | J188: 60862 | K188: 71006 | L188: 94433 | M188: 76265 | N188: 94466 | O188: 118778 | P188: 152550 | Q188: 152548 | R188: 152538 | S188: 152543 | T188: 152548 | U188: 152535 | V188: 152542

Sheet Assumptions and Free Cash Flow
I1: 2001 | J1: 2002 | K1: 2003 | L1: 2004 | M1: 2005 | N1: 2006 | O1: 2007 | P1: 2008 | Q1: 2009 | R1: 2010 | S1: 2011 | T1: 2012 | U1: 2013 | V1: 2014 | W1: 2015 | X1: 2016 | Y1: 2017 | Z1: 2018 | AA1: 2019 | AB1: 2020 | AC1: 2021 | AD1: 2022 | AE1: 2023 | AF1: 2024 | AG1: 2025
C2: Historical switch | D2: 2015 | H2: =Valuation!H3<=$D$2 -> TRUE | I2: =Valuation!I3<=$D$2 -> TRUE | J2: =Valuation!J3<=$D$2 -> TRUE | K2: =Valuation!K3<=$D$2 -> TRUE | L2: =Valuation!L3<=$D$2 -> TRUE | M2: =Valuation!M3<=$D$2 -> TRUE | N2: =Valuation!N3<=$D$2 -> TRUE | O2: =Valuation!O3<=$D$2 -> TRUE | P2: =Valuation!P3<=$D$2 -> TRUE | Q2: =Valuation!Q3<=$D$2 -> TRUE | R2: =Valuation!R3<=$D$2 -> TRUE | S2: =Valuation!S3<=$D$2 -> TRUE | T2: =Valuation!T3<=$D$2 -> TRUE | U2: =Valuation!U3<=$D$2 -> TRUE | V2: =Valuation!V3<=$D$2 -> TRUE | W2: =Valuation!W3<=$D$2 -> TRUE | X2: =Valuation!X3<=$D$2 -> FALSE | Y2: =Valuation!Y3<=$D$2 -> FALSE | Z2: =Valuation!Z3<=$D$2 -> FALSE | AA2: =Valuation!AA3<=$D$2 -> FALSE | AB2: =Valuation!AB3<=$D$2 -> FALSE | AC2: =Valuation!AC3<=$D$2 -> FALSE | AD2: =Valuation!AD3<=$D$2 -> FALSE | AE2: =Valuation!AE3<=$D$2 -> FALSE | AF2: =Valuation!AF3<=$D$2 -> FALSE | AG2: =Valuation!AG3<=$D$2 -> FALSE
C3: Full data switch | D3: 2005 | H3: =AND(Valuation!H3>=$D$3,Valuation!H3<=$D$2) -> FALSE | I3: =AND(Valuation!I3>=$D$3,Valuation!I3<=$D$2) -> FALSE | J3: =AND(Valuation!J3>=$D$3,Valuation!J3<=$D$2) -> FALSE | K3: =AND(Valuation!K3>=$D$3,Valuation!K3<=$D$2) -> FALSE | L3: =AND(Valuation!L3>=$D$3,Valuation!L3<=$D$2) -> FALSE | M3: =AND(Valuation!M3>=$D$3,Valuation!M3<=$D$2) -> TRUE | N3: =AND(Valuation!N3>=$D$3,Valuation!N3<=$D$2) -> TRUE | O3: =AND(Valuation!O3>=$D$3,Valuation!O3<=$D$2) -> TRUE | P3: =AND(Valuation!P3>=$D$3,Valuation!P3<=$D$2) -> TRUE | Q3: =AND(Valuation!Q3>=$D$3,Valuation!Q3<=$D$2) -> TRUE | R3: =AND(Valuation!R3>=$D$3,Valuation!R3<=$D$2) -> TRUE | S3: =AND(Valuation!S3>=$D$3,Valuation!S3<=$D$2) -> TRUE | T3: =AND(Valuation!T3>=$D$3,Valuation!T3<=$D$2) -> TRUE | U3: =AND(Valuation!U3>=$D$3,Valuation!U3<=$D$2) -> TRUE | V3: =AND(Valuation!V3>=$D$3,Valuation!V3<=$D$2) -> TRUE | W3: =AND(Valuation!W3>=$D$3,Valuation!W3<=$D$2) -> TRUE | X3: =AND(Valuation!X3>=$D$3,Valuation!X3<=$D$2) -> FALSE | Y3: =AND(Valuation!Y3>=$D$3,Valuation!Y3<=$D$2) -> FALSE | Z3: =AND(Valuation!Z3>=$D$3,Valuation!Z3<=$D$2) -> FALSE | AA3: =AND(Valuation!AA3>=$D$3,Valuation!AA3<=$D$2) -> FALSE | AB3: =AND(Valuation!AB3>=$D$3,Valuation!AB3<=$D$2) -> FALSE | AC3: =AND(Valuation!AC3>=$D$3,Valuation!AC3<=$D$2) -> FALSE | AD3: =AND(Valuation!AD3>=$D$3,Valuation!AD3<=$D$2) -> FALSE | AE3: =AND(Valuation!AE3>=$D$3,Valuation!AE3<=$D$2) -> FALSE | AF3: =AND(Valuation!AF3>=$D$3,Valuation!AF3<=$D$2) -> FALSE | AG3: =AND(Valuation!AG3>=$D$3,Valuation!AG3<=$D$2) -> FALSE
C4: Last historic year | H4: =Valuation!H3=$D$2 -> FALSE | I4: =Valuation!I3=$D$2 -> FALSE | J4: =Valuation!J3=$D$2 -> FALSE | K4: =Valuation!K3=$D$2 -> FALSE | L4: =Valuation!L3=$D$2 -> FALSE | M4: =Valuation!M3=$D$2 -> FALSE | N4: =Valuation!N3=$D$2 -> FALSE | O4: =Valuation!O3=$D$2 -> FALSE | P4: =Valuation!P3=$D$2 -> FALSE | Q4: =Valuation!Q3=$D$2 -> FALSE | R4: =Valuation!R3=$D$2 -> FALSE | S4: =Valuation!S3=$D$2 -> FALSE | T4: =Valuation!T3=$D$2 -> FALSE | U4: =Valuation!U3=$D$2 -> FALSE | V4: =Valuation!V3=$D$2 -> FALSE | W4: =Valuation!W3=$D$2 -> TRUE | X4: =Valuation!X3=$D$2 -> FALSE | Y4: =Valuation!Y3=$D$2 -> FALSE | Z4: =Valuation!Z3=$D$2 -> FALSE | AA4: =Valuation!AA3=$D$2 -> FALSE | AB4: =Valuation!AB3=$D$2 -> FALSE | AC4: =Valuation!AC3=$D$2 -> FALSE | AD4: =Valuation!AD3=$D$2 -> FALSE | AE4: =Valuation!AE3=$D$2 -> FALSE | AF4: =Valuation!AF3=$D$2 -> FALSE | AG4: =Valuation!AG3=$D$2 -> FALSE
A6: . Financial Ratios for Analysis of Assumptions
B8: EBITDA Analysis
C9: Operating profit before depreciation amortisation and impairment | H9: ='Historic Data from PDF'!C100 -> 0 | I9: ='Historic Data from PDF'!H100 -> 0 | J9: ='Historic Data from PDF'!I100 -> 0 | K9: ='Historic Data from PDF'!J100 -> 0 | L9: ='Historic Data from PDF'!K100 -> 0 | M9: ='Historic Data from PDF'!L100 -> 6314 | N9: ='Historic Data from PDF'!M100 -> 7035 | O9: ='Historic Data from PDF'!N100 -> 8134 | P9: ='Historic Data from PDF'!O100 -> 11610 | Q9: ='Historic Data from PDF'!P100 -> 13169 | R9: ='Historic Data from PDF'!Q100 -> 14236 | S9: ='Historic Data from PDF'!R100 -> 13600 | T9: ='Historic Data from PDF'!S100 -> 13812 | U9: ='Historic Data from PDF'!T100 -> 13592 | V9: ='Historic Data from PDF'!U100 -> 13338 | W9: ='Historic Data from PDF'!V100 -> 13213
C10: Less: Restructuring Cash Payments from Cash Flow | E10: TRUE | H10: =IF($E$10,'Historic Data from PDF'!G106) -> 0 | I10: =IF($E$10,'Historic Data from PDF'!H106) -> 0 | J10: =IF($E$10,'Historic Data from PDF'!I106) -> 0 | K10: =IF($E$10,'Historic Data from PDF'!J106) -> 0 | L10: =IF($E$10,'Historic Data from PDF'!K106) -> 0 | M10: =IF($E$10,'Historic Data from PDF'!L106) -> -537 | N10: =IF($E$10,'Historic Data from PDF'!M106) -> -477 | O10: =IF($E$10,'Historic Data from PDF'!N106) -> -379 | P10: =IF($E$10,'Historic Data from PDF'!O106) -> -482 | Q10: =IF($E$10,'Historic Data from PDF'!P106) -> -507 | R10: =IF($E$10,'Historic Data from PDF'!Q106) -> -446 | S10: =IF($E$10,'Historic Data from PDF'!R106) -> -448 | T10: =IF($E$10,'Historic Data from PDF'!S106) -> -324 | U10: =IF($E$10,'Historic Data from PDF'!T106) -> -617 | V10: =IF($E$10,'Historic Data from PDF'!U106) -> -397 | W10: =IF($E$10,'Historic Data from PDF'!V106) -> -586
C11: Less: Income from associates | L11: =-'Historic Data from PDF'!K82 -> 0 | M11: =-'Historic Data from PDF'!L82 -> -232 | N11: =-'Historic Data from PDF'!M82 -> -85 | O11: =-'Historic Data from PDF'!N82 -> -101 | P11: =-'Historic Data from PDF'!O82 -> -81 | Q11: =-'Historic Data from PDF'!P82 -> -112 | R11: =-'Historic Data from PDF'!Q82 -> -148 | S11: =-'Historic Data from PDF'!R82 -> -180 | T11: =-'Historic Data from PDF'!S82 -> -108 | U11: =-'Historic Data from PDF'!T82 -> -370 | V11: =-'Historic Data from PDF'!U82 -> -408 | W11: =-'Historic Data from PDF'!V82 -> -364
C12: EBITDA | H12: =H9+H10 -> 0 | I12: =I9+I10 -> 0 | J12: =J9+J10 -> 0 | K12: =K9+K10 -> 0 | L12: =L9+L10+L11 -> 0 | M12: 5545 | N12: 6473 | O12: 7654 | P12: 11047 | Q12: 12550 | R12: 13642 | S12: 12972 | T12: 13380 | U12: 12605 | V12: 12533 | W12: 12263
C14: Net Revenues | H14: ='Historic Data from PDF'!G143 -> 25650 | I14: ='Historic Data from PDF'!H143 -> 34419 | J14: ='Historic Data from PDF'!I143 -> 35544 | K14: ='Historic Data from PDF'!J143 -> 34626 | L14: ='Historic Data from PDF'!K143 -> 35987 | M14: ='Historic Data from PDF'!L143 -> 38047 | N14: ='Historic Data from PDF'!M143 -> 41083 | O14: ='Historic Data from PDF'!N143 -> 44750 | P14: ='Historic Data from PDF'!O143 -> 59944 | Q14: ='Historic Data from PDF'!P143 -> 59382 | R14: ='Historic Data from PDF'!Q143 -> 60054 | S14: ='Historic Data from PDF'!R143 -> 63561 | T14: ='Historic Data from PDF'!S143 -> 66468 | U14: ='Historic Data from PDF'!T143 -> 64350 | V14: ='Historic Data from PDF'!U143 -> 64506 | W14: ='Historic Data from PDF'!V143 -> 65354
C15: COGS | H15: =-'Historic Data from PDF'!C76 -> 0 | I15: =-'Historic Data from PDF'!H76 -> 0 | J15: =-'Historic Data from PDF'!I76 -> 0 | K15: =-'Historic Data from PDF'!J76 -> 0 | L15: =-'Historic Data from PDF'!K76 -> 0 | M15: =-'Historic Data from PDF'!L76 -> 18879 | N15: =-'Historic Data from PDF'!M76 -> 20151 | O15: =-'Historic Data from PDF'!N76 -> 22423 | P15: =-'Historic Data from PDF'!O76 -> 31248 | Q15: =-'Historic Data from PDF'!P76 -> 30197 | R15: =-'Historic Data from PDF'!Q76 -> 28982 | S15: =-'Historic Data from PDF'!R76 -> 31788 | T15: =-'Historic Data from PDF'!S76 -> 33831 | U15: =-'Historic Data from PDF'!T76 -> 32423 | V15: =-'Historic Data from PDF'!U76 -> 32725 | W15: =-'Historic Data from PDF'!V76 -> 33429
C16: Less: Depreciation Expense | H16: ='Historic Data from PDF'!C98 -> 0 | I16: ='Historic Data from PDF'!H98 -> 0 | J16: ='Historic Data from PDF'!I98 -> 0 | K16: ='Historic Data from PDF'!J98 -> 0 | L16: ='Historic Data from PDF'!K98 -> 0 | M16: ='Historic Data from PDF'!L98 -> 2796 | N16: ='Historic Data from PDF'!M98 -> 2953 | O16: ='Historic Data from PDF'!N98 -> 2768 | P16: ='Historic Data from PDF'!O98 -> 3627 | Q16: ='Historic Data from PDF'!P98 -> 3769 | R16: ='Historic Data from PDF'!Q98 -> 3987 | S16: ='Historic Data from PDF'!R98 -> 3780 | T16: ='Historic Data from PDF'!S98 -> 3991 | U16: ='Historic Data from PDF'!T98 -> 3863 | V16: ='Historic Data from PDF'!U98 -> 4103 | W16: ='Historic Data from PDF'!V98 -> 4674
C17: COGS without Depreciation | H17: =H15+H16 -> 0 | I17: =I15-I16 -> 0 | J17: 0 | K17: 0 | L17: 0 | M17: 16083 | N17: 17198 | O17: 19655 | P17: 27621 | Q17: 26428 | R17: 24995 | S17: 28008 | T17: 29840 | U17: 28560 | V17: 28622 | W17: 28755
C18: COGS Margin | H18: =H17/H14 -> 0 | I18: 0 | J18: 0 | K18: 0 | L18: 0 | M18: 0.4227140116 | N18: 0.4186159725 | O18: 0.4392178771 | P18: 0.4607800614 | Q18: 0.4450506888 | R18: 0.4162087455 | S18: 0.4406475669 | T18: 0.4489378347 | U18: 0.4438228438 | V18: 0.4437106626 | W18: 0.439988371
C20: EBITDA Margin | H20: =H12/H14 -> 0 | I20: 0 | J20: 0 | K20: 0 | L20: 0 | M20: 0.1457407943 | N20: 0.1575590877 | O20: 0.1710391061 | P20: 0.1842886694 | Q20: 0.2113435048 | R20: 0.2271622207 | S20: 0.2040874121 | T20: 0.2012998736 | U20: 0.1958818959 | V20: 0.1942920038 | W20: 0.1876396242
C21: SG&A as Pct of Sales | H21: =-'Historic Data from PDF'!C78/H14 -> 0 | I21: =-'Historic Data from PDF'!H78/I14 -> 0 | J21: =-'Historic Data from PDF'!I78/J14 -> 0 | K21: =-'Historic Data from PDF'!J78/K14 -> 0 | L21: =-'Historic Data from PDF'!K78/L14 -> 0 | M21: =-'Historic Data from PDF'!L78/M14 -> 0.350408705 | N21: =-'Historic Data from PDF'!M78/N14 -> 0.3449845435 | O21: =-'Historic Data from PDF'!N78/O14 -> 0.3246480447 | P21: =-'Historic Data from PDF'!O78/P14 -> 0.293473909 | Q21: =-'Historic Data from PDF'!P78/Q14 -> 0.2692566771 | R21: =-'Historic Data from PDF'!Q78/R14 -> 0.2857095281 | S21: =-'Historic Data from PDF'!R78/S14 -> 0.2907915231 | T21: =-'Historic Data from PDF'!S78/T14 -> 0.2955557562 | U21: =-'Historic Data from PDF'!T78/U14 -> 0.2825330225 | V21: =-'Historic Data from PDF'!U78/V14 -> 0.2898180014 | W21: =-'Historic Data from PDF'!V78/W14 -> 0.2931419653
C22: Admin as Pct of Sales | H22: =-'Historic Data from PDF'!C79/H14 -> 0 | I22: =-'Historic Data from PDF'!H79/I14 -> 0 | J22: =-'Historic Data from PDF'!I79/J14 -> 0 | K22: =-'Historic Data from PDF'!J79/K14 -> 0 | L22: =-'Historic Data from PDF'!K79/L14 -> 0 | M22: =-'Historic Data from PDF'!L79/M14 -> 0.07782479565 | N22: =-'Historic Data from PDF'!M79/N14 -> 0.07460506779 | O22: =-'Historic Data from PDF'!N79/O14 -> 0.0697877095 | P22: =-'Historic Data from PDF'!O79/P14 -> 0.06562791939 | Q22: =-'Historic Data from PDF'!P79/Q14 -> 0.06522178438 | R22: =-'Historic Data from PDF'!Q79/R14 -> 0.06727278782 | S22: =-'Historic Data from PDF'!R79/S14 -> 0.06140557889 | T22: =-'Historic Data from PDF'!S79/T14 -> 0.06296262863 | U22: =-'Historic Data from PDF'!T79/U14 -> 0.06860916861 | V22: =-'Historic Data from PDF'!U79/V14 -> 0.07182277618 | W22: =-'Historic Data from PDF'!V79/W14 -> 0.07511399455
C24: Property Plant and Equipment | H24: ='Historic Data from PDF'!C7 -> 0 | I24: ='Historic Data from PDF'!H7 -> 0 | J24: ='Historic Data from PDF'!I7 -> 0 | K24: ='Historic Data from PDF'!J7 -> 0 | L24: ='Historic Data from PDF'!K7 -> 0 | M24: ='Historic Data from PDF'!L7 -> 20355 | N24: ='Historic Data from PDF'!M7 -> 20367 | O24: ='Historic Data from PDF'!N7 -> 22109 | P24: ='Historic Data from PDF'!O7 -> 34043 | Q24: ='Historic Data from PDF'!P7 -> 31825 | R24: ='Historic Data from PDF'!Q7 -> 32420 | S24: ='Historic Data from PDF'!R7 -> 31848 | T24: ='Historic Data from PDF'!S7 -> 31991 | U24: ='Historic Data from PDF'!T7 -> 31738 | V24: ='Historic Data from PDF'!U7 -> 28748 | W24: ='Historic Data from PDF'!V7 -> 26678
C25: Average | H25: =IF(C24>0,AVERAGE(H24,C24),H24) -> 0 | I25: =IF(H24>0,AVERAGE(I24,H24),I24) -> 0 | J25: 0 | K25: 0 | L25: 0 | M25: 20355 | N25: 20361 | O25: 21238 | P25: 28076 | Q25: 32934 | R25: 32122.5 | S25: 32134 | T25: 31919.5 | U25: 31864.5 | V25: 30243 | W25: 27713
C26: Depreciation Rate | H26: =IF(H25,H16/H25) -> FALSE | I26: FALSE | J26: FALSE | K26: FALSE | L26: FALSE | M26: 0.1373618276 | N26: 0.1450321693 | O26: 0.130332423 | P26: 0.1291850691 | Q26: 0.1144410032 | R26: 0.1241186085 | S26: 0.1176324143 | T26: 0.1250332869 | U26: 0.1212320921 | V26: 0.1356677578 | W26: 0.1686573088
C28: Capital Expenditures - Gross | H28: =-'Historic Data from PDF'!C109-'Historic Data from PDF'!C124 -> 0 | I28: =-'Historic Data from PDF'!H109-'Historic Data from PDF'!H124 -> 0 | J28: =-'Historic Data from PDF'!I109-'Historic Data from PDF'!I124 -> 0 | K28: =-'Historic Data from PDF'!J109-'Historic Data from PDF'!J124 -> 0 | L28: =-'Historic Data from PDF'!K109-'Historic Data from PDF'!K124 -> 0 | M28: =-'Historic Data from PDF'!L109-'Historic Data from PDF'!L124 -> 3186 | N28: =-'Historic Data from PDF'!M109-'Historic Data from PDF'!M124 -> 3559 | O28: =-'Historic Data from PDF'!N109-'Historic Data from PDF'!N124 -> 5596 | P28: =-'Historic Data from PDF'!O109-'Historic Data from PDF'!O124 -> 6409 | Q28: =-'Historic Data from PDF'!P109-'Historic Data from PDF'!P124 -> 3155 | R28: =-'Historic Data from PDF'!Q109-'Historic Data from PDF'!Q124 -> 3377 | S28: =-'Historic Data from PDF'!R109-'Historic Data from PDF'!R124 -> 4365 | T28: =-'Historic Data from PDF'!S109-'Historic Data from PDF'!S124 -> 5073 | U28: =-'Historic Data from PDF'!T109-'Historic Data from PDF'!T124 -> 5600 | V28: =-'Historic Data from PDF'!U109-'Historic Data from PDF'!U124 -> 5908 | W28: =-'Historic Data from PDF'!V109-'Historic Data from PDF'!V124 -> 4150
C29: Capital Expenditures - Net | H29: =-'Historic Data from PDF'!C109-'Historic Data from PDF'!C124-'Historic Data from PDF'!C110-'Historic Data from PDF'!C125 -> 0 | I29: =-'Historic Data from PDF'!H109-'Historic Data from PDF'!H124-'Historic Data from PDF'!H110-'Historic Data from PDF'!H125 -> 0 | J29: =-'Historic Data from PDF'!I109-'Historic Data from PDF'!I124-'Historic Data from PDF'!I110-'Historic Data from PDF'!I125 -> 0 | K29: =-'Historic Data from PDF'!J109-'Historic Data from PDF'!J124-'Historic Data from PDF'!J110-'Historic Data from PDF'!J125 -> 0 | L29: =-'Historic Data from PDF'!K109-'Historic Data from PDF'!K124-'Historic Data from PDF'!K110-'Historic Data from PDF'!K125 -> 0 | M29: =-'Historic Data from PDF'!L109-'Historic Data from PDF'!L124-'Historic Data from PDF'!L110-'Historic Data from PDF'!L125 -> 1501 | N29: =-'Historic Data from PDF'!M109-'Historic Data from PDF'!M124-'Historic Data from PDF'!M110-'Historic Data from PDF'!M125 -> 3069 | O29: =-'Historic Data from PDF'!N109-'Historic Data from PDF'!N124-'Historic Data from PDF'!N110-'Historic Data from PDF'!N125 -> 4640 | P29: =-'Historic Data from PDF'!O109-'Historic Data from PDF'!O124-'Historic Data from PDF'!O110-'Historic Data from PDF'!O125 -> 4712 | Q29: =-'Historic Data from PDF'!P109-'Historic Data from PDF'!P124-'Historic Data from PDF'!P110-'Historic Data from PDF'!P125 -> 2702 | R29: =-'Historic Data from PDF'!Q109-'Historic Data from PDF'!Q124-'Historic Data from PDF'!Q110-'Historic Data from PDF'!Q125 -> 2736 | S29: =-'Historic Data from PDF'!R109-'Historic Data from PDF'!R124-'Historic Data from PDF'!R110-'Historic Data from PDF'!R125 -> 4054 | T29: =-'Historic Data from PDF'!S109-'Historic Data from PDF'!S124-'Historic Data from PDF'!S110-'Historic Data from PDF'!S125 -> 2736 | U29: =-'Historic Data from PDF'!T109-'Historic Data from PDF'!T124-'Historic Data from PDF'!T110-'Historic Data from PDF'!T125 -> 5451 | V29: =-'Historic Data from PDF'!U109-'Historic Data from PDF'!U124-'Historic Data from PDF'!U110-'Historic Data from PDF'!U125 -> 5647 | W29: =-'Historic Data from PDF'!V109-'Historic Data from PDF'!V124-'Historic Data from PDF'!V110-'Historic Data from PDF'!V125 -> 2922
C30: Cap Exp to Depreciation | H30: =IF(H16,H28/H16) -> FALSE | I30: FALSE | J30: FALSE | K30: FALSE | L30: FALSE | M30: 1.139484979 | N30: 1.205215036 | O30: 2.021676301 | P30: 1.76702509 | Q30: 0.8370920669 | R30: 0.847002759 | S30: 1.154761905 | T30: 1.271109997 | U30: 1.449650531 | V30: 1.439922008 | W30: 0.8878904579
C32: Tax Rate | H32: =-IF('Historic Data from PDF'!C87,'Historic Data from PDF'!C88/'Historic Data from PDF'!C87) -> 0 | I32: =-IF('Historic Data from PDF'!H87,'Historic Data from PDF'!H88/'Historic Data from PDF'!H87) -> 0 | J32: =-IF('Historic Data from PDF'!I87,'Historic Data from PDF'!I88/'Historic Data from PDF'!I87) -> 0 | K32: =-IF('Historic Data from PDF'!J87,'Historic Data from PDF'!J88/'Historic Data from PDF'!J87) -> 0 | L32: =-IF('Historic Data from PDF'!K87,'Historic Data from PDF'!K88/'Historic Data from PDF'!K87) -> 0 | M32: =-IF('Historic Data from PDF'!L87,'Historic Data from PDF'!L88/'Historic Data from PDF'!L87) -> 0.2753699789 | N32: =-IF('Historic Data from PDF'!M87,'Historic Data from PDF'!M88/'Historic Data from PDF'!M87) -> 0.2832618026 | O32: =-IF('Historic Data from PDF'!N87,'Historic Data from PDF'!N88/'Historic Data from PDF'!N87) -> 0.2856356632 | P32: =-IF('Historic Data from PDF'!O87,'Historic Data from PDF'!O88/'Historic Data from PDF'!O87) -> -0.1124219292 | Q32: =-IF('Historic Data from PDF'!P87,'Historic Data from PDF'!P88/'Historic Data from PDF'!P87) -> 0.2695880806 | R32: =-IF('Historic Data from PDF'!Q87,'Historic Data from PDF'!Q88/'Historic Data from PDF'!Q87) -> 0.2402804334 | S32: =-IF('Historic Data from PDF'!R87,'Historic Data from PDF'!R88/'Historic Data from PDF'!R87) -> 0.2440903054 | T32: =-IF('Historic Data from PDF'!S87,'Historic Data from PDF'!S88/'Historic Data from PDF'!S87) -> 0.2295830249 | U32: =-IF('Historic Data from PDF'!T87,'Historic Data from PDF'!T88/'Historic Data from PDF'!T87) -> 0.2355435621 | V32: =-IF('Historic Data from PDF'!U87,'Historic Data from PDF'!U88/'Historic Data from PDF'!U87) -> 0.2614418187 | W32: =-IF('Historic Data from PDF'!V87,'Historic Data from PDF'!V88/'Historic Data from PDF'!V87) -> -0.4899019042
C34: Trade and Other Recievables | H34: ='Historic Data from PDF'!C15+'Historic Data from PDF'!C16 -> 0 | I34: ='Historic Data from PDF'!H15+'Historic Data from PDF'!H16 -> 0 | J34: ='Historic Data from PDF'!I15+'Historic Data from PDF'!I16 -> 0 | K34: ='Historic Data from PDF'!J15+'Historic Data from PDF'!J16 -> 0 | L34: ='Historic Data from PDF'!K15+'Historic Data from PDF'!K16 -> 0 | M34: ='Historic Data from PDF'!L15+'Historic Data from PDF'!L16 -> 8994 | N34: ='Historic Data from PDF'!M15+'Historic Data from PDF'!M16 -> 7253 | O34: ='Historic Data from PDF'!N15+'Historic Data from PDF'!N16 -> 7794 | P34: ='Historic Data from PDF'!O15+'Historic Data from PDF'!O16 -> 9464 | Q34: ='Historic Data from PDF'!P15+'Historic Data from PDF'!P16 -> 7648 | R34: ='Historic Data from PDF'!Q15+'Historic Data from PDF'!Q16 -> 7453 | S34: ='Historic Data from PDF'!R15+'Historic Data from PDF'!R16 -> 9701 | T34: ='Historic Data from PDF'!S15+'Historic Data from PDF'!S16 -> 9921 | U34: ='Historic Data from PDF'!T15+'Historic Data from PDF'!T16 -> 9476 | V34: ='Historic Data from PDF'!U15+'Historic Data from PDF'!U16 -> 9486 | W34: ='Historic Data from PDF'!V15+'Historic Data from PDF'!V16 -> 8261
C35: Trade and Other as Percent of Sales | H35: =IF(H14,H34/H14) -> 0 | I35: 0 | J35: 0 | K35: 0 | L35: 0 | M35: 0.2363918312 | N35: 0.176545043 | O35: 0.1741675978 | P35: 0.1578806886 | Q35: 0.128793237 | R35: 0.1241049722 | S35: 0.1526250374 | T35: 0.1492597942 | U35: 0.1472571873 | V35: 0.1470560878 | W35: 0.1264038926
C37: Accounts Payable | H37: ='Historic Data from PDF'!C38 -> 0 | I37: ='Historic Data from PDF'!H38 -> 0 | J37: ='Historic Data from PDF'!I38 -> 0 | K37: ='Historic Data from PDF'!J38 -> 0 | L37: ='Historic Data from PDF'!K38 -> 0 | M37: ='Historic Data from PDF'!L38 -> 4513 | N37: ='Historic Data from PDF'!M38 -> 5147 | O37: ='Historic Data from PDF'!N38 -> 5833 | P37: ='Historic Data from PDF'!O38 -> 7993 | Q37: ='Historic Data from PDF'!P38 -> 7929 | R37: ='Historic Data from PDF'!Q38 -> 9385 | S37: ='Historic Data from PDF'!R38 -> 11021 | T37: ='Historic Data from PDF'!S38 -> 11862 | U37: ='Historic Data from PDF'!T38 -> 12927 | V37: ='Historic Data from PDF'!U38 -> 12048 | W37: ='Historic Data from PDF'!V38 -> 12260
C38: A/P as Percent of COGS | H38: =IF(H17,H37/H17) -> FALSE | I38: FALSE | J38: FALSE | K38: FALSE | L38: FALSE | M38: 0.280606852 | N38: 0.2992789859 | O38: 0.2967692699 | P38: 0.2893812679 | Q38: 0.3000227032 | R38: 0.375475095 | S38: 0.3934947158 | T38: 0.3975201072 | U38: 0.4526260504 | V38: 0.4209349451 | W38: 0.4263606329
A40: . RATIOS FOR FINANCIAL ANALYSIS
C42: Tax Rate Applied | H42: =IF(H32>0,H32,0.25) -> 0.25 | I42: 0.25 | J42: 0.25 | K42: 0.25 | L42: 0.25 | M42: 0.2753699789 | N42: 0.2832618026 | O42: 0.2856356632 | P42: 0.25 | Q42: 0.2695880806 | R42: 0.2402804334 | S42: 0.2440903054 | T42: 0.2295830249 | U42: 0.2355435621 | V42: 0.2614418187 | W42: 0.25
C43: EBIT | H43: =H12-H16 -> 0 | I43: 0 | J43: 0 | K43: 0 | L43: 0 | M43: 2749 | N43: 3520 | O43: 4886 | P43: 7420 | Q43: 8781 | R43: 9655 | S43: 9192 | T43: 9389 | U43: 8742 | V43: 8430 | W43: 7589
C44: NOPAT - EBIT x (1-t) | H44: =H43*(1-H42) -> 0 | I44: 0 | J44: 0 | K44: 0 | L44: 0 | M44: 1992.007928 | N44: 2522.918455 | O44: 3490.38415 | P44: 5565 | Q44: 6413.747064 | R44: 7335.092416 | S44: 6948.321912 | T44: 7233.444979 | U44: 6682.87818 | V44: 6226.045468 | W44: 5691.75
C46: Invested Capital - EOY | H46: ='Historic Data from PDF'!C48 -> 0 | I46: ='Historic Data from PDF'!H48 -> 0 | J46: ='Historic Data from PDF'!I48 -> 0 | K46: ='Historic Data from PDF'!J48 -> 0 | L46: ='Historic Data from PDF'!K48 -> 0 | M46: ='Historic Data from PDF'!L48 -> 41658 | N46: ='Historic Data from PDF'!M48 -> 40941 | O46: ='Historic Data from PDF'!N48 -> 42859 | P46: ='Historic Data from PDF'!O48 -> 107003 | Q46: ='Historic Data from PDF'!P48 -> 97026 | R46: ='Historic Data from PDF'!Q48 -> 102006 | S46: ='Historic Data from PDF'!R48 -> 104803 | T46: ='Historic Data from PDF'!S48 -> 107484 | U46: ='Historic Data from PDF'!T48 -> 110474 | V46: ='Historic Data from PDF'!U48 -> 94862 | W46: ='Historic Data from PDF'!V48 -> 82853
C47: Invested Capital - Average | H47: =IF(C46>0,AVERAGE(H46,C46),H46) -> 0 | I47: =IF(H46>0,AVERAGE(I46,H46),I46) -> 0 | J47: 0 | K47: 0 | L47: 0 | M47: 41658 | N47: 41299.5 | O47: 41900 | P47: 74931 | Q47: 102014.5 | R47: 99516 | S47: 103404.5 | T47: 106143.5 | U47: 108979 | V47: 102668 | W47: 88857.5
C48: ROIC | H48: =IF(H47,H44/H47) -> FALSE | I48: FALSE | J48: FALSE | K48: FALSE | L48: FALSE | M48: 0.04781813645 | N48: 0.06108835349 | O48: 0.08330272434 | P48: 0.07426832686 | Q48: 0.06287093564 | R48: 0.07370766927 | S48: 0.06719554673 | T48: 0.06814779029 | U48: 0.06132262345 | V48: 0.06064251245 | W48: 0.06405480685
C50: Equity Capital without Minority Interest | H50: ='Historic Data from PDF'!C31-'Historic Data from PDF'!C30 -> 0 | I50: ='Historic Data from PDF'!H31-'Historic Data from PDF'!H30 -> 0 | J50: ='Historic Data from PDF'!I31-'Historic Data from PDF'!I30 -> 0 | K50: ='Historic Data from PDF'!J31-'Historic Data from PDF'!J30 -> 0 | L50: ='Historic Data from PDF'!K31-'Historic Data from PDF'!K30 -> 0 | M50: ='Historic Data from PDF'!L31-'Historic Data from PDF'!L30 -> 17968 | N50: ='Historic Data from PDF'!M31-'Historic Data from PDF'!M30 -> 17597 | O50: ='Historic Data from PDF'!N31-'Historic Data from PDF'!N30 -> 19942.677 | P50: ='Historic Data from PDF'!O31-'Historic Data from PDF'!O30 -> 55521 | Q50: ='Historic Data from PDF'!P31-'Historic Data from PDF'!P30 -> 54829 | R50: ='Historic Data from PDF'!Q31-'Historic Data from PDF'!Q30 -> 64248 | S50: ='Historic Data from PDF'!R31-'Historic Data from PDF'!R30 -> 65866 | T50: ='Historic Data from PDF'!S31-'Historic Data from PDF'!S30 -> 70261 | U50: ='Historic Data from PDF'!T31-'Historic Data from PDF'!T30 -> 67811 | V50: ='Historic Data from PDF'!U31-'Historic Data from PDF'!U30 -> 52437 | W50: ='Historic Data from PDF'!V31-'Historic Data from PDF'!V30 -> 43489
C51: Average | H51: =IF(C50>0,AVERAGE(H50,C50),H50) -> 0 | I51: =IF(H50>0,AVERAGE(I50,H50),I50) -> 0 | J51: 0 | K51: 0 | L51: 0 | M51: 17968 | N51: 17782.5 | O51: 18769.8385 | P51: 37731.8385 | Q51: 55175 | R51: 59538.5 | S51: 65057 | T51: 68063.5 | U51: 69036 | V51: 60124 | W51: 47963
C52: Net Income to Common | H52: ='Historic Data from PDF'!C91+'Historic Data from PDF'!C84 -> 0 | I52: ='Historic Data from PDF'!H91 -> 0 | J52: ='Historic Data from PDF'!I91 -> 0 | K52: ='Historic Data from PDF'!J91 -> 0 | L52: ='Historic Data from PDF'!K91 -> 0 | M52: ='Historic Data from PDF'!L91 -> 1110 | N52: ='Historic Data from PDF'!M91 -> 1884 | O52: ='Historic Data from PDF'!N91 -> 2297 | P52: ='Historic Data from PDF'!O91 -> 2631 | Q52: ='Historic Data from PDF'!P91 -> 3602 | R52: ='Historic Data from PDF'!Q91 -> 5351 | S52: ='Historic Data from PDF'!R91 -> 5149 | T52: ='Historic Data from PDF'!S91 -> 5607 | U52: ='Historic Data from PDF'!T91 -> 5471 | V52: ='Historic Data from PDF'!U91 -> 4414 | W52: ='Historic Data from PDF'!V91 -> -2926
C53: ROE | H53: =IF(H51,H52/H51) -> FALSE | I53: FALSE | J53: FALSE | K53: FALSE | L53: FALSE | M53: 0.06177649154 | N53: 0.1059468579 | O53: 0.1223771851 | P53: 0.06972891077 | Q53: 0.06528318985 | R53: 0.08987461894 | S53: 0.07914597968 | T53: 0.08237895495 | U53: 0.07924850802 | V53: 0.07341494245 | W53: -0.0610053583
C55: Minority Interest | H55: ='Historic Data from PDF'!C30 -> 0 | I55: ='Historic Data from PDF'!H30 -> 0 | J55: ='Historic Data from PDF'!I30 -> 0 | K55: ='Historic Data from PDF'!J30 -> 0 | L55: ='Historic Data from PDF'!K30 -> 0 | M55: ='Historic Data from PDF'!L30 -> 1528 | N55: ='Historic Data from PDF'!M30 -> 1390 | P55: ='Historic Data from PDF'!O30 -> 5230 | Q55: ='Historic Data from PDF'!P30 -> 4660 | R55: ='Historic Data from PDF'!Q30 -> 5381 | S55: ='Historic Data from PDF'!R30 -> 5763 | T55: ='Historic Data from PDF'!S30 -> 3389 | U55: ='Historic Data from PDF'!T30 -> 3688 | V55: ='Historic Data from PDF'!U30 -> 3560 | W55: ='Historic Data from PDF'!V30 -> 3742
C56: Average | H56: =IF(C55>0,AVERAGE(H55,C55),H55) -> 0 | I56: =IF(H55>0,AVERAGE(I55,H55),I55) -> 0 | J56: 0 | K56: 0 | L56: 0 | M56: 1528 | N56: 1459 | O56: 1390 | P56: 5230 | Q56: 4945 | R56: 5020.5 | S56: 5572 | T56: 4576 | U56: 3538.5 | V56: 3624 | W56: 3651
C57: Earnings from Minority Interest | H57: ='Historic Data from PDF'!C90 -> 0 | I57: ='Historic Data from PDF'!H90 -> 0 | J57: ='Historic Data from PDF'!I90 -> 0 | K57: ='Historic Data from PDF'!J90 -> 0 | L57: ='Historic Data from PDF'!K90 -> 0 | M57: ='Historic Data from PDF'!L90 -> 261 | N57: ='Historic Data from PDF'!M90 -> 287 | O57: ='Historic Data from PDF'!N90 -> 299 | P57: ='Historic Data from PDF'!O90 -> 575 | Q57: ='Historic Data from PDF'!P90 -> 565 | R57: ='Historic Data from PDF'!Q90 -> 609 | S57: ='Historic Data from PDF'!R90 -> 543 | T57: ='Historic Data from PDF'!S90 -> 638 | U57: ='Historic Data from PDF'!T90 -> 478 | V57: ='Historic Data from PDF'!U90 -> 524 | W57: ='Historic Data from PDF'!V90 -> 344
C58: ROE to Minority Interest | H58: =IF(H56,H57/H56) -> FALSE | I58: FALSE | J58: FALSE | K58: FALSE | L58: FALSE | M58: 0.1708115183 | N58: 0.1967100754 | O58: 0.2151079137 | P58: 0.1099426386 | Q58: 0.1142568251 | R58: 0.1213026591 | S58: 0.09745154343 | T58: 0.1394230769 | U58: 0.1350854882 | V58: 0.1445916115 | W58: 0.09422076144
C60: Total Gross Debt | H60: ='Historic Data from PDF'!C32+'Historic Data from PDF'!C37 -> 0 | I60: ='Historic Data from PDF'!H32+'Historic Data from PDF'!H37 -> 0 | J60: ='Historic Data from PDF'!I32+'Historic Data from PDF'!I37 -> 0 | K60: ='Historic Data from PDF'!J32+'Historic Data from PDF'!J37 -> 0 | L60: ='Historic Data from PDF'!K32+'Historic Data from PDF'!K37 -> 0 | M60: ='Historic Data from PDF'!L32+'Historic Data from PDF'!L37 -> 25978 | N60: ='Historic Data from PDF'!M32+'Historic Data from PDF'!M37 -> 22797 | O60: ='Historic Data from PDF'!N32+'Historic Data from PDF'!N37 -> 23254 | P60: ='Historic Data from PDF'!O32+'Historic Data from PDF'!O37 -> 48521 | Q60: ='Historic Data from PDF'!P32+'Historic Data from PDF'!P37 -> 39397 | R60: ='Historic Data from PDF'!Q32+'Historic Data from PDF'!Q37 -> 36546 | S60: ='Historic Data from PDF'!R32+'Historic Data from PDF'!R37 -> 36239 | T60: ='Historic Data from PDF'!S32+'Historic Data from PDF'!S37 -> 40058 | U60: ='Historic Data from PDF'!T32+'Historic Data from PDF'!T37 -> 40211 | V60: ='Historic Data from PDF'!U32+'Historic Data from PDF'!U37 -> 40525 | W60: ='Historic Data from PDF'!V32+'Historic Data from PDF'!V37 -> 36028
C61: Average Gross Debt | H61: =IF(C60>0,AVERAGE(H60,C60),H60) -> 0 | I61: =IF(H60>0,AVERAGE(I60,H60),I60) -> 0 | J61: 0 | K61: 0 | L61: 0 | M61: 25978 | N61: 24387.5 | O61: 23025.5 | P61: 35887.5 | Q61: 43959 | R61: 37971.5 | S61: 36392.5 | T61: 38148.5 | U61: 40134.5 | V61: 40368 | W61: 38276.5
C62: Interest Expense | H62: =-'Historic Data from PDF'!C104 -> 0 | I62: =-'Historic Data from PDF'!H104 -> 0 | J62: =-'Historic Data from PDF'!I104 -> 0 | K62: =-'Historic Data from PDF'!J104 -> 0 | L62: =-'Historic Data from PDF'!K104 -> 0 | M62: =-'Historic Data from PDF'!L104 -> 1235 | N62: =-'Historic Data from PDF'!M104 -> 1512 | O62: =-'Historic Data from PDF'!N104 -> 1507 | P62: =-'Historic Data from PDF'!O104 -> 3010 | Q62: =-'Historic Data from PDF'!P104 -> 1852 | R62: =-'Historic Data from PDF'!Q104 -> 2344 | S62: =-'Historic Data from PDF'!R104 -> 2288 | T62: =-'Historic Data from PDF'!S104 -> 2350 | U62: =-'Historic Data from PDF'!T104 -> 2424 | V62: =-'Historic Data from PDF'!U104 -> 2219 | W62: =-'Historic Data from PDF'!V104 -> 2050
C63: Average Interest Expese | H63: =IF(H61,H62/H61) -> FALSE | I63: FALSE | J63: FALSE | K63: FALSE | L63: FALSE | M63: 0.04754022635 | N63: 0.06199897488 | O63: 0.06544917591 | P63: 0.08387321491 | Q63: 0.04213016675 | R63: 0.06173050841 | S63: 0.06287009686 | T63: 0.06160137358 | U63: 0.06039691537 | V63: 0.0549692826 | W63: 0.05355766593
C65: Cash and Investments | H65: ='Historic Data from PDF'!C17+'Historic Data from PDF'!C20 -> 0 | I65: ='Historic Data from PDF'!H17+'Historic Data from PDF'!H20 -> 0 | J65: ='Historic Data from PDF'!I17+'Historic Data from PDF'!I20 -> 0 | K65: ='Historic Data from PDF'!J17+'Historic Data from PDF'!J20 -> 0 | L65: ='Historic Data from PDF'!K17+'Historic Data from PDF'!K20 -> 0 | M65: ='Historic Data from PDF'!L17+'Historic Data from PDF'!L20 -> 4950 | N65: ='Historic Data from PDF'!M17+'Historic Data from PDF'!M20 -> 2660 | O65: ='Historic Data from PDF'!N17+'Historic Data from PDF'!N20 -> 2372 | P65: ='Historic Data from PDF'!O17+'Historic Data from PDF'!O20 -> 2975 | Q65: ='Historic Data from PDF'!P17+'Historic Data from PDF'!P20 -> 2828 | R65: ='Historic Data from PDF'!Q17+'Historic Data from PDF'!Q20 -> 2859 | S65: ='Historic Data from PDF'!R17+'Historic Data from PDF'!R20 -> 3279 | T65: ='Historic Data from PDF'!S17+'Historic Data from PDF'!S20 -> 5760 | U65: ='Historic Data from PDF'!T17+'Historic Data from PDF'!T20 -> 3612 | V65: ='Historic Data from PDF'!U17+'Historic Data from PDF'!U20 -> 2418 | W65: ='Historic Data from PDF'!V17+'Historic Data from PDF'!V20 -> 3131
C66: Average Cash and Investments | H66: =IF(C65>0,AVERAGE(H65,C65),H65) -> 0 | I66: =IF(H65>0,AVERAGE(I65,H65),I65) -> 0 | J66: 0 | K66: 0 | L66: 0 | M66: 4950 | N66: 3805 | O66: 2516 | P66: 2673.5 | Q66: 2901.5 | R66: 2843.5 | S66: 3069 | T66: 4519.5 | U66: 4686 | V66: 3015 | W66: 2774.5
C67: Interest Income | H67: ='Historic Data from PDF'!C105 -> 0 | I67: ='Historic Data from PDF'!H105 -> 0 | J67: ='Historic Data from PDF'!I105 -> 0 | K67: ='Historic Data from PDF'!J105 -> 0 | L67: ='Historic Data from PDF'!K105 -> 0 | M67: ='Historic Data from PDF'!L105 -> 123 | N67: ='Historic Data from PDF'!M105 -> 186 | O67: ='Historic Data from PDF'!N105 -> 187 | P67: ='Historic Data from PDF'!O105 -> 256 | Q67: ='Historic Data from PDF'!P105 -> 255 | R67: ='Historic Data from PDF'!Q105 -> 255 | S67: ='Historic Data from PDF'!R105 -> 218 | T67: ='Historic Data from PDF'!S105 -> 354 | U67: ='Historic Data from PDF'!T105 -> 329 | V67: ='Historic Data from PDF'!U105 -> 224 | W67: ='Historic Data from PDF'!V105 -> 232
C68: Average Interest Income Rate | H68: =IF(H66,H67/H66) -> FALSE | I68: FALSE | J68: FALSE | K68: FALSE | L68: FALSE | M68: 0.02484848485 | N68: 0.04888304862 | O68: 0.07432432432 | P68: 0.09575462876 | Q68: 0.08788557643 | R68: 0.08967821347 | S68: 0.07103290974 | T68: 0.07832724859 | U68: 0.07020913359 | V68: 0.07429519071 | W68: 0.08361867003
C70: Income from Associates | H70: ='Historic Data from PDF'!C82 -> 0 | I70: ='Historic Data from PDF'!H82 -> 0 | J70: ='Historic Data from PDF'!I82 -> 0 | K70: ='Historic Data from PDF'!J82 -> 0 | L70: ='Historic Data from PDF'!K82 -> 0 | M70: ='Historic Data from PDF'!L82 -> 232 | N70: ='Historic Data from PDF'!M82 -> 85 | O70: ='Historic Data from PDF'!N82 -> 101 | P70: ='Historic Data from PDF'!O82 -> 81 | Q70: ='Historic Data from PDF'!P82 -> 112 | R70: ='Historic Data from PDF'!Q82 -> 148 | S70: ='Historic Data from PDF'!R82 -> 180 | T70: ='Historic Data from PDF'!S82 -> 108 | U70: ='Historic Data from PDF'!T82 -> 370 | V70: ='Historic Data from PDF'!U82 -> 408 | W70: ='Historic Data from PDF'!V82 -> 364
C71: Investment in Associates | H71: ='Historic Data from PDF'!C8 -> 0 | I71: ='Historic Data from PDF'!H8 -> 0 | J71: ='Historic Data from PDF'!I8 -> 0 | K71: ='Historic Data from PDF'!J8 -> 0 | L71: ='Historic Data from PDF'!K8 -> 0 | M71: ='Historic Data from PDF'!L8 -> 1105 | N71: ='Historic Data from PDF'!M8 -> 579 | O71: ='Historic Data from PDF'!N8 -> 622 | P71: ='Historic Data from PDF'!O8 -> 2224 | Q71: ='Historic Data from PDF'!P8 -> 2667 | R71: ='Historic Data from PDF'!Q8 -> 4877 | S71: ='Historic Data from PDF'!R8 -> 5051 | T71: ='Historic Data from PDF'!S8 -> 6241 | U71: ='Historic Data from PDF'!T8 -> 3771 | V71: ='Historic Data from PDF'!U8 -> 4277 | W71: ='Historic Data from PDF'!V8 -> 4676
C72: Average Investment in Associates | H72: =IF(C71>0,AVERAGE(H71,C71),H71) -> 0 | I72: =IF(H71>0,AVERAGE(I71,H71),I71) -> 0 | J72: 0 | K72: 0 | L72: 0 | M72: 1105 | N72: 842 | O72: 600.5 | P72: 1423 | Q72: 2445.5 | R72: 3772 | S72: 4964 | T72: 5646 | U72: 5006 | V72: 4024 | W72: 4476.5
C73: Return on Investments in Associates | H73: =IF(H72,H70/H72) -> FALSE | I73: FALSE | J73: FALSE | K73: FALSE | L73: FALSE | M73: 0.2099547511 | N73: 0.1009501188 | O73: 0.1681931724 | P73: 0.05692199578 | Q73: 0.04579840523 | R73: 0.03923647932 | S73: 0.03626107977 | T73: 0.01912858661 | U73: 0.07391130643 | V73: 0.1013916501 | W73: 0.08131352619
C75: Share Price | H75: ='Historic Data from PDF'!G186 -> 440.1000061 | I75: ='Historic Data from PDF'!H186 -> 329.7999878 | J75: ='Historic Data from PDF'!I186 -> 295.1000061 | K75: ='Historic Data from PDF'!J186 -> 259.5 | L75: ='Historic Data from PDF'!K186 -> 278.1000061 | M75: ='Historic Data from PDF'!L186 -> 272.7999878 | N75: ='Historic Data from PDF'!M186 -> 561 | O75: ='Historic Data from PDF'!N186 -> 498.1000061 | P75: ='Historic Data from PDF'!O186 -> 171.3000031 | Q75: ='Historic Data from PDF'!P186 -> 384 | R75: ='Historic Data from PDF'!Q186 -> 558.5 | S75: ='Historic Data from PDF'!R186 -> 405 | T75: ='Historic Data from PDF'!S186 -> 554 | U75: ='Historic Data from PDF'!T186 -> 600 | V75: ='Historic Data from PDF'!U186 -> 478.7999878 | W75: ='Historic Data from PDF'!V186 -> 612.5
C76: Market Capital | H76: ='Historic Data from PDF'!G186*H90/1000 -> 28037.01099 | I76: ='Historic Data from PDF'!H186*I90/1000 -> 21010.23802 | J76: ='Historic Data from PDF'!I186*J90/1000 -> 18858.66099 | K76: ='Historic Data from PDF'!J186*K90/1000 -> 15793.689 | L76: ='Historic Data from PDF'!K186*L90/1000 -> 21157.29226 | M76: ='Historic Data from PDF'!L186*M90/1000 -> 20808.63747 | N76: ='Historic Data from PDF'!M186*N90/1000 -> 42791.958 | O76: ='Historic Data from PDF'!N186*O90/1000 -> 37978.13307 | P76: ='Historic Data from PDF'!O186*P90/1000 -> 26132.50067 | Q76: ='Historic Data from PDF'!P186*Q90/1000 -> 58580.352 | R76: ='Historic Data from PDF'!Q186*R90/1000 -> 85193.0315 | S76: ='Historic Data from PDF'!R186*S90/1000 -> 61771.815 | T76: ='Historic Data from PDF'!S186*T90/1000 -> 84515.47 | U76: ='Historic Data from PDF'!T186*U90/1000 -> 91519.8 | V76: ='Historic Data from PDF'!U186*V90/1000 -> 73035.19254 | W76: ='Historic Data from PDF'!V186*W90/1000 -> 93438.1
C77: Earnings to Common | H77: ='Historic Data from PDF'!G155 -> 1698 | I77: ='Historic Data from PDF'!H155 -> 1370 | J77: ='Historic Data from PDF'!I155 -> 1011 | K77: ='Historic Data from PDF'!J155 -> 1179 | L77: ='Historic Data from PDF'!K155 -> 1425 | M77: ='Historic Data from PDF'!L155 -> 1110 | N77: ='Historic Data from PDF'!M155 -> 1884 | O77: ='Historic Data from PDF'!N155 -> 2297 | P77: ='Historic Data from PDF'!O155 -> 4077 | Q77: ='Historic Data from PDF'!P155 -> 4170 | R77: ='Historic Data from PDF'!Q155 -> 5425 | S77: ='Historic Data from PDF'!R155 -> 5203 | T77: ='Historic Data from PDF'!S155 -> 5504 | U77: ='Historic Data from PDF'!T155 -> 5772 | V77: ='Historic Data from PDF'!U155 -> 5496 | W77: ='Historic Data from PDF'!V155 -> 4557
C78: P/E ratio from LTM | H78: =H76/H77 -> 16.51178503 | I78: 15.33594016 | J78: 18.65347279 | K78: 13.39583461 | L78: 14.84722264 | M78: 18.74652024 | N78: 22.7133535 | O78: 16.53379759 | P78: 6.409737715 | Q78: 14.04804604 | R78: 15.70378461 | S78: 11.87234576 | T78: 15.35528161 | U78: 15.85582121 | V78: 13.28879049 | W78: 20.50430108
C79: P/E ratio from Forward | H79: =IF(I77,H76/I77) -> 20.46497152 | I79: 20.78163998 | J79: 15.99547158 | K79: 11.08329053 | L79: 19.06062366 | M79: 11.04492435 | N79: 18.62949848 | O79: 9.31521537 | P79: 6.26678673 | Q79: 10.79822157 | R79: 16.37382885 | S79: 11.22307685 | T79: 14.64231982 | U79: 16.65207424 | V79: 16.02703369 | W79: FALSE
C81: Net Debt | H81: ='Historic Data from PDF'!C50 -> 0 | I81: ='Historic Data from PDF'!H50 -> 0 | J81: ='Historic Data from PDF'!I50 -> 0 | K81: ='Historic Data from PDF'!J50 -> 0 | L81: ='Historic Data from PDF'!K50 -> 0 | M81: ='Historic Data from PDF'!L50 -> 23068 | N81: ='Historic Data from PDF'!M50 -> 22129 | O81: ='Historic Data from PDF'!N50 -> 23091 | P81: ='Historic Data from PDF'!O50 -> 47337 | Q81: ='Historic Data from PDF'!P50 -> 38720 | R81: ='Historic Data from PDF'!Q50 -> 36113 | S81: ='Historic Data from PDF'!R50 -> 36218 | T81: ='Historic Data from PDF'!S50 -> 38255 | U81: ='Historic Data from PDF'!T50 -> 39692 | V81: ='Historic Data from PDF'!U50 -> 42733 | W81: ='Historic Data from PDF'!V50 -> 38132
C82: Enterprise Value | H82: =H81+H76 -> 28037.01099 | I82: 21010.23802 | J82: 18858.66099 | K82: 15793.689 | L82: 21157.29226 | M82: 43876.63747 | N82: 64920.958 | O82: 61069.13307 | P82: 73469.50067 | Q82: 97300.352 | R82: 121306.0315 | S82: 97989.815 | T82: 122770.47 | U82: 131211.8 | V82: 115768.1925 | W82: 131570.1
C84: EV to EBITDA | H84: =IF(H81,H82/H12) -> FALSE | I84: FALSE | J84: FALSE | K84: FALSE | L84: FALSE | M84: 7.91282912 | N84: 10.0295007 | O84: 7.978721331 | P84: 6.65062919 | Q84: 7.753016096 | R84: 8.892100242 | S84: 7.553948119 | T84: 9.175670404 | U84: 10.40950417 | V84: 9.237069539 | W84: 10.72903042
C85: EV to EBIT | H85: =IF(H81,H82/H43) -> FALSE | I85: FALSE | J85: FALSE | K85: FALSE | L85: FALSE | M85: 15.96094488 | N85: 18.44345398 | O85: 12.49879924 | P85: 9.901549955 | Q85: 11.0807826 | R85: 12.56406334 | S85: 10.66033671 | T85: 13.07598999 | U85: 15.00935713 | V85: 13.73288168 | W85: 17.33694821
C87: Price to Book Ratio | H87: =H76/'Historic Data from PDF'!G157 -> 2.237769254 | I87: =I76/'Historic Data from PDF'!H157 -> 1.744891456 | J87: =J76/'Historic Data from PDF'!I157 -> 1.740371077 | K87: =K76/'Historic Data from PDF'!J157 -> 1.400646417 | L87: =L76/'Historic Data from PDF'!K157 -> 1.468236798 | M87: =M76/M50 -> 1.158094249 | N87: 2.431775757 | O87: 1.904364849 | P87: 0.4706777736 | Q87: 1.068419121 | R87: 1.326002856 | S87: 0.9378406917 | T87: 1.202878837 | U87: 1.349630591 | V87: 1.392817906 | W87: 2.148545609
C88: EV to Invested Capital Ratio | H88: =IF(H81,H82/H46) -> FALSE | I88: FALSE | J88: FALSE | K88: FALSE | L88: FALSE | M88: 1.053258377 | N88: 1.58571989 | O88: 1.424884693 | P88: 0.6866115965 | Q88: 1.002827613 | R88: 1.189204865 | S88: 0.9349905537 | T88: 1.142220889 | U88: 1.187716567 | V88: 1.220385323 | W88: 1.5879944
C90: Number of shares year end excl treasury shares | H90: 63706 | I90: 63706 | J90: 63906 | K90: 60862 | L90: 76078 | M90: 76278 | N90: 76278 | O90: 76246 | P90: 152554 | Q90: 152553 | R90: 152539 | S90: 152523 | T90: 152555 | U90: 152533 | V90: 152538 | W90: 152552
A93: Assumptions
C95: Volume of sales | I95: =IF(I2,'Historic Data from PDF'!H141+'Historic Data from PDF'!H142) -> 88.20000076 | J95: =IF(J2,'Historic Data from PDF'!I141+'Historic Data from PDF'!I142) -> 99.49999809 | K95: =IF(K2,'Historic Data from PDF'!J141+'Historic Data from PDF'!J142) -> 102.6000023 | L95: =IF(L2,'Historic Data from PDF'!K141+'Historic Data from PDF'!K142) -> 111.3999996 | M95: =IF(M2,'Historic Data from PDF'!L141+'Historic Data from PDF'!L142) -> 120.6999989 | N95: =IF(N2,'Historic Data from PDF'!M141+'Historic Data from PDF'!M142) -> 120.8999977 | O95: =IF(O2,'Historic Data from PDF'!N141+'Historic Data from PDF'!N142) -> 135.9999962 | P95: =IF(P2,'Historic Data from PDF'!O141+'Historic Data from PDF'!O142) -> 149.1000023 | Q95: =IF(Q2,'Historic Data from PDF'!P141+'Historic Data from PDF'!P142) -> 159.2000008 | R95: =IF(R2,'Historic Data from PDF'!Q141+'Historic Data from PDF'!Q142) -> 159 | S95: =IF(S2,'Historic Data from PDF'!R141+'Historic Data from PDF'!R142) -> 162.0000038 | T95: =IF(T2,'Historic Data from PDF'!S141+'Historic Data from PDF'!S142) -> 162.8999939 | U95: =IF(U2,'Historic Data from PDF'!T141+'Historic Data from PDF'!T142) -> 160.1999969 | V95: =IF(V2,'Historic Data from PDF'!U141+'Historic Data from PDF'!U142) -> 157.2000008 | W95: =IF(W2,'Historic Data from PDF'!V141+'Historic Data from PDF'!V142) -> 155.1000023 | X95: =IF(X2,'Historic Data from PDF'!W141+'Historic Data from PDF'!W142) -> FALSE | Y95: =IF(Y2,'Historic Data from PDF'!X141+'Historic Data from PDF'!X142) -> FALSE | Z95: =IF(Z2,'Historic Data from PDF'!Y141+'Historic Data from PDF'!Y142) -> FALSE | AA95: =IF(AA2,'Historic Data from PDF'!Z141+'Historic Data from PDF'!Z142) -> FALSE | AB95: =IF(AB2,'Historic Data from PDF'!AA141+'Historic Data from PDF'!AA142) -> FALSE | AC95: =IF(AC2,'Historic Data from PDF'!AB141+'Historic Data from PDF'!AB142) -> FALSE | AD95: =IF(AD2,'Historic Data from PDF'!AC141+'Historic Data from PDF'!AC142) -> FALSE | AE95: =IF(AE2,'Historic Data from PDF'!AD141+'Historic Data from PDF'!AD142) -> FALSE | AF95: =IF(AF2,'Historic Data from PDF'!AE141+'Historic Data from PDF'!AE142) -> FALSE | AG95: =IF(AG2,'Historic Data from PDF'!AF141+'Historic Data from PDF'!AF142) -> FALSE
C96: =INDEX('Scenario analysis'!C36:C38,$D$96) -> Bear case Volumes | D96: ='Scenario analysis'!E24 -> 2 | I96: =IF(I2,I95,(1+INDEX('Scenario analysis'!#REF!,$D$96))*H96) -> 88.20000076 | J96: =IF(J2,J95,(1+INDEX('Scenario analysis'!#REF!,$D$96))*I96) -> 99.49999809 | K96: =IF(K2,K95,(1+INDEX('Scenario analysis'!#REF!,$D$96))*J96) -> 102.6000023 | L96: =IF(L2,L95,(1+INDEX('Scenario analysis'!#REF!,$D$96))*K96) -> 111.3999996 | M96: =IF(M2,M95,(1+INDEX('Scenario analysis'!#REF!,$D$96))*L96) -> 120.6999989 | N96: =IF(N2,N95,(1+INDEX('Scenario analysis'!#REF!,$D$96))*M96) -> 120.8999977 | O96: =IF(O2,O95,(1+INDEX('Scenario analysis'!#REF!,$D$96))*N96) -> 135.9999962 | P96: =IF(P2,P95,(1+INDEX('Scenario analysis'!#REF!,$D$96))*O96) -> 149.1000023 | Q96: =IF(Q2,Q95,(1+INDEX('Scenario analysis'!P36:P38,$D$96))*P96) -> 159.2000008 | R96: =IF(R2,R95,(1+INDEX('Scenario analysis'!Q36:Q38,$D$96))*Q96) -> 159 | S96: =IF(S2,S95,(1+INDEX('Scenario analysis'!R36:R38,$D$96))*R96) -> 162.0000038 | T96: =IF(T2,T95,(1+INDEX('Scenario analysis'!S36:S38,$D$96))*S96) -> 162.8999939 | U96: =IF(U2,U95,(1+INDEX('Scenario analysis'!T36:T38,$D$96))*T96) -> 160.1999969 | V96: =IF(V2,V95,(1+INDEX('Scenario analysis'!U36:U38,$D$96))*U96) -> 157.2000008 | W96: =IF(W2,W95,(1+INDEX('Scenario analysis'!V36:V38,$D$96))*V96) -> 155.1000023 | X96: =IF(X2,X95,(1+INDEX('Scenario analysis'!F36:F38,$D$96))*W96) -> 153.5490023 | Y96: =IF(Y2,Y95,(1+INDEX('Scenario analysis'!G36:G38,$D$96))*X96) -> 152.0135122 | Z96: =IF(Z2,Z95,(1+INDEX('Scenario analysis'!H36:H38,$D$96))*Y96) -> 150.4933771 | AA96: =IF(AA2,AA95,(1+INDEX('Scenario analysis'!I36:I38,$D$96))*Z96) -> 150.4933771 | AB96: =IF(AB2,AB95,(1+INDEX('Scenario analysis'!J36:J38,$D$96))*AA96) -> 150.4933771 | AC96: =IF(AC2,AC95,(1+INDEX('Scenario analysis'!K36:K38,$D$96))*AB96) -> 150.4933771 | AD96: =IF(AD2,AD95,(1+INDEX('Scenario analysis'!L36:L38,$D$96))*AC96) -> 150.4933771 | AE96: =IF(AE2,AE95,(1+INDEX('Scenario analysis'!M36:M38,$D$96))*AD96) -> 150.4933771 | AF96: =IF(AF2,AF95,(1+INDEX('Scenario analysis'!N36:N38,$D$96))*AE96) -> 150.4933771 | AG96: =IF(AG2,AG95,(1+INDEX('Scenario analysis'!O36:O38,$D$96))*AF96) -> 150.4933771
C98: Historic price per volume unit | I98: =IF(I2,'Historic Data from PDF'!H143/I96) -> 390.2380919 | J98: =IF(J2,'Historic Data from PDF'!I143/J96) -> 357.2261375 | K98: =IF(K2,'Historic Data from PDF'!J143/K96) -> 337.4853726 | L98: =IF(L2,'Historic Data from PDF'!K143/L96) -> 323.0430891 | M98: =IF(M2,'Historic Data from PDF'!L143/M96) -> 315.2195556 | N98: =IF(N2,'Historic Data from PDF'!M143/N96) -> 339.8097666 | O98: =IF(O2,'Historic Data from PDF'!N143/O96) -> 329.0441269 | P98: =IF(P2,'Historic Data from PDF'!O143/P96) -> 402.0388939 | Q98: =IF(Q2,'Historic Data from PDF'!P143/Q96) -> 373.0025108 | R98: =IF(R2,'Historic Data from PDF'!Q143/R96) -> 377.6981132 | S98: =IF(S2,'Historic Data from PDF'!R143/S96) -> 392.3518426 | T98: =IF(T2,'Historic Data from PDF'!S143/T96) -> 408.0294812 | U98: =IF(U2,'Historic Data from PDF'!T143/U96) -> 401.6854009 | V98: =IF(V2,'Historic Data from PDF'!U143/V96) -> 410.3435095 | W98: =IF(W2,'Historic Data from PDF'!V143/W96) -> 421.3668539 | X98: =IF(X2,'Historic Data from PDF'!W143/X96) -> FALSE | Y98: =IF(Y2,'Historic Data from PDF'!X143/Y96) -> FALSE | Z98: =IF(Z2,'Historic Data from PDF'!Y143/Z96) -> FALSE | AA98: =IF(AA2,'Historic Data from PDF'!Z143/AA96) -> FALSE | AB98: =IF(AB2,'Historic Data from PDF'!AA143/AB96) -> FALSE | AC98: =IF(AC2,'Historic Data from PDF'!AB143/AC96) -> FALSE | AD98: =IF(AD2,'Historic Data from PDF'!AC143/AD96) -> FALSE | AE98: =IF(AE2,'Historic Data from PDF'!AD143/AE96) -> FALSE | AF98: =IF(AF2,'Historic Data from PDF'!AE143/AF96) -> FALSE | AG98: =IF(AG2,'Historic Data from PDF'!AF143/AG96) -> FALSE
C99: =INDEX('Scenario analysis'!C41:C43,$D$99) -> Bear case Price | D99: ='Scenario analysis'!F24 -> 3 | I99: =IF(I2,I98,(1+INDEX('Scenario analysis'!#REF!,$D$99))*H99) -> 390.2380919 | J99: =IF(J2,J98,(1+INDEX('Scenario analysis'!#REF!,$D$99))*I99) -> 357.2261375 | K99: =IF(K2,K98,(1+INDEX('Scenario analysis'!#REF!,$D$99))*J99) -> 337.4853726 | L99: =IF(L2,L98,(1+INDEX('Scenario analysis'!#REF!,$D$99))*K99) -> 323.0430891 | M99: =IF(M2,M98,(1+INDEX('Scenario analysis'!#REF!,$D$99))*L99) -> 315.2195556 | N99: =IF(N2,N98,(1+INDEX('Scenario analysis'!#REF!,$D$99))*M99) -> 339.8097666 | O99: =IF(O2,O98,(1+INDEX('Scenario analysis'!#REF!,$D$99))*N99) -> 329.0441269 | P99: =IF(P2,P98,(1+INDEX('Scenario analysis'!#REF!,$D$99))*O99) -> 402.0388939 | Q99: =IF(Q2,Q98,(1+INDEX('Scenario analysis'!P41:P43,$D$99))*P99) -> 373.0025108 | R99: =IF(R2,R98,(1+INDEX('Scenario analysis'!Q41:Q43,$D$99))*Q99) -> 377.6981132 | S99: =IF(S2,S98,(1+INDEX('Scenario analysis'!R41:R43,$D$99))*R99) -> 392.3518426 | T99: =IF(T2,T98,(1+INDEX('Scenario analysis'!S41:S43,$D$99))*S99) -> 408.0294812 | U99: =IF(U2,U98,(1+INDEX('Scenario analysis'!T41:T43,$D$99))*T99) -> 401.6854009 | V99: =IF(V2,V98,(1+INDEX('Scenario analysis'!U41:U43,$D$99))*U99) -> 410.3435095 | W99: =IF(W2,W98,(1+INDEX('Scenario analysis'!V41:V43,$D$99))*V99) -> 421.3668539 | X99: =IF(X2,X98,(1+INDEX('Scenario analysis'!F41:F43,$D$99))*W99) -> 421.3668539 | Y99: =IF(Y2,Y98,(1+INDEX('Scenario analysis'!G41:G43,$D$99))*X99) -> 421.3668539 | Z99: =IF(Z2,Z98,(1+INDEX('Scenario analysis'!H41:H43,$D$99))*Y99) -> 421.3668539 | AA99: =IF(AA2,AA98,(1+INDEX('Scenario analysis'!I41:I43,$D$99))*Z99) -> 421.3668539 | AB99: =IF(AB2,AB98,(1+INDEX('Scenario analysis'!J41:J43,$D$99))*AA99) -> 421.3668539 | AC99: =IF(AC2,AC98,(1+INDEX('Scenario analysis'!K41:K43,$D$99))*AB99) -> 421.3668539 | AD99: =IF(AD2,AD98,(1+INDEX('Scenario analysis'!L41:L43,$D$99))*AC99) -> 421.3668539 | AE99: =IF(AE2,AE98,(1+INDEX('Scenario analysis'!M41:M43,$D$99))*AD99) -> 421.3668539 | AF99: =IF(AF2,AF98,(1+INDEX('Scenario analysis'!N41:N43,$D$99))*AE99) -> 421.3668539 | AG99: =IF(AG2,AG98,(1+INDEX('Scenario analysis'!O41:O43,$D$99))*AF99) -> 421.3668539
D101: Avg. Hist. | E101: Last hist. | F101: Input
C102: Cost per volume sold | D102: =AVERAGEIF($3:$3,TRUE,102:102) -> 166.3903263 | E102: =AVERAGEIF($4:$4,TRUE,102:102) -> 185.3965156 | F102: 245 | I102: =IF(I2,I17/SUM('Historic Data from PDF'!H141:H142),$F102) -> 0 | J102: =IF(J2,J17/SUM('Historic Data from PDF'!I141:I142),$F102) -> 0 | K102: =IF(K2,K17/SUM('Historic Data from PDF'!J141:J142),$F102) -> 0 | L102: =IF(L2,L17/SUM('Historic Data from PDF'!K141:K142),$F102) -> 0 | M102: =IF(M2,M17/SUM('Historic Data from PDF'!L141:L142),$F102) -> 133.2477229 | N102: =IF(N2,N17/SUM('Historic Data from PDF'!M141:M142),$F102) -> 142.2497959 | O102: =IF(O2,O17/SUM('Historic Data from PDF'!N141:N142),$F102) -> 144.5220629 | P102: =IF(P2,P17/SUM('Historic Data from PDF'!O141:O142),$F102) -> 185.2515062 | Q102: =IF(Q2,Q17/SUM('Historic Data from PDF'!P141:P142),$F102) -> 166.0050243 | R102: =IF(R2,R17/SUM('Historic Data from PDF'!Q141:Q142),$F102) -> 157.2012579 | S102: =IF(S2,S17/SUM('Historic Data from PDF'!R141:R142),$F102) -> 172.8888848 | T102: =IF(T2,T17/SUM('Historic Data from PDF'!S141:S142),$F102) -> 183.1798718 | U102: =IF(U2,U17/SUM('Historic Data from PDF'!T141:T142),$F102) -> 178.277157 | V102: =IF(V2,V17/SUM('Historic Data from PDF'!U141:U142),$F102) -> 182.0737905 | W102: =IF(W2,W17/SUM('Historic Data from PDF'!V141:V142),$F102) -> 185.3965156 | X102: =IF(X2,X17/SUM('Historic Data from PDF'!W141:W142),$F102) -> 245 | Y102: =IF(Y2,Y17/SUM('Historic Data from PDF'!X141:X142),$F102) -> 245 | Z102: =IF(Z2,Z17/SUM('Historic Data from PDF'!Y141:Y142),$F102) -> 245 | AA102: =IF(AA2,AA17/SUM('Historic Data from PDF'!Z141:Z142),$F102) -> 245 | AB102: =IF(AB2,AB17/SUM('Historic Data from PDF'!AA141:AA142),$F102) -> 245 | AC102: =IF(AC2,AC17/SUM('Historic Data from PDF'!AB141:AB142),$F102) -> 245 | AD102: =IF(AD2,AD17/SUM('Historic Data from PDF'!AC141:AC142),$F102) -> 245 | AE102: =IF(AE2,AE17/SUM('Historic Data from PDF'!AD141:AD142),$F102) -> 245 | AF102: =IF(AF2,AF17/SUM('Historic Data from PDF'!AE141:AE142),$F102) -> 245 | AG102: =IF(AG2,AG17/SUM('Historic Data from PDF'!AF141:AF142),$F102) -> 245
C103: COGS in pct of revenue | D103: =AVERAGEIF($3:$3,TRUE,103:103) -> 0.4381540578 | E103: =AVERAGEIF($4:$4,TRUE,103:103) -> 0.439988371 | F103: ='Scenario analysis'!G24 -> 0.445 | I103: =IF(I$2,I18,$F103) -> 0 | J103: 0 | K103: 0 | L103: 0 | M103: 0.4227140116 | N103: 0.4186159725 | O103: 0.4392178771 | P103: 0.4607800614 | Q103: 0.4450506888 | R103: 0.4162087455 | S103: 0.4406475669 | T103: 0.4489378347 | U103: 0.4438228438 | V103: 0.4437106626 | W103: 0.439988371 | X103: 0.445 | Y103: 0.445 | Z103: 0.445 | AA103: 0.445 | AB103: 0.445 | AC103: 0.445 | AD103: 0.445 | AE103: 0.445 | AF103: 0.445 | AG103: 0.445
C104: =C21 -> SG&A as Pct of Sales | D104: =AVERAGEIF($3:$3,TRUE,104:104) -> 0.3018474251 | E104: =AVERAGEIF($4:$4,TRUE,104:104) -> 0.2931419653 | F104: ='Scenario analysis'!H24 -> 0.3 | I104: =IF(I$2,I21,$F104) -> 0 | J104: 0 | K104: 0 | L104: 0 | M104: 0.350408705 | N104: 0.3449845435 | O104: 0.3246480447 | P104: 0.293473909 | Q104: 0.2692566771 | R104: 0.2857095281 | S104: 0.2907915231 | T104: 0.2955557562 | U104: 0.2825330225 | V104: 0.2898180014 | W104: 0.2931419653 | X104: 0.3 | Y104: 0.3 | Z104: 0.3 | AA104: 0.3 | AB104: 0.3 | AC104: 0.3 | AD104: 0.3 | AE104: 0.3 | AF104: 0.3 | AG104: 0.3
C105: =C22 -> Admin as Pct of Sales | D105: =AVERAGEIF($3:$3,TRUE,105:105) -> 0.06911401922 | E105: =AVERAGEIF($4:$4,TRUE,105:105) -> 0.07511399455 | F105: ='Scenario analysis'!I24 -> 0.075 | I105: =IF(I$2,I22,$F105) -> 0 | J105: 0 | K105: 0 | L105: 0 | M105: 0.07782479565 | N105: 0.07460506779 | O105: 0.0697877095 | P105: 0.06562791939 | Q105: 0.06522178438 | R105: 0.06727278782 | S105: 0.06140557889 | T105: 0.06296262863 | U105: 0.06860916861 | V105: 0.07182277618 | W105: 0.07511399455 | X105: 0.075 | Y105: 0.075 | Z105: 0.075 | AA105: 0.075 | AB105: 0.075 | AC105: 0.075 | AD105: 0.075 | AE105: 0.075 | AF105: 0.075 | AG105: 0.075
C106: Other Income and Restructuring | D106: =AVERAGEIF($3:$3,TRUE,106:106) -> -191.5454545 | E106: =AVERAGEIF($4:$4,TRUE,106:106) -> -351 | F106: -351 | I106: =IF(I$2,'Historic Data from PDF'!H80+'Historic Data from PDF'!H81+'Historic Data from PDF'!H106,$F106) -> 0 | J106: =IF(J$2,'Historic Data from PDF'!I80+'Historic Data from PDF'!I81+'Historic Data from PDF'!I106,$F106) -> 0 | K106: =IF(K$2,'Historic Data from PDF'!J80+'Historic Data from PDF'!J81+'Historic Data from PDF'!J106,$F106) -> 0 | L106: =IF(L$2,'Historic Data from PDF'!K80+'Historic Data from PDF'!K81+'Historic Data from PDF'!K106,$F106) -> 0 | M106: =IF(M$2,'Historic Data from PDF'!L80+'Historic Data from PDF'!L81+'Historic Data from PDF'!L106,$F106) -> -126 | N106: =IF(N$2,'Historic Data from PDF'!M80+'Historic Data from PDF'!M81+'Historic Data from PDF'!M106,$F106) -> -210 | O106: =IF(O$2,'Historic Data from PDF'!N80+'Historic Data from PDF'!N81+'Historic Data from PDF'!N106,$F106) -> 106 | P106: =IF(P$2,'Historic Data from PDF'!O80+'Historic Data from PDF'!O81+'Historic Data from PDF'!O106,$F106) -> 246 | Q106: =IF(Q$2,'Historic Data from PDF'!P80+'Historic Data from PDF'!P81+'Historic Data from PDF'!P106,$F106) -> -552 | R106: =IF(R$2,'Historic Data from PDF'!Q80+'Historic Data from PDF'!Q81+'Historic Data from PDF'!Q106,$F106) -> -219 | S106: =IF(S$2,'Historic Data from PDF'!R80+'Historic Data from PDF'!R81+'Historic Data from PDF'!R106,$F106) -> -199 | T106: =IF(T$2,'Historic Data from PDF'!S80+'Historic Data from PDF'!S81+'Historic Data from PDF'!S106,$F106) -> -179 | U106: =IF(U$2,'Historic Data from PDF'!T80+'Historic Data from PDF'!T81+'Historic Data from PDF'!T106,$F106) -> -595 | V106: =IF(V$2,'Historic Data from PDF'!U80+'Historic Data from PDF'!U81+'Historic Data from PDF'!U106,$F106) -> -28 | W106: =IF(W$2,'Historic Data from PDF'!V80+'Historic Data from PDF'!V81+'Historic Data from PDF'!V106,$F106) -> -351 | X106: =IF(X$2,'Historic Data from PDF'!W80+'Historic Data from PDF'!W81+'Historic Data from PDF'!W106,$F106) -> -351 | Y106: =IF(Y$2,'Historic Data from PDF'!X80+'Historic Data from PDF'!X81+'Historic Data from PDF'!X106,$F106) -> -351 | Z106: =IF(Z$2,'Historic Data from PDF'!Y80+'Historic Data from PDF'!Y81+'Historic Data from PDF'!Y106,$F106) -> -351 | AA106: =IF(AA$2,'Historic Data from PDF'!Z80+'Historic Data from PDF'!Z81+'Historic Data from PDF'!Z106,$F106) -> -351 | AB106: =IF(AB$2,'Historic Data from PDF'!AA80+'Historic Data from PDF'!AA81+'Historic Data from PDF'!AA106,$F106) -> -351 | AC106: =IF(AC$2,'Historic Data from PDF'!AB80+'Historic Data from PDF'!AB81+'Historic Data from PDF'!AB106,$F106) -> -351 | AD106: =IF(AD$2,'Historic Data from PDF'!AC80+'Historic Data from PDF'!AC81+'Historic Data from PDF'!AC106,$F106) -> -351 | AE106: =IF(AE$2,'Historic Data from PDF'!AD80+'Historic Data from PDF'!AD81+'Historic Data from PDF'!AD106,$F106) -> -351 | AF106: =IF(AF$2,'Historic Data from PDF'!AE80+'Historic Data from PDF'!AE81+'Historic Data from PDF'!AE106,$F106) -> -351 | AG106: =IF(AG$2,'Historic Data from PDF'!AF80+'Historic Data from PDF'!AF81+'Historic Data from PDF'!AF106,$F106) -> -351
B108: Working capital changes
C109: Accounts receivables in pct of revenue | D109: =AVERAGEIF($3:$3,TRUE,109:109) -> 0.2060975712 | E109: =AVERAGEIF($4:$4,TRUE,109:109) -> 0.1761636625 | F109: 0.18 | I109: =IFERROR(IF(I$2,'Historic Data from PDF'!H52/'Historic Data from PDF'!H75,$F109),FALSE) -> FALSE | J109: =IFERROR(IF(J$2,'Historic Data from PDF'!I52/'Historic Data from PDF'!I75,$F109),FALSE) -> FALSE | K109: =IFERROR(IF(K$2,'Historic Data from PDF'!J52/'Historic Data from PDF'!J75,$F109),FALSE) -> FALSE | L109: =IFERROR(IF(L$2,'Historic Data from PDF'!K52/'Historic Data from PDF'!K75,$F109),FALSE) -> FALSE | M109: =IFERROR(IF(M$2,'Historic Data from PDF'!L52/'Historic Data from PDF'!L75,$F109),FALSE) -> 0.2877493626 | N109: =IFERROR(IF(N$2,'Historic Data from PDF'!M52/'Historic Data from PDF'!M75,$F109),FALSE) -> 0.2286347151 | O109: =IFERROR(IF(O$2,'Historic Data from PDF'!N52/'Historic Data from PDF'!N75,$F109),FALSE) -> 0.2297653631 | P109: =IFERROR(IF(P$2,'Historic Data from PDF'!O52/'Historic Data from PDF'!O75,$F109),FALSE) -> 0.2109302015 | Q109: =IFERROR(IF(Q$2,'Historic Data from PDF'!P52/'Historic Data from PDF'!P75,$F109),FALSE) -> 0.1699673302 | R109: =IFERROR(IF(R$2,'Historic Data from PDF'!Q52/'Historic Data from PDF'!Q75,$F109),FALSE) -> 0.1716788224 | S109: =IFERROR(IF(S$2,'Historic Data from PDF'!R52/'Historic Data from PDF'!R75,$F109),FALSE) -> 0.1942543384 | T109: =IFERROR(IF(T$2,'Historic Data from PDF'!S52/'Historic Data from PDF'!S75,$F109),FALSE) -> 0.1940744929 | U109: =IFERROR(IF(U$2,'Historic Data from PDF'!T52/'Historic Data from PDF'!T75,$F109),FALSE) -> 0.2055788656 | V109: =IFERROR(IF(V$2,'Historic Data from PDF'!U52/'Historic Data from PDF'!U75,$F109),FALSE) -> 0.1982761294 | W109: =IFERROR(IF(W$2,'Historic Data from PDF'!V52/'Historic Data from PDF'!V75,$F109),FALSE) -> 0.1761636625 | X109: =IFERROR(IF(X$2,'Historic Data from PDF'!W52/'Historic Data from PDF'!W75,$F109),FALSE) -> 0.18 | Y109: =IFERROR(IF(Y$2,'Historic Data from PDF'!X52/'Historic Data from PDF'!X75,$F109),FALSE) -> 0.18 | Z109: =IFERROR(IF(Z$2,'Historic Data from PDF'!Y52/'Historic Data from PDF'!Y75,$F109),FALSE) -> 0.18 | AA109: =IFERROR(IF(AA$2,'Historic Data from PDF'!Z52/'Historic Data from PDF'!Z75,$F109),FALSE) -> 0.18 | AB109: =IFERROR(IF(AB$2,'Historic Data from PDF'!AA52/'Historic Data from PDF'!AA75,$F109),FALSE) -> 0.18 | AC109: =IFERROR(IF(AC$2,'Historic Data from PDF'!AB52/'Historic Data from PDF'!AB75,$F109),FALSE) -> 0.18 | AD109: =IFERROR(IF(AD$2,'Historic Data from PDF'!AC52/'Historic Data from PDF'!AC75,$F109),FALSE) -> 0.18 | AE109: =IFERROR(IF(AE$2,'Historic Data from PDF'!AD52/'Historic Data from PDF'!AD75,$F109),FALSE) -> 0.18 | AF109: =IFERROR(IF(AF$2,'Historic Data from PDF'!AE52/'Historic Data from PDF'!AE75,$F109),FALSE) -> 0.18 | AG109: =IFERROR(IF(AG$2,'Historic Data from PDF'!AF52/'Historic Data from PDF'!AF75,$F109),FALSE) -> 0.18
C110: Inventory in pct of COGS | D110: =AVERAGEIF($3:$3,TRUE,110:110) -> 0.16493462 | E110: =AVERAGEIF($4:$4,TRUE,110:110) -> 0.1327421318 | F110: 0.15 | I110: =IFERROR(IF(I$2,'Historic Data from PDF'!H13/I17,$F110),FALSE) -> FALSE | J110: =IFERROR(IF(J$2,'Historic Data from PDF'!I13/J17,$F110),FALSE) -> FALSE | K110: =IFERROR(IF(K$2,'Historic Data from PDF'!J13/K17,$F110),FALSE) -> FALSE | L110: =IFERROR(IF(L$2,'Historic Data from PDF'!K13/L17,$F110),FALSE) -> FALSE | M110: =IFERROR(IF(M$2,'Historic Data from PDF'!L13/M17,$F110),FALSE) -> 0.1782005845 | N110: =IFERROR(IF(N$2,'Historic Data from PDF'!M13/N17,$F110),FALSE) -> 0.1872310734 | O110: =IFERROR(IF(O$2,'Historic Data from PDF'!N13/O17,$F110),FALSE) -> 0.1942508268 | P110: =IFERROR(IF(P$2,'Historic Data from PDF'!O13/P17,$F110),FALSE) -> 0.1924984613 | Q110: =IFERROR(IF(Q$2,'Historic Data from PDF'!P13/Q17,$F110),FALSE) -> 0.1362570002 | R110: =IFERROR(IF(R$2,'Historic Data from PDF'!Q13/R17,$F110),FALSE) -> 0.1676735347 | S110: =IFERROR(IF(S$2,'Historic Data from PDF'!R13/S17,$F110),FALSE) -> 0.1553127678 | T110: =IFERROR(IF(T$2,'Historic Data from PDF'!S13/T17,$F110),FALSE) -> 0.1521782842 | U110: =IFERROR(IF(U$2,'Historic Data from PDF'!T13/U17,$F110),FALSE) -> 0.1607843137 | V110: =IFERROR(IF(V$2,'Historic Data from PDF'!U13/V17,$F110),FALSE) -> 0.1571518412 | W110: =IFERROR(IF(W$2,'Historic Data from PDF'!V13/W17,$F110),FALSE) -> 0.1327421318 | X110: =IFERROR(IF(X$2,'Historic Data from PDF'!W13/X17,$F110),FALSE) -> 0.15 | Y110: =IFERROR(IF(Y$2,'Historic Data from PDF'!X13/Y17,$F110),FALSE) -> 0.15 | Z110: =IFERROR(IF(Z$2,'Historic Data from PDF'!Y13/Z17,$F110),FALSE) -> 0.15 | AA110: =IFERROR(IF(AA$2,'Historic Data from PDF'!Z13/AA17,$F110),FALSE) -> 0.15 | AB110: =IFERROR(IF(AB$2,'Historic Data from PDF'!AA13/AB17,$F110),FALSE) -> 0.15 | AC110: =IFERROR(IF(AC$2,'Historic Data from PDF'!AB13/AC17,$F110),FALSE) -> 0.15 | AD110: =IFERROR(IF(AD$2,'Historic Data from PDF'!AC13/AD17,$F110),FALSE) -> 0.15 | AE110: =IFERROR(IF(AE$2,'Historic Data from PDF'!AD13/AE17,$F110),FALSE) -> 0.15 | AF110: =IFERROR(IF(AF$2,'Historic Data from PDF'!AE13/AF17,$F110),FALSE) -> 0.15 | AG110: =IFERROR(IF(AG$2,'Historic Data from PDF'!AF13/AG17,$F110),FALSE) -> 0.15
C111: Accounts payables in pct of COGS | D111: =AVERAGEIF($3:$3,TRUE,111:111) -> 0.3574973296 | E111: =AVERAGEIF($4:$4,TRUE,111:111) -> 0.4263606329 | F111: 0.42 | I111: =IFERROR(IF(I$2,'Historic Data from PDF'!H38/I17,$F111),FALSE) -> FALSE | J111: =IFERROR(IF(J$2,'Historic Data from PDF'!I38/J17,$F111),FALSE) -> FALSE | K111: =IFERROR(IF(K$2,'Historic Data from PDF'!J38/K17,$F111),FALSE) -> FALSE | L111: =IFERROR(IF(L$2,'Historic Data from PDF'!K38/L17,$F111),FALSE) -> FALSE | M111: =IFERROR(IF(M$2,'Historic Data from PDF'!L38/M17,$F111),FALSE) -> 0.280606852 | N111: =IFERROR(IF(N$2,'Historic Data from PDF'!M38/N17,$F111),FALSE) -> 0.2992789859 | O111: =IFERROR(IF(O$2,'Historic Data from PDF'!N38/O17,$F111),FALSE) -> 0.2967692699 | P111: =IFERROR(IF(P$2,'Historic Data from PDF'!O38/P17,$F111),FALSE) -> 0.2893812679 | Q111: =IFERROR(IF(Q$2,'Historic Data from PDF'!P38/Q17,$F111),FALSE) -> 0.3000227032 | R111: =IFERROR(IF(R$2,'Historic Data from PDF'!Q38/R17,$F111),FALSE) -> 0.375475095 | S111: =IFERROR(IF(S$2,'Historic Data from PDF'!R38/S17,$F111),FALSE) -> 0.3934947158 | T111: =IFERROR(IF(T$2,'Historic Data from PDF'!S38/T17,$F111),FALSE) -> 0.3975201072 | U111: =IFERROR(IF(U$2,'Historic Data from PDF'!T38/U17,$F111),FALSE) -> 0.4526260504 | V111: =IFERROR(IF(V$2,'Historic Data from PDF'!U38/V17,$F111),FALSE) -> 0.4209349451 | W111: =IFERROR(IF(W$2,'Historic Data from PDF'!V38/W17,$F111),FALSE) -> 0.4263606329 | X111: =IFERROR(IF(X$2,'Historic Data from PDF'!W38/X17,$F111),FALSE) -> 0.42 | Y111: =IFERROR(IF(Y$2,'Historic Data from PDF'!X38/Y17,$F111),FALSE) -> 0.42 | Z111: =IFERROR(IF(Z$2,'Historic Data from PDF'!Y38/Z17,$F111),FALSE) -> 0.42 | AA111: =IFERROR(IF(AA$2,'Historic Data from PDF'!Z38/AA17,$F111),FALSE) -> 0.42 | AB111: =IFERROR(IF(AB$2,'Historic Data from PDF'!AA38/AB17,$F111),FALSE) -> 0.42 | AC111: =IFERROR(IF(AC$2,'Historic Data from PDF'!AB38/AC17,$F111),FALSE) -> 0.42 | AD111: =IFERROR(IF(AD$2,'Historic Data from PDF'!AC38/AD17,$F111),FALSE) -> 0.42 | AE111: =IFERROR(IF(AE$2,'Historic Data from PDF'!AD38/AE17,$F111),FALSE) -> 0.42 | AF111: =IFERROR(IF(AF$2,'Historic Data from PDF'!AE38/AF17,$F111),FALSE) -> 0.42 | AG111: =IFERROR(IF(AG$2,'Historic Data from PDF'!AF38/AG17,$F111),FALSE) -> 0.42
C112: Other current liabilities in pct of revenue | D112: =AVERAGEIF($3:$3,TRUE,112:112) -> 0.2078280807 | E112: =AVERAGEIF($4:$4,TRUE,112:112) -> 0.2385163877 | F112: 0.239 | I112: =IFERROR(IF(I$2,'Historic Data from PDF'!H53/'Historic Data from PDF'!H75,$F112),FALSE) -> FALSE | J112: =IFERROR(IF(J$2,'Historic Data from PDF'!I53/'Historic Data from PDF'!I75,$F112),FALSE) -> FALSE | K112: =IFERROR(IF(K$2,'Historic Data from PDF'!J53/'Historic Data from PDF'!J75,$F112),FALSE) -> FALSE | L112: =IFERROR(IF(L$2,'Historic Data from PDF'!K53/'Historic Data from PDF'!K75,$F112),FALSE) -> FALSE | M112: =IFERROR(IF(M$2,'Historic Data from PDF'!L53/'Historic Data from PDF'!L75,$F112),FALSE) -> 0.1922096355 | N112: =IFERROR(IF(N$2,'Historic Data from PDF'!M53/'Historic Data from PDF'!M75,$F112),FALSE) -> 0.1598714797 | O112: =IFERROR(IF(O$2,'Historic Data from PDF'!N53/'Historic Data from PDF'!N75,$F112),FALSE) -> 0.1623240223 | P112: =IFERROR(IF(P$2,'Historic Data from PDF'!O53/'Historic Data from PDF'!O75,$F112),FALSE) -> 0.2191545442 | Q112: =IFERROR(IF(Q$2,'Historic Data from PDF'!P53/'Historic Data from PDF'!P75,$F112),FALSE) -> 0.235256475 | R112: =IFERROR(IF(R$2,'Historic Data from PDF'!Q53/'Historic Data from PDF'!Q75,$F112),FALSE) -> 0.2447297432 | S112: =IFERROR(IF(S$2,'Historic Data from PDF'!R53/'Historic Data from PDF'!R75,$F112),FALSE) -> 0.2093894055 | T112: =IFERROR(IF(T$2,'Historic Data from PDF'!S53/'Historic Data from PDF'!S75,$F112),FALSE) -> 0.1924376125 | U112: =IFERROR(IF(U$2,'Historic Data from PDF'!T53/'Historic Data from PDF'!T75,$F112),FALSE) -> 0.1971561772 | V112: =IFERROR(IF(V$2,'Historic Data from PDF'!U53/'Historic Data from PDF'!U75,$F112),FALSE) -> 0.235063405 | W112: =IFERROR(IF(W$2,'Historic Data from PDF'!V53/'Historic Data from PDF'!V75,$F112),FALSE) -> 0.2385163877 | X112: =IFERROR(IF(X$2,'Historic Data from PDF'!W53/'Historic Data from PDF'!W75,$F112),FALSE) -> 0.239 | Y112: =IFERROR(IF(Y$2,'Historic Data from PDF'!X53/'Historic Data from PDF'!X75,$F112),FALSE) -> 0.239 | Z112: =IFERROR(IF(Z$2,'Historic Data from PDF'!Y53/'Historic Data from PDF'!Y75,$F112),FALSE) -> 0.239 | AA112: =IFERROR(IF(AA$2,'Historic Data from PDF'!Z53/'Historic Data from PDF'!Z75,$F112),FALSE) -> 0.239 | AB112: =IFERROR(IF(AB$2,'Historic Data from PDF'!AA53/'Historic Data from PDF'!AA75,$F112),FALSE) -> 0.239 | AC112: =IFERROR(IF(AC$2,'Historic Data from PDF'!AB53/'Historic Data from PDF'!AB75,$F112),FALSE) -> 0.239 | AD112: =IFERROR(IF(AD$2,'Historic Data from PDF'!AC53/'Historic Data from PDF'!AC75,$F112),FALSE) -> 0.239 | AE112: =IFERROR(IF(AE$2,'Historic Data from PDF'!AD53/'Historic Data from PDF'!AD75,$F112),FALSE) -> 0.239 | AF112: =IFERROR(IF(AF$2,'Historic Data from PDF'!AE53/'Historic Data from PDF'!AE75,$F112),FALSE) -> 0.239 | AG112: =IFERROR(IF(AG$2,'Historic Data from PDF'!AF53/'Historic Data from PDF'!AF75,$F112),FALSE) -> 0.239
C114: Capex | D114: =AVERAGEIF($3:$3,TRUE,114:114) -> 3651.818182 | E114: =AVERAGEIF($4:$4,TRUE,114:114) -> 2922 | F114: 5500 | H114: =IFERROR(IF(H$2,#REF!,$F114),"") ->  | I114: =IFERROR(IF(I$2,I29,$F114),"") -> 0 | J114: 0 | K114: 0 | L114: 0 | M114: 1501 | N114: 3069 | O114: 4640 | P114: 4712 | Q114: 2702 | R114: 2736 | S114: 4054 | T114: 2736 | U114: 5451 | V114: 5647 | W114: 2922 | X114: 5500 | Y114: 5500 | Z114: 5500 | AA114: 5500 | AB114: 5500 | AC114: 5500 | AD114: 5500 | AE114: 5500 | AF114: 5500 | AG114: 5500
C116: Depreciation | D116: =AVERAGEIF($3:$3,TRUE,116:116) -> 0.131699451 | E116: =AVERAGEIF($4:$4,TRUE,116:116) -> 0.1686573088 | F116: 0.17 | I116: =IFERROR(IF(I$2,I26,$F116),"") -> FALSE | J116: FALSE | K116: FALSE | L116: FALSE | M116: 0.1373618276 | N116: 0.1450321693 | O116: 0.130332423 | P116: 0.1291850691 | Q116: 0.1144410032 | R116: 0.1241186085 | S116: 0.1176324143 | T116: 0.1250332869 | U116: 0.1212320921 | V116: 0.1356677578 | W116: 0.1686573088 | X116: 0.17 | Y116: 0.17 | Z116: 0.17 | AA116: 0.17 | AB116: 0.17 | AC116: 0.17 | AD116: 0.17 | AE116: 0.17 | AF116: 0.17 | AG116: 0.17
C117: Tax Rate | D117: =AVERAGEIF($3:$3,TRUE,117:117) -> 0.1565882579 | E117: =AVERAGEIF($4:$4,TRUE,117:117) -> -0.4899019042 | F117: 0.25 | I117: =IFERROR(IF(I$2,I32,$F117),"") -> 0 | J117: 0 | K117: 0 | L117: 0 | M117: 0.2753699789 | N117: 0.2832618026 | O117: 0.2856356632 | P117: -0.1124219292 | Q117: 0.2695880806 | R117: 0.2402804334 | S117: 0.2440903054 | T117: 0.2295830249 | U117: 0.2355435621 | V117: 0.2614418187 | W117: -0.4899019042 | X117: 0.25 | Y117: 0.25 | Z117: 0.25 | AA117: 0.25 | AB117: 0.25 | AC117: 0.25 | AD117: 0.25 | AE117: 0.25 | AF117: 0.25 | AG117: 0.25
A119: Revenues, expenses and capex
B120: Revenues
C121: Price | I121: =I99 -> 390.2380919 | J121: 357.2261375 | K121: 337.4853726 | L121: 323.0430891 | M121: 315.2195556 | N121: 339.8097666 | O121: 329.0441269 | P121: 402.0388939 | Q121: 373.0025108 | R121: 377.6981132 | S121: 392.3518426 | T121: 408.0294812 | U121: 401.6854009 | V121: 410.3435095 | W121: 421.3668539 | X121: 421.3668539 | Y121: 421.3668539 | Z121: 421.3668539 | AA121: 421.3668539 | AB121: 421.3668539 | AC121: 421.3668539 | AD121: 421.3668539 | AE121: 421.3668539 | AF121: 421.3668539 | AG121: 421.3668539
C122: Quantity | I122: =I96 -> 88.20000076 | J122: 99.49999809 | K122: 102.6000023 | L122: 111.3999996 | M122: 120.6999989 | N122: 120.8999977 | O122: 135.9999962 | P122: 149.1000023 | Q122: 159.2000008 | R122: 159 | S122: 162.0000038 | T122: 162.8999939 | U122: 160.1999969 | V122: 157.2000008 | W122: 155.1000023 | X122: 153.5490023 | Y122: 152.0135122 | Z122: 150.4933771 | AA122: 150.4933771 | AB122: 150.4933771 | AC122: 150.4933771 | AD122: 150.4933771 | AE122: 150.4933771 | AF122: 150.4933771 | AG122: 150.4933771
C123: Revenue for valuation | I123: =I121*I122 -> 34419 | J123: 35544 | K123: 34626 | L123: 35987 | M123: 38047 | N123: 41083 | O123: 44750 | P123: 59944 | Q123: 59382 | R123: 60054 | S123: 63561 | T123: 66468 | U123: 64350 | V123: 64506 | W123: 65354 | X123: 64700.46 | Y123: 64053.4554 | Z123: 63412.92085 | AA123: 63412.92085 | AB123: 63412.92085 | AC123: 63412.92085 | AD123: 63412.92085 | AE123: 63412.92085 | AF123: 63412.92085 | AG123: 63412.92085
B125: COGS Analysis
C126: COGS in pct of revenue | I126: =I103 -> 0 | J126: 0 | K126: 0 | L126: 0 | M126: 0.4227140116 | N126: 0.4186159725 | O126: 0.4392178771 | P126: 0.4607800614 | Q126: 0.4450506888 | R126: 0.4162087455 | S126: 0.4406475669 | T126: 0.4489378347 | U126: 0.4438228438 | V126: 0.4437106626 | W126: 0.439988371 | X126: 0.445 | Y126: 0.445 | Z126: 0.445 | AA126: 0.445 | AB126: 0.445 | AC126: 0.445 | AD126: 0.445 | AE126: 0.445 | AF126: 0.445 | AG126: 0.445
C127: COGS for valuation | I127: =I123*I126 -> 0 | J127: 0 | K127: 0 | L127: 0 | M127: 16083 | N127: 17198 | O127: 19655 | P127: 27621 | Q127: 26428 | R127: 24995 | S127: 28008 | T127: 29840 | U127: 28560 | V127: 28622 | W127: 28755 | X127: 28791.7047 | Y127: 28503.78765 | Z127: 28218.74978 | AA127: 28218.74978 | AB127: 28218.74978 | AC127: 28218.74978 | AD127: 28218.74978 | AE127: 28218.74978 | AF127: 28218.74978 | AG127: 28218.74978
B129: SG&A Analysis
C130: SG&A in pct of revenue | I130: =I104 -> 0 | J130: 0 | K130: 0 | L130: 0 | M130: 0.350408705 | N130: 0.3449845435 | O130: 0.3246480447 | P130: 0.293473909 | Q130: 0.2692566771 | R130: 0.2857095281 | S130: 0.2907915231 | T130: 0.2955557562 | U130: 0.2825330225 | V130: 0.2898180014 | W130: 0.2931419653 | X130: 0.3 | Y130: 0.3 | Z130: 0.3 | AA130: 0.3 | AB130: 0.3 | AC130: 0.3 | AD130: 0.3 | AE130: 0.3 | AF130: 0.3 | AG130: 0.3
C131: SG&A for valuation | I131: =I130*I123 -> 0 | J131: 0 | K131: 0 | L131: 0 | M131: 13332 | N131: 14173 | O131: 14528 | P131: 17592 | Q131: 15989 | R131: 17158 | S131: 18483 | T131: 19645 | U131: 18181 | V131: 18695 | W131: 19158 | X131: 19410.138 | Y131: 19216.03662 | Z131: 19023.87625 | AA131: 19023.87625 | AB131: 19023.87625 | AC131: 19023.87625 | AD131: 19023.87625 | AE131: 19023.87625 | AF131: 19023.87625 | AG131: 19023.87625
B133: Admin Analysis
C134: Admin in pct of sales | I134: =I105 -> 0 | J134: 0 | K134: 0 | L134: 0 | M134: 0.07782479565 | N134: 0.07460506779 | O134: 0.0697877095 | P134: 0.06562791939 | Q134: 0.06522178438 | R134: 0.06727278782 | S134: 0.06140557889 | T134: 0.06296262863 | U134: 0.06860916861 | V134: 0.07182277618 | W134: 0.07511399455 | X134: 0.075 | Y134: 0.075 | Z134: 0.075 | AA134: 0.075 | AB134: 0.075 | AC134: 0.075 | AD134: 0.075 | AE134: 0.075 | AF134: 0.075 | AG134: 0.075
C135: Admin for valuation | I135: =I134*I123 -> 0 | J135: 0 | K135: 0 | L135: 0 | M135: 2961 | N135: 3065 | O135: 3123 | P135: 3934 | Q135: 3873 | R135: 4040 | S135: 3903 | T135: 4185 | U135: 4415 | V135: 4633 | W135: 4909 | X135: 4852.5345 | Y135: 4804.009155 | Z135: 4755.969063 | AA135: 4755.969063 | AB135: 4755.969063 | AC135: 4755.969063 | AD135: 4755.969063 | AE135: 4755.969063 | AF135: 4755.969063 | AG135: 4755.969063
C137: Other - Restructuring | I137: =I106 -> 0 | J137: 0 | K137: 0 | L137: 0 | M137: -126 | N137: -210 | O137: 106 | P137: 246 | Q137: -552 | R137: -219 | S137: -199 | T137: -179 | U137: -595 | V137: -28 | W137: -351 | X137: -351 | Y137: -351 | Z137: -351 | AA137: -351 | AB137: -351 | AC137: -351 | AD137: -351 | AE137: -351 | AF137: -351 | AG137: -351
C139: EBITDA Historic and Projected | I139: =I123-I127-I131-I135+I137 -> 34419 | J139: 35544 | K139: 34626 | L139: 35987 | M139: 5545 | N139: 6437 | O139: 7550 | P139: 11043 | Q139: 12540 | R139: 13642 | S139: 12968 | T139: 12619 | U139: 12599 | V139: 12528 | W139: 12181 | X139: 11295.0828 | Y139: 11178.62197 | Z139: 11063.32575 | AA139: 11063.32575 | AB139: 11063.32575 | AC139: 11063.32575 | AD139: 11063.32575 | AE139: 11063.32575 | AF139: 11063.32575 | AG139: 11063.32575
C140: EBITDA historic | I140: =I12 -> 0 | J140: 0 | K140: 0 | L140: 0 | M140: 5545 | N140: 6473 | O140: 7654 | P140: 11047 | Q140: 12550 | R140: 13642 | S140: 12972 | T140: 13380 | U140: 12605 | V140: 12533 | W140: 12263 | X140: 0 | Y140: 0 | Z140: 0 | AA140: 0 | AB140: 0 | AC140: 0 | AD140: 0 | AE140: 0 | AF140: 0 | AG140: 0
C141: Difference | D141: =SUMIF($2:$2,TRUE,141:141) -> 139564 | I141: =I139-I140 -> 34419 | J141: 35544 | K141: 34626 | L141: 35987 | M141: 0 | N141: -36 | O141: -104 | P141: -4 | Q141: -10 | R141: 0 | S141: -4 | T141: -761 | U141: -6 | V141: -5 | W141: -82 | X141: 11295.0828 | Y141: 11178.62197 | Z141: 11063.32575 | AA141: 11063.32575 | AB141: 11063.32575 | AC141: 11063.32575 | AD141: 11063.32575 | AE141: 11063.32575 | AF141: 11063.32575 | AG141: 11063.32575
B143: Levels
C144: Accounts receivable | I144: =I123*I109 -> 0 | J144: 0 | K144: 0 | L144: 0 | M144: 10948 | N144: 9393 | O144: 10282 | P144: 12644 | Q144: 10093 | R144: 10310 | S144: 12347 | T144: 12899.7434 | U144: 13229 | V144: 12790 | W144: 11513 | X144: 11646.0828 | Y144: 11529.62197 | Z144: 11414.32575 | AA144: 11414.32575 | AB144: 11414.32575 | AC144: 11414.32575 | AD144: 11414.32575 | AE144: 11414.32575 | AF144: 11414.32575 | AG144: 11414.32575
C145: Inventory | I145: =I127*I110 -> 0 | J145: 0 | K145: 0 | L145: 0 | M145: 2866 | N145: 3220 | O145: 3818 | P145: 5317 | Q145: 3601 | R145: 4191 | S145: 4350 | T145: 4541 | U145: 4592 | V145: 4498 | W145: 3817 | X145: 4318.755705 | Y145: 4275.568148 | Z145: 4232.812466 | AA145: 4232.812466 | AB145: 4232.812466 | AC145: 4232.812466 | AD145: 4232.812466 | AE145: 4232.812466 | AF145: 4232.812466 | AG145: 4232.812466
C146: Accounts payable | I146: =I127*I111 -> 0 | J146: 0 | K146: 0 | L146: 0 | M146: 4513 | N146: 5147 | O146: 5833 | P146: 7993 | Q146: 7929 | R146: 9385 | S146: 11021 | T146: 11862 | U146: 12927 | V146: 12048 | W146: 12260 | X146: 12092.51597 | Y146: 11971.59081 | Z146: 11851.87491 | AA146: 11851.87491 | AB146: 11851.87491 | AC146: 11851.87491 | AD146: 11851.87491 | AE146: 11851.87491 | AF146: 11851.87491 | AG146: 11851.87491
C147: Other current liabilities | I147: =I123*I112 -> 0 | J147: 0 | K147: 0 | L147: 0 | M147: 7313 | N147: 6568 | O147: 7264 | P147: 13137 | Q147: 13970 | R147: 14697 | S147: 13309 | T147: 12790.94323 | U147: 12687 | V147: 15163 | W147: 15588 | X147: 15463.40994 | Y147: 15308.77584 | Z147: 15155.68808 | AA147: 15155.68808 | AB147: 15155.68808 | AC147: 15155.68808 | AD147: 15155.68808 | AE147: 15155.68808 | AF147: 15155.68808 | AG147: 15155.68808
C148: Other current Assets
C149: Net working capital | I149: =I144+I145-I146-I147+I148 -> 0 | J149: =J144+J145-J146-J147+J148 -> 0 | K149: 0 | L149: 0 | M149: 1988 | N149: 898 | O149: 1003 | P149: -3169 | Q149: -8205 | R149: -9581 | S149: -7633 | T149: -7212.199833 | U149: -7793 | V149: -9923 | W149: =W144+W145-W146-W147+W148 -> -12518 | X149: -11591.08741 | Y149: -11475.17653 | Z149: -11360.42477 | AA149: -11360.42477 | AB149: -11360.42477 | AC149: -11360.42477 | AD149: -11360.42477 | AE149: -11360.42477 | AF149: -11360.42477 | AG149: -11360.42477
C150: Change in net working capital | I150: =I149-H149 -> 0 | J150: 0 | K150: 0 | L150: 0 | M150: 1988 | N150: -1090 | O150: 105 | P150: -4172 | Q150: -5036 | R150: -1376 | S150: 1948 | T150: 420.8001667 | U150: -580.8001667 | V150: -2130 | W150: -2595 | X150: 926.912591 | Y150: 115.9108741 | Z150: 114.7517653 | AA150: 0 | AB150: 0 | AC150: 0 | AD150: 0 | AE150: 0 | AF150: 0 | AG150: 0
C151: EBITDA projected and history | I151: =I139 -> 34419 | J151: =J139 -> 35544 | K151: 34626 | L151: 35987 | M151: 5545 | N151: 6437 | O151: 7550 | P151: 11043 | Q151: 12540 | R151: 13642 | S151: 12968 | T151: 12619 | U151: 12599 | V151: 12528 | W151: 12181 | X151: 11295.0828 | Y151: 11178.62197 | Z151: 11063.32575 | AA151: 11063.32575 | AB151: 11063.32575 | AC151: 11063.32575 | AD151: 11063.32575 | AE151: 11063.32575 | AF151: 11063.32575 | AG151: 11063.32575
C152: NWC/EBITDA | I152: =I149/I151 -> 0 | J152: =J149/J151 -> 0 | K152: 0 | L152: 0 | M152: 0.3585211903 | N152: 0.139505981 | O152: 0.1328476821 | P152: -0.2869691207 | Q152: -0.6543062201 | R152: -0.7023163759 | S152: -0.5886027144 | T152: -0.5715349737 | U152: -0.6185411541 | V152: -0.7920657727 | W152: -1.027666037 | X152: -1.026206502 | Y152: -1.026528723 | Z152: -1.026854404 | AA152: -1.026854404 | AB152: -1.026854404 | AC152: -1.026854404 | AD152: -1.026854404 | AE152: -1.026854404 | AF152: -1.026854404 | AG152: -1.026854404
C154: Net Deferred Tax | I154: =IF(I2,'Historic Data from PDF'!H54,H154) -> 0 | J154: =IF(J2,'Historic Data from PDF'!I54,I154) -> 0 | K154: =IF(K2,'Historic Data from PDF'!J54,J154) -> 0 | L154: =IF(L2,'Historic Data from PDF'!K54,K154) -> 0 | M154: =IF(M2,'Historic Data from PDF'!L54,L154) -> -1357 | N154: =IF(N2,'Historic Data from PDF'!M54,M154) -> -1603 | O154: =IF(O2,'Historic Data from PDF'!N54,N154) -> -1458 | P154: =IF(P2,'Historic Data from PDF'!O54,O154) -> -8549 | Q154: =IF(Q2,'Historic Data from PDF'!P54,P154) -> -8205 | R154: =IF(R2,'Historic Data from PDF'!Q54,Q154) -> -8646 | S154: =IF(S2,'Historic Data from PDF'!R54,R154) -> -8453 | T154: =IF(T2,'Historic Data from PDF'!S54,S154) -> -8512 | U154: =IF(U2,'Historic Data from PDF'!T54,T154) -> -7707 | V154: =IF(V2,'Historic Data from PDF'!U54,U154) -> -5717 | W154: =IF(W2,'Historic Data from PDF'!V54,V154) -> -4227 | X154: =IF(X2,'Historic Data from PDF'!W54,W154) -> -4227 | Y154: =IF(Y2,'Historic Data from PDF'!X54,X154) -> -4227 | Z154: =IF(Z2,'Historic Data from PDF'!Y54,Y154) -> -4227 | AA154: =IF(AA2,'Historic Data from PDF'!Z54,Z154) -> -4227 | AB154: =IF(AB2,'Historic Data from PDF'!AA54,AA154) -> -4227 | AC154: =IF(AC2,'Historic Data from PDF'!AB54,AB154) -> -4227 | AD154: =IF(AD2,'Historic Data from PDF'!AC54,AC154) -> -4227 | AE154: =IF(AE2,'Historic Data from PDF'!AD54,AD154) -> -4227 | AF154: =IF(AF2,'Historic Data from PDF'!AE54,AE154) -> -4227 | AG154: =IF(AG2,'Historic Data from PDF'!AF54,AF154) -> -4227
C156: Capital Expenditures | I156: =I114 -> 0 | J156: 0 | K156: 0 | L156: 0 | M156: 1501 | N156: 3069 | O156: 4640 | P156: 4712 | Q156: 2702 | R156: 2736 | S156: 4054 | T156: 2736 | U156: 5451 | V156: 5647 | W156: 2922 | X156: 5500 | Y156: 5500 | Z156: 5500 | AA156: 5500 | AB156: 5500 | AC156: 5500 | AD156: 5500 | AE156: 5500 | AF156: 5500 | AG156: 5500
A158: Depreciation and Invested Capital
B160: Net Plant
C161: Opening Balance | I161: =H164 -> 0 | J161: 0 | K161: 0 | L161: 0 | M161: 0 | N161: 20355 | O161: 20367 | P161: 22109 | Q161: 34043 | R161: 31825 | S161: 32420 | T161: 31848 | U161: 31991 | V161: 31738 | W161: 28748 | X161: 26678 | Y161: 27642.74 | Z161: 28443.4742 | AA161: 29108.08359 | AB161: 29659.70938 | AC161: 30117.55878 | AD161: 30497.57379 | AE161: 30812.98625 | AF161: 31074.77858 | AG161: 31292.06622
C162: Add cap Exp | I162: =I156 -> 0 | J162: 0 | K162: 0 | L162: 0 | M162: 1501 | N162: 3069 | O162: 4640 | P162: 4712 | Q162: 2702 | R162: 2736 | S162: 4054 | T162: 2736 | U162: 5451 | V162: 5647 | W162: 2922 | X162: 5500 | Y162: 5500 | Z162: 5500 | AA162: 5500 | AB162: 5500 | AC162: 5500 | AD162: 5500 | AE162: 5500 | AF162: 5500 | AG162: 5500
C163: Less Depreciation | I163: =I116*I161 -> 0 | J163: 0 | K163: 0 | L163: 0 | M163: 0 | N163: 2952.129807 | O163: 2654.48046 | P163: 2856.152693 | Q163: 3895.915073 | R163: 3950.074714 | S163: 3813.64287 | T163: 3982.06012 | U163: 3878.33586 | V163: 4305.823298 | W163: 4848.560315 | X163: 4535.26 | Y163: 4699.2658 | Z163: 4835.390614 | AA163: 4948.37421 | AB163: 5042.150594 | AC163: 5119.984993 | AD163: 5184.587544 | AE163: 5238.207662 | AF163: 5282.712359 | AG163: 5319.651258
C164: Closing | I164: =IF(I2,'Historic Data from PDF'!H7,I161+I162-I163) -> 0 | J164: =IF(J2,'Historic Data from PDF'!I7,J161+J162-J163) -> 0 | K164: =IF(K2,'Historic Data from PDF'!J7,K161+K162-K163) -> 0 | L164: =IF(L2,'Historic Data from PDF'!K7,L161+L162-L163) -> 0 | M164: =IF(M2,'Historic Data from PDF'!L7,M161+M162-M163) -> 20355 | N164: =IF(N2,'Historic Data from PDF'!M7,N161+N162-N163) -> 20367 | O164: =IF(O2,'Historic Data from PDF'!N7,O161+O162-O163) -> 22109 | P164: =IF(P2,'Historic Data from PDF'!O7,P161+P162-P163) -> 34043 | Q164: =IF(Q2,'Historic Data from PDF'!P7,Q161+Q162-Q163) -> 31825 | R164: =IF(R2,'Historic Data from PDF'!Q7,R161+R162-R163) -> 32420 | S164: =IF(S2,'Historic Data from PDF'!R7,S161+S162-S163) -> 31848 | T164: =IF(T2,'Historic Data from PDF'!S7,T161+T162-T163) -> 31991 | U164: =IF(U2,'Historic Data from PDF'!T7,U161+U162-U163) -> 31738 | V164: =IF(V2,'Historic Data from PDF'!U7,V161+V162-V163) -> 28748 | W164: =IF(W2,'Historic Data from PDF'!V7,W161+W162-W163) -> 26678 | X164: =IF(X2,'Historic Data from PDF'!W7,X161+X162-X163) -> 27642.74 | Y164: =IF(Y2,'Historic Data from PDF'!X7,Y161+Y162-Y163) -> 28443.4742 | Z164: =IF(Z2,'Historic Data from PDF'!Y7,Z161+Z162-Z163) -> 29108.08359 | AA164: =IF(AA2,'Historic Data from PDF'!Z7,AA161+AA162-AA163) -> 29659.70938 | AB164: =IF(AB2,'Historic Data from PDF'!AA7,AB161+AB162-AB163) -> 30117.55878 | AC164: =IF(AC2,'Historic Data from PDF'!AB7,AC161+AC162-AC163) -> 30497.57379 | AD164: =IF(AD2,'Historic Data from PDF'!AC7,AD161+AD162-AD163) -> 30812.98625 | AE164: =IF(AE2,'Historic Data from PDF'!AD7,AE161+AE162-AE163) -> 31074.77858 | AF164: =IF(AF2,'Historic Data from PDF'!AE7,AF161+AF162-AF163) -> 31292.06622 | AG164: =IF(AG2,'Historic Data from PDF'!AF7,AG161+AG162-AG163) -> 31472.41497
B166: Invested capital
C167: Net Plant | I167: =I164 -> 0 | J167: 0 | K167: 0 | L167: 0 | M167: 20355 | N167: 20367 | O167: 22109 | P167: 34043 | Q167: 31825 | R167: 32420 | S167: 31848 | T167: 31991 | U167: 31738 | V167: 28748 | W167: 26678 | X167: 27642.74 | Y167: 28443.4742 | Z167: 29108.08359 | AA167: 29659.70938 | AB167: 30117.55878 | AC167: 30497.57379 | AD167: 30812.98625 | AE167: 31074.77858 | AF167: 31292.06622 | AG167: 31472.41497
C168: Intangibles | I168: =IF(I2,'Historic Data from PDF'!H6,H168) -> 0 | J168: =IF(J2,'Historic Data from PDF'!I6,I168) -> 0 | K168: =IF(K2,'Historic Data from PDF'!J6,J168) -> 0 | L168: =IF(L2,'Historic Data from PDF'!K6,K168) -> 0 | M168: =IF(M2,'Historic Data from PDF'!L6,L168) -> 20672 | N168: =IF(N2,'Historic Data from PDF'!M6,M168) -> 21279 | O168: =IF(O2,'Historic Data from PDF'!N6,N168) -> 21205 | P168: =IF(P2,'Historic Data from PDF'!O6,O168) -> 84678 | Q168: =IF(Q2,'Historic Data from PDF'!P6,P168) -> 81611 | R168: =IF(R2,'Historic Data from PDF'!Q6,Q168) -> 87813 | S168: =IF(S2,'Historic Data from PDF'!R6,R168) -> 89041 | T168: =IF(T2,'Historic Data from PDF'!S6,S168) -> 91216 | U168: =IF(U2,'Historic Data from PDF'!T6,T168) -> 94236 | V168: =IF(V2,'Historic Data from PDF'!U6,U168) -> 81754 | W168: =IF(W2,'Historic Data from PDF'!V6,V168) -> 72920 | X168: =IF(X2,'Historic Data from PDF'!W6,W168) -> 72920 | Y168: =IF(Y2,'Historic Data from PDF'!X6,X168) -> 72920 | Z168: =IF(Z2,'Historic Data from PDF'!Y6,Y168) -> 72920 | AA168: =IF(AA2,'Historic Data from PDF'!Z6,Z168) -> 72920 | AB168: =IF(AB2,'Historic Data from PDF'!AA6,AA168) -> 72920 | AC168: =IF(AC2,'Historic Data from PDF'!AB6,AB168) -> 72920 | AD168: =IF(AD2,'Historic Data from PDF'!AC6,AC168) -> 72920 | AE168: =IF(AE2,'Historic Data from PDF'!AD6,AD168) -> 72920 | AF168: =IF(AF2,'Historic Data from PDF'!AE6,AE168) -> 72920 | AG168: =IF(AG2,'Historic Data from PDF'!AF6,AF168) -> 72920
C169: Net Working Capital' | I169: =I149 -> 0 | J169: 0 | K169: 0 | L169: 0 | M169: 1988 | N169: 898 | O169: 1003 | P169: -3169 | Q169: -8205 | R169: -9581 | S169: -7633 | T169: -7212.199833 | U169: -7793 | V169: -9923 | W169: -12518 | X169: -11591.08741 | Y169: -11475.17653 | Z169: -11360.42477 | AA169: -11360.42477 | AB169: -11360.42477 | AC169: -11360.42477 | AD169: -11360.42477 | AE169: -11360.42477 | AF169: -11360.42477 | AG169: -11360.42477
C170: Net Deferred Tax | I170: =I154 -> 0 | J170: =J154 -> 0 | K170: 0 | L170: 0 | M170: -1357 | N170: -1603 | O170: -1458 | P170: -8549 | Q170: -8205 | R170: -8646 | S170: -8453 | T170: -8512 | U170: -7707 | V170: -5717 | W170: -4227 | X170: -4227 | Y170: -4227 | Z170: -4227 | AA170: -4227 | AB170: -4227 | AC170: -4227 | AD170: -4227 | AE170: -4227 | AF170: -4227 | AG170: -4227
C171: Total Invested Capital | I171: =SUM(I167:I170) -> 0 | J171: =SUM(J167:J170) -> 0 | K171: 0 | L171: 0 | M171: 41658 | N171: 40941 | O171: 42859 | P171: 107003 | Q171: 97026 | R171: 102006 | S171: 104803 | T171: 107482.8002 | U171: 110474 | V171: 94862 | W171: 82853 | X171: 84744.65259 | Y171: 85661.29767 | Z171: 86440.65882 | AA171: 86992.28461 | AB171: 87450.13401 | AC171: 87830.14902 | AD171: 88145.56148 | AE171: 88407.35381 | AF171: 88624.64145 | AG171: 88804.9902
C172: Average Invested Capital | M172: =M171 -> 41658 | N172: =AVERAGE(M171:N171) -> 41299.5 | O172: =AVERAGE(N171:O171) -> 41900 | P172: 74931 | Q172: 102014.5 | R172: 99516 | S172: 103404.5 | T172: 106142.9001 | U172: 108978.4001 | V172: 102668 | W172: 88857.5 | X172: 83798.8263 | Y172: 85202.97513 | Z172: 86050.97824 | AA172: 86716.47171 | AB172: 87221.20931 | AC172: 87640.14152 | AD172: 87987.85525 | AE172: 88276.45764 | AF172: 88515.99763 | AG172: 88714.81583
C174: Net Plant Historic | I174: ='Historic Data from PDF'!H7 -> 0 | J174: ='Historic Data from PDF'!I7 -> 0 | K174: ='Historic Data from PDF'!J7 -> 0 | L174: ='Historic Data from PDF'!K7 -> 0 | M174: ='Historic Data from PDF'!L7 -> 20355 | N174: ='Historic Data from PDF'!M7 -> 20367 | O174: ='Historic Data from PDF'!N7 -> 22109 | P174: ='Historic Data from PDF'!O7 -> 34043 | Q174: ='Historic Data from PDF'!P7 -> 31825 | R174: ='Historic Data from PDF'!Q7 -> 32420 | S174: ='Historic Data from PDF'!R7 -> 31848 | T174: ='Historic Data from PDF'!S7 -> 31991 | U174: ='Historic Data from PDF'!T7 -> 31738 | V174: ='Historic Data from PDF'!U7 -> 28748 | W174: ='Historic Data from PDF'!V7 -> 26678 | X174: ='Historic Data from PDF'!W7 -> 0 | Y174: ='Historic Data from PDF'!X7 -> 1 | Z174: ='Historic Data from PDF'!Y7 -> 0 | AA174: ='Historic Data from PDF'!Z7 -> 0 | AB174: ='Historic Data from PDF'!AA7 -> 0 | AC174: ='Historic Data from PDF'!AB7 -> 0 | AD174: ='Historic Data from PDF'!AC7 -> 0 | AE174: ='Historic Data from PDF'!AD7 -> 0 | AF174: ='Historic Data from PDF'!AE7 -> 0 | AG174: ='Historic Data from PDF'!AF7 -> 0
C175: Intangible Historic | I175: =I168 -> 0 | J175: =J168 -> 0 | K175: 0 | L175: 0 | M175: 20672 | N175: 21279 | O175: 21205 | P175: 84678 | Q175: 81611 | R175: 87813 | S175: 89041 | T175: 91216 | U175: 94236 | V175: 81754 | W175: 72920 | X175: 72920 | Y175: 72920 | Z175: 72920 | AA175: 72920 | AB175: 72920 | AC175: 72920 | AD175: 72920 | AE175: 72920 | AF175: 72920 | AG175: 72920
C176: Receivables Historic | I176: ='Historic Data from PDF'!H52 -> 0 | J176: ='Historic Data from PDF'!I52 -> 0 | K176: ='Historic Data from PDF'!J52 -> 0 | L176: ='Historic Data from PDF'!K52 -> 0 | M176: ='Historic Data from PDF'!L52 -> 10948 | N176: ='Historic Data from PDF'!M52 -> 9393 | O176: ='Historic Data from PDF'!N52 -> 10282 | P176: ='Historic Data from PDF'!O52 -> 12644 | Q176: ='Historic Data from PDF'!P52 -> 10093 | R176: ='Historic Data from PDF'!Q52 -> 10310 | S176: ='Historic Data from PDF'!R52 -> 12347 | T176: ='Historic Data from PDF'!S52 -> 13042 | U176: ='Historic Data from PDF'!T52 -> 13229 | V176: ='Historic Data from PDF'!U52 -> 12790 | W176: ='Historic Data from PDF'!V52 -> 11513 | X176: ='Historic Data from PDF'!W52 -> 0 | Y176: ='Historic Data from PDF'!X52 -> 0 | Z176: ='Historic Data from PDF'!Y52 -> 0 | AA176: ='Historic Data from PDF'!Z52 -> 0 | AB176: ='Historic Data from PDF'!AA52 -> 0 | AC176: ='Historic Data from PDF'!AB52 -> 0 | AD176: ='Historic Data from PDF'!AC52 -> 0 | AE176: ='Historic Data from PDF'!AD52 -> 0 | AF176: ='Historic Data from PDF'!AE52 -> 0 | AG176: ='Historic Data from PDF'!AF52 -> 0
C177: Inventory Historic | I177: ='Historic Data from PDF'!H13 -> 0 | J177: ='Historic Data from PDF'!I13 -> 0 | K177: ='Historic Data from PDF'!J13 -> 0 | L177: ='Historic Data from PDF'!K13 -> 0 | M177: ='Historic Data from PDF'!L13 -> 2866 | N177: ='Historic Data from PDF'!M13 -> 3220 | O177: ='Historic Data from PDF'!N13 -> 3818 | P177: ='Historic Data from PDF'!O13 -> 5317 | Q177: ='Historic Data from PDF'!P13 -> 3601 | R177: ='Historic Data from PDF'!Q13 -> 4191 | S177: ='Historic Data from PDF'!R13 -> 4350 | T177: ='Historic Data from PDF'!S13 -> 4541 | U177: ='Historic Data from PDF'!T13 -> 4592 | V177: ='Historic Data from PDF'!U13 -> 4498 | W177: ='Historic Data from PDF'!V13 -> 3817 | X177: ='Historic Data from PDF'!W13 -> 0 | Y177: ='Historic Data from PDF'!X13 -> 1 | Z177: ='Historic Data from PDF'!Y13 -> 0 | AA177: ='Historic Data from PDF'!Z13 -> 0 | AB177: ='Historic Data from PDF'!AA13 -> 0 | AC177: ='Historic Data from PDF'!AB13 -> 0 | AD177: ='Historic Data from PDF'!AC13 -> 0 | AE177: ='Historic Data from PDF'!AD13 -> 0 | AF177: ='Historic Data from PDF'!AE13 -> 0 | AG177: ='Historic Data from PDF'!AF13 -> 0
C178: Less: Payables Historic | I178: =-'Historic Data from PDF'!H38 -> 0 | J178: =-'Historic Data from PDF'!I38 -> 0 | K178: =-'Historic Data from PDF'!J38 -> 0 | L178: =-'Historic Data from PDF'!K38 -> 0 | M178: =-'Historic Data from PDF'!L38 -> -4513 | N178: =-'Historic Data from PDF'!M38 -> -5147 | O178: =-'Historic Data from PDF'!N38 -> -5833 | P178: =-'Historic Data from PDF'!O38 -> -7993 | Q178: =-'Historic Data from PDF'!P38 -> -7929 | R178: =-'Historic Data from PDF'!Q38 -> -9385 | S178: =-'Historic Data from PDF'!R38 -> -11021 | T178: =-'Historic Data from PDF'!S38 -> -11862 | U178: =-'Historic Data from PDF'!T38 -> -12927 | V178: =-'Historic Data from PDF'!U38 -> -12048 | W178: =-'Historic Data from PDF'!V38 -> -12260 | X178: =-'Historic Data from PDF'!W38 -> 0 | Y178: =-'Historic Data from PDF'!X38 -> 1 | Z178: =-'Historic Data from PDF'!Y38 -> 0 | AA178: =-'Historic Data from PDF'!Z38 -> 0 | AB178: =-'Historic Data from PDF'!AA38 -> 0 | AC178: =-'Historic Data from PDF'!AB38 -> 0 | AD178: =-'Historic Data from PDF'!AC38 -> 0 | AE178: =-'Historic Data from PDF'!AD38 -> 0 | AF178: =-'Historic Data from PDF'!AE38 -> 0 | AG178: =-'Historic Data from PDF'!AF38 -> 0
C179: Less: Other Current Liabilities Histoic | I179: =-'Historic Data from PDF'!H53 -> 0 | J179: =-'Historic Data from PDF'!I53 -> 0 | K179: =-'Historic Data from PDF'!J53 -> 0 | L179: =-'Historic Data from PDF'!K53 -> 0 | M179: =-'Historic Data from PDF'!L53 -> -7313 | N179: =-'Historic Data from PDF'!M53 -> -6568 | O179: =-'Historic Data from PDF'!N53 -> -7264 | P179: =-'Historic Data from PDF'!O53 -> -13137 | Q179: =-'Historic Data from PDF'!P53 -> -13970 | R179: =-'Historic Data from PDF'!Q53 -> -14697 | S179: =-'Historic Data from PDF'!R53 -> -13309 | T179: =-'Historic Data from PDF'!S53 -> -12932 | U179: =-'Historic Data from PDF'!T53 -> -12687 | V179: =-'Historic Data from PDF'!U53 -> -15163 | W179: =-'Historic Data from PDF'!V53 -> -15588 | X179: =-'Historic Data from PDF'!W53 -> 0 | Y179: =-'Historic Data from PDF'!X53 -> 0 | Z179: =-'Historic Data from PDF'!Y53 -> 0 | AA179: =-'Historic Data from PDF'!Z53 -> 0 | AB179: =-'Historic Data from PDF'!AA53 -> 0 | AC179: =-'Historic Data from PDF'!AB53 -> 0 | AD179: =-'Historic Data from PDF'!AC53 -> 0 | AE179: =-'Historic Data from PDF'!AD53 -> 0 | AF179: =-'Historic Data from PDF'!AE53 -> 0 | AG179: =-'Historic Data from PDF'!AF53 -> 0
C180: Add: Deferred Tax Historic | I180: ='Historic Data from PDF'!H54 -> 0 | J180: ='Historic Data from PDF'!I54 -> 0 | K180: ='Historic Data from PDF'!J54 -> 0 | L180: ='Historic Data from PDF'!K54 -> 0 | M180: ='Historic Data from PDF'!L54 -> -1357 | N180: ='Historic Data from PDF'!M54 -> -1603 | O180: ='Historic Data from PDF'!N54 -> -1458 | P180: ='Historic Data from PDF'!O54 -> -8549 | Q180: ='Historic Data from PDF'!P54 -> -8205 | R180: ='Historic Data from PDF'!Q54 -> -8646 | S180: ='Historic Data from PDF'!R54 -> -8453 | T180: ='Historic Data from PDF'!S54 -> -8512 | U180: ='Historic Data from PDF'!T54 -> -7707 | V180: ='Historic Data from PDF'!U54 -> -5717 | W180: ='Historic Data from PDF'!V54 -> -4227 | X180: ='Historic Data from PDF'!W54 -> 0 | Y180: ='Historic Data from PDF'!X54 -> 0 | Z180: ='Historic Data from PDF'!Y54 -> 0 | AA180: ='Historic Data from PDF'!Z54 -> 0 | AB180: ='Historic Data from PDF'!AA54 -> 0 | AC180: ='Historic Data from PDF'!AB54 -> 0 | AD180: ='Historic Data from PDF'!AC54 -> 0 | AE180: ='Historic Data from PDF'!AD54 -> 0 | AF180: ='Historic Data from PDF'!AE54 -> 0 | AG180: ='Historic Data from PDF'!AF54 -> 0
C181: Total Invested Capital Historic | I181: =SUM(I174:I180) -> 0 | J181: 0 | K181: 0 | L181: 0 | M181: 41658 | N181: 40941 | O181: 42859 | P181: 107003 | Q181: 97026 | R181: 102006 | S181: 104803 | T181: 107484 | U181: 110474 | V181: 94862 | W181: 82853 | X181: 72920 | Y181: 72923 | Z181: 72920 | AA181: 72920 | AB181: 72920 | AC181: 72920 | AD181: 72920 | AE181: 72920 | AF181: 72920 | AG181: 72920
C183: EBIT | I183: =I139-I163 -> 34419 | J183: 35544 | K183: 34626 | L183: 35987 | M183: 5545 | N183: 3484.870193 | O183: 4895.51954 | P183: 8186.847307 | Q183: 8644.084927 | R183: 9691.925286 | S183: 9154.35713 | T183: 8636.93988 | U183: 8720.66414 | V183: 8222.176702 | W183: 7332.439685 | X183: 6759.8228 | Y183: 6479.356172 | Z183: 6227.935138 | AA183: 6114.951543 | AB183: 6021.175158 | AC183: 5943.340759 | AD183: 5878.738208 | AE183: 5825.118091 | AF183: 5780.613393 | AG183: 5743.674494
C184: Tax Rate | I184: =IF(I2,I42,I117) -> 0.25 | J184: 0.25 | K184: 0.25 | L184: 0.25 | M184: 0.2753699789 | N184: 0.2832618026 | O184: 0.2856356632 | P184: 0.25 | Q184: 0.2695880806 | R184: 0.2402804334 | S184: 0.2440903054 | T184: 0.2295830249 | U184: 0.2355435621 | V184: 0.2614418187 | W184: 0.25 | X184: 0.25 | Y184: 0.25 | Z184: 0.25 | AA184: 0.25 | AB184: 0.25 | AC184: 0.25 | AD184: 0.25 | AE184: 0.25 | AF184: 0.25 | AG184: 0.25
C185: Taxes on EBIT | I185: =I183*I184 -> 8604.75 | J185: =J183*J184 -> 8886 | K185: 8656.5 | L185: 8996.75 | M185: 1526.926533 | N185: 987.1306126 | O185: 1398.334971 | P185: 2046.711827 | Q185: 2330.342264 | R185: 2328.780008 | S185: 2234.489828 | T185: 1982.894784 | U185: 2054.096295 | V185: 2149.620831 | W185: 1833.109921 | X185: 1689.9557 | Y185: 1619.839043 | Z185: 1556.983785 | AA185: 1528.737886 | AB185: 1505.29379 | AC185: 1485.83519 | AD185: 1469.684552 | AE185: 1456.279523 | AF185: 1445.153348 | AG185: 1435.918624
C186: NOPAT | I186: =I183-I185 -> 25814.25 | J186: 26658 | K186: 25969.5 | L186: 26990.25 | M186: 4018.073467 | N186: 2497.73958 | O186: 3497.18457 | P186: 6140.13548 | Q186: 6313.742663 | R186: 7363.145278 | S186: 6919.867302 | T186: 6654.045096 | U186: 6666.567845 | V186: 6072.555871 | W186: 5499.329764 | X186: 5069.8671 | Y186: 4859.517129 | Z186: 4670.951354 | AA186: 4586.213657 | AB186: 4515.881369 | AC186: 4457.505569 | AD186: 4409.053656 | AE186: 4368.838568 | AF186: 4335.460045 | AG186: 4307.755871
C188: ROIC Historic and Projected | I188: =IF(I172,I186/I172) -> FALSE | J188: =IF(J172,J186/J172) -> FALSE | K188: FALSE | L188: FALSE | M188: 0.09645382561 | N188: 0.06047868813 | O188: 0.08346502553 | P188: 0.08194386143 | Q188: 0.06189063969 | R188: 0.07398956226 | S188: 0.06692036905 | T188: 0.06268949775 | U188: 0.06117329526 | V188: 0.05914750332 | W188: 0.06188931451 | X188: 0.06050045477 | Y188: 0.05703459441 | Z188: 0.05428121155 | AA188: 0.05288745686 | AB188: 0.05177503734 | AC188: 0.0508614602 | AD188: 0.05010979804 | AE188: 0.0494904155 | AF188: 0.04897939537 | AG188: 0.04855734446

Sheet Tornado Diagram

Sheet LBO transaction assumption
K2: Holding Period and Exit EV/EBITDA
C3: Entry year | D3: 2016 | I3: =LBO!D33 -> 0.01768719033 | J3: 1 | K3: =J3+1 -> 2 | L3: =K3+1 -> 3 | M3: 4 | N3: 5 | O3: 6 | P3: 7 | Q3: 8 | R3: 9 | S3: 10 | U3: Max | V3: Hold Period
C4: Holding period | D4: 10 | I4: 10 | J4: -0.2838238186 | K4: -0.115678788 | L4: -0.0509935322 | M4: -0.01421902469 | N4: 0.008685752149 | O4: 0.02437007791 | P4: 0.0358135251 | Q4: 0.04455039246 | R4: 0.05145139786 | S4: 0.05335595557 | U4: =MAX(J4:S4) -> 0.05335595557 | V4: =MATCH(U4,J4:S4,0) -> 10
C5: Exit year | D5: =D3+D4 -> 2026 | I5: =I4+1 -> 11 | J5: -0.2165614088 | K5: -0.07618326613 | L5: -0.02374186495 | M5: 0.006307130282 | N5: 0.0249414171 | O5: 0.03767894546 | P5: 0.04696939141 | Q5: 0.05406657413 | R5: 0.0596790175 | S5: 0.06047091 | U5: =MAX(J5:S5) -> 0.06047091 | V5: =MATCH(U5,J5:S5,0) -> 10
I6: =I5+1 -> 12 | J6: -0.149298999 | K6: -0.03834596097 | L6: 0.002023195824 | M6: 0.02560322312 | N6: 0.04018166335 | O6: 0.05014156922 | P6: 0.05741249844 | Q6: 0.06297669301 | R6: 0.06738710378 | S6: 0.06714426207 | U6: =MAX(J6:S6) -> 0.06738710378 | V6: =MATCH(U6,J6:S6,0) -> 9
C7: Current EV/EBITDA multiple | D7: 10.5 | I7: =I6+1 -> 13 | J7: -0.08203658915 | K7: -0.001974046965 | L7: 0.02648971987 | M7: 0.04382943396 | N7: 0.05453989108 | O7: 0.06186899895 | P7: 0.06723573293 | Q7: 0.07135888778 | R7: 0.07464174491 | S7: 0.07343109659 | U7: =MAX(J7:S7) -> 0.07464174491 | V7: =MATCH(U7,J7:S7,0) -> 9
C8: Acq. Premium | D8: 0.2 | I8: =I7+1 -> 14 | J8: -0.01477417933 | K8: 0.03309059658 | L8: 0.04981032873 | M8: 0.06111534803 | N8: 0.06812399679 | O8: 0.07295116843 | P8: 0.07651448209 | Q8: 0.07927674977 | R8: 0.08149689389 | S8: 0.07937657371 | U8: =MAX(J8:S8) -> 0.08149689389 | V8: =MATCH(U8,J8:S8,0) -> 9
C9: Entry EV/EBITDA multiple | D9: =D7*(1+D8) -> 12.6
C11: Exit multiple | D11: 14
D13: 1 | E13: 2 | F13: 3 | G13: 4
C14: EBITDA-margin improvements | D14: -0.05 | E14: 0.05 | F14: 0.1 | G14: 0.15
C15: Include margin improvements | D15: FALSE
C18: Fees
C19: Arragement fee on debt | D19: 0.01
C20: Investment bank | D20: 0.01
C22: Existing debt repaid | D22: =LOOKUP(D3-1,Valuation!3:3,'Assumptions and Free Cash Flow'!81:81) -> 38132
C25: Financing assumptions
B26: A | C26: Senior debt / EBITDA | D26: 4
C27: Interest on senior | D27: 0.02
B29: B | C29: Subordinated debt / EBITDA | D29: 2
C30: Interest on subordinated debt | D30: 0.03
B32: C | C32: Capitalizing debt | D32: 2
C33: Interest on capitalizing debt | D33: 0.04

Sheet LBO
B3: Column in Summary Page | E3: =MATCH(E4,Valuation!3:3) -> 25 | F3: =MATCH(F4,Valuation!3:3) -> 26 | G3: =MATCH(G4,Valuation!3:3) -> 27 | H3: =MATCH(H4,Valuation!3:3) -> 28 | I3: =MATCH(I4,Valuation!3:3) -> 29 | J3: =MATCH(J4,Valuation!3:3) -> 30 | K3: =MATCH(K4,Valuation!3:3) -> 31 | L3: =MATCH(L4,Valuation!3:3) -> 32 | M3: =MATCH(M4,Valuation!3:3) -> 33 | N3: =MATCH(N4,Valuation!3:3) -> 33 | O3: =MATCH(O4,Valuation!3:3) -> 33 | P3: =MATCH(P4,Valuation!3:3) -> 33 | Q3: =MATCH(Q4,Valuation!3:3) -> 33 | R3: =MATCH(R4,Valuation!3:3) -> 33 | S3: =MATCH(S4,Valuation!3:3) -> 33 | T3: =MATCH(T4,Valuation!3:3) -> 33 | U3: =MATCH(U4,Valuation!3:3) -> 33
B4: Year | D4: 2016 | E4: ='LBO transaction assumption'!D3+1 -> 2017 | F4: =E4+1 -> 2018 | G4: =F4+1 -> 2019 | H4: 2020 | I4: 2021 | J4: 2022 | K4: 2023 | L4: 2024 | M4: 2025 | N4: 2026 | O4: 2027 | P4: 2028 | Q4: =P4+1 -> 2029 | R4: =Q4+1 -> 2030 | S4: =R4+1 -> 2031 | T4: =S4+1 -> 2032 | U4: =T4+1 -> 2033
B5: Exit year | D5: ='LBO transaction assumption'!D5 -> 2026 | E5: =E4=$D$5 -> FALSE | F5: FALSE | G5: FALSE | H5: FALSE | I5: FALSE | J5: FALSE | K5: FALSE | L5: FALSE | M5: FALSE | N5: TRUE | O5: FALSE | P5: FALSE | Q5: FALSE | R5: FALSE | S5: FALSE | T5: FALSE | U5: FALSE
B6: Holding period | E6: =E4<=$D$5 -> TRUE | F6: TRUE | G6: TRUE | H6: TRUE | I6: TRUE | J6: TRUE | K6: TRUE | L6: TRUE | M6: TRUE | N6: TRUE | O6: FALSE | P6: FALSE | Q6: FALSE | R6: FALSE | S6: FALSE | T6: FALSE | U6: FALSE
B7: Date | D7: =IF(D5,DATE(D4,12,31),DATE(D4,7,1)) -> 2016-12-31 | E7: 2017-07-01 | F7: 2018-07-01 | G7: 2019-07-01 | H7: 2020-07-01 | I7: 2021-07-01 | J7: 2022-07-01 | K7: 2023-07-01 | L7: 2024-07-01 | M7: 2025-07-01 | N7: 2026-12-31 | O7: 2027-07-01 | P7: 2028-07-01 | Q7: 2029-07-01 | R7: 2030-07-01 | S7: 2031-07-01 | T7: 2032-07-01 | U7: 2033-07-01
B8: Period | E8: 1 | F8: =E8+1 -> 2 | G8: =F8+1 -> 3 | H8: 4 | I8: 5 | J8: 6 | K8: 7 | L8: 8 | M8: 9 | N8: 10 | O8: 11 | P8: 12 | Q8: =P8+1 -> 13 | R8: =Q8+1 -> 14 | S8: =R8+1 -> 15 | T8: =S8+1 -> 16 | U8: =T8+1 -> 17
A10: Operating Cash Flow and Transferred Data
B11: EBITDA | E11: =INDEX('Assumptions and Free Cash Flow'!139:139,0,LBO!E$3)*E6 -> 11178.62197 | F11: =INDEX('Assumptions and Free Cash Flow'!139:139,0,LBO!F$3)*F6 -> 11063.32575 | G11: =INDEX('Assumptions and Free Cash Flow'!139:139,0,LBO!G$3)*G6 -> 11063.32575 | H11: =INDEX('Assumptions and Free Cash Flow'!139:139,0,LBO!H$3)*H6 -> 11063.32575 | I11: =INDEX('Assumptions and Free Cash Flow'!139:139,0,LBO!I$3)*I6 -> 11063.32575 | J11: =INDEX('Assumptions and Free Cash Flow'!139:139,0,LBO!J$3)*J6 -> 11063.32575 | K11: =INDEX('Assumptions and Free Cash Flow'!139:139,0,LBO!K$3)*K6 -> 11063.32575 | L11: =INDEX('Assumptions and Free Cash Flow'!139:139,0,LBO!L$3)*L6 -> 11063.32575 | M11: =INDEX('Assumptions and Free Cash Flow'!139:139,0,LBO!M$3)*M6 -> 11063.32575 | N11: =INDEX('Assumptions and Free Cash Flow'!139:139,0,LBO!N$3)*N6 -> 11063.32575 | O11: =INDEX('Assumptions and Free Cash Flow'!139:139,0,LBO!O$3)*O6 -> 0 | P11: =INDEX('Assumptions and Free Cash Flow'!139:139,0,LBO!P$3)*P6 -> 0 | Q11: =INDEX('Assumptions and Free Cash Flow'!139:139,0,LBO!Q$3)*Q6 -> 0 | R11: =INDEX('Assumptions and Free Cash Flow'!139:139,0,LBO!R$3)*R6 -> 0 | S11: =INDEX('Assumptions and Free Cash Flow'!139:139,0,LBO!S$3)*S6 -> 0 | T11: =INDEX('Assumptions and Free Cash Flow'!139:139,0,LBO!T$3)*T6 -> 0 | U11: =INDEX('Assumptions and Free Cash Flow'!139:139,0,LBO!U$3)*U6 -> 0
B12: Change in NWC | E12: =INDEX('Assumptions and Free Cash Flow'!150:150,0,LBO!E$3)*E6 -> 115.9108741 | F12: =INDEX('Assumptions and Free Cash Flow'!150:150,0,LBO!F$3)*F6 -> 114.7517653 | G12: =INDEX('Assumptions and Free Cash Flow'!150:150,0,LBO!G$3)*G6 -> 0 | H12: =INDEX('Assumptions and Free Cash Flow'!150:150,0,LBO!H$3)*H6 -> 0 | I12: =INDEX('Assumptions and Free Cash Flow'!150:150,0,LBO!I$3)*I6 -> 0 | J12: =INDEX('Assumptions and Free Cash Flow'!150:150,0,LBO!J$3)*J6 -> 0 | K12: =INDEX('Assumptions and Free Cash Flow'!150:150,0,LBO!K$3)*K6 -> 0 | L12: =INDEX('Assumptions and Free Cash Flow'!150:150,0,LBO!L$3)*L6 -> 0 | M12: =INDEX('Assumptions and Free Cash Flow'!150:150,0,LBO!M$3)*M6 -> 0 | N12: =INDEX('Assumptions and Free Cash Flow'!150:150,0,LBO!N$3)*N6 -> 0 | O12: =INDEX('Assumptions and Free Cash Flow'!150:150,0,LBO!O$3)*O6 -> 0 | P12: =INDEX('Assumptions and Free Cash Flow'!150:150,0,LBO!P$3)*P6 -> 0 | Q12: =INDEX('Assumptions and Free Cash Flow'!150:150,0,LBO!Q$3)*Q6 -> 0 | R12: =INDEX('Assumptions and Free Cash Flow'!150:150,0,LBO!R$3)*R6 -> 0 | S12: =INDEX('Assumptions and Free Cash Flow'!150:150,0,LBO!S$3)*S6 -> 0 | T12: =INDEX('Assumptions and Free Cash Flow'!150:150,0,LBO!T$3)*T6 -> 0 | U12: =INDEX('Assumptions and Free Cash Flow'!150:150,0,LBO!U$3)*U6 -> 0
B13: CAPEX | E13: =INDEX('Assumptions and Free Cash Flow'!156:156,0,LBO!E$3)*E6 -> 5500 | F13: =INDEX('Assumptions and Free Cash Flow'!156:156,0,LBO!F$3)*F6 -> 5500 | G13: =INDEX('Assumptions and Free Cash Flow'!156:156,0,LBO!G$3)*G6 -> 5500 | H13: =INDEX('Assumptions and Free Cash Flow'!156:156,0,LBO!H$3)*H6 -> 5500 | I13: =INDEX('Assumptions and Free Cash Flow'!156:156,0,LBO!I$3)*I6 -> 5500 | J13: =INDEX('Assumptions and Free Cash Flow'!156:156,0,LBO!J$3)*J6 -> 5500 | K13: =INDEX('Assumptions and Free Cash Flow'!156:156,0,LBO!K$3)*K6 -> 5500 | L13: =INDEX('Assumptions and Free Cash Flow'!156:156,0,LBO!L$3)*L6 -> 5500 | M13: =INDEX('Assumptions and Free Cash Flow'!156:156,0,LBO!M$3)*M6 -> 5500 | N13: =INDEX('Assumptions and Free Cash Flow'!156:156,0,LBO!N$3)*N6 -> 5500 | O13: =INDEX('Assumptions and Free Cash Flow'!156:156,0,LBO!O$3)*O6 -> 0 | P13: =INDEX('Assumptions and Free Cash Flow'!156:156,0,LBO!P$3)*P6 -> 0 | Q13: =INDEX('Assumptions and Free Cash Flow'!156:156,0,LBO!Q$3)*Q6 -> 0 | R13: =INDEX('Assumptions and Free Cash Flow'!156:156,0,LBO!R$3)*R6 -> 0 | S13: =INDEX('Assumptions and Free Cash Flow'!156:156,0,LBO!S$3)*S6 -> 0 | T13: =INDEX('Assumptions and Free Cash Flow'!156:156,0,LBO!T$3)*T6 -> 0 | U13: =INDEX('Assumptions and Free Cash Flow'!156:156,0,LBO!U$3)*U6 -> 0
B14: CFADS | E14: =E11-E12-E13 -> 5562.711098 | F14: =F11-F12-F13 -> 5448.573987 | G14: 5563.325752 | H14: 5563.325752 | I14: 5563.325752 | J14: 5563.325752 | K14: 5563.325752 | L14: 5563.325752 | M14: 5563.325752 | N14: 5563.325752 | O14: 0 | P14: 0 | Q14: =Q11-Q12-Q13 -> 0 | R14: =R11-R12-R13 -> 0 | S14: =S11-S12-S13 -> 0 | T14: =T11-T12-T13 -> 0 | U14: =U11-U12-U13 -> 0
B16: Impact of "strategy" | E16: =LOOKUP(E8,'LBO transaction assumption'!13:13,'LBO transaction assumption'!14:14) -> -0.05 | F16: =LOOKUP(F8,'LBO transaction assumption'!13:13,'LBO transaction assumption'!14:14) -> 0.05 | G16: =LOOKUP(G8,'LBO transaction assumption'!13:13,'LBO transaction assumption'!14:14) -> 0.1 | H16: =LOOKUP(H8,'LBO transaction assumption'!13:13,'LBO transaction assumption'!14:14) -> 0.15 | I16: =LOOKUP(I8,'LBO transaction assumption'!13:13,'LBO transaction assumption'!14:14) -> 0.15 | J16: =LOOKUP(J8,'LBO transaction assumption'!13:13,'LBO transaction assumption'!14:14) -> 0.15 | K16: =LOOKUP(K8,'LBO transaction assumption'!13:13,'LBO transaction assumption'!14:14) -> 0.15 | L16: =LOOKUP(L8,'LBO transaction assumption'!13:13,'LBO transaction assumption'!14:14) -> 0.15 | M16: =LOOKUP(M8,'LBO transaction assumption'!13:13,'LBO transaction assumption'!14:14) -> 0.15 | N16: =LOOKUP(N8,'LBO transaction assumption'!13:13,'LBO transaction assumption'!14:14) -> 0.15 | O16: =LOOKUP(O8,'LBO transaction assumption'!13:13,'LBO transaction assumption'!14:14) -> 0.15 | P16: =LOOKUP(P8,'LBO transaction assumption'!13:13,'LBO transaction assumption'!14:14) -> 0.15 | Q16: =LOOKUP(Q8,'LBO transaction assumption'!13:13,'LBO transaction assumption'!14:14) -> 0.15 | R16: =LOOKUP(R8,'LBO transaction assumption'!13:13,'LBO transaction assumption'!14:14) -> 0.15 | S16: =LOOKUP(S8,'LBO transaction assumption'!13:13,'LBO transaction assumption'!14:14) -> 0.15 | T16: =LOOKUP(T8,'LBO transaction assumption'!13:13,'LBO transaction assumption'!14:14) -> 0.15 | U16: =LOOKUP(U8,'LBO transaction assumption'!13:13,'LBO transaction assumption'!14:14) -> 0.15
B17: Include strategy (True/Flase) | E17: ='LBO transaction assumption'!$D$15 -> FALSE | F17: ='LBO transaction assumption'!$D$15 -> FALSE | G17: ='LBO transaction assumption'!$D$15 -> FALSE | H17: ='LBO transaction assumption'!$D$15 -> FALSE | I17: ='LBO transaction assumption'!$D$15 -> FALSE | J17: ='LBO transaction assumption'!$D$15 -> FALSE | K17: ='LBO transaction assumption'!$D$15 -> FALSE | L17: ='LBO transaction assumption'!$D$15 -> FALSE | M17: ='LBO transaction assumption'!$D$15 -> FALSE | N17: ='LBO transaction assumption'!$D$15 -> FALSE | O17: ='LBO transaction assumption'!$D$15 -> FALSE | P17: ='LBO transaction assumption'!$D$15 -> FALSE | Q17: ='LBO transaction assumption'!$D$15 -> FALSE | R17: ='LBO transaction assumption'!$D$15 -> FALSE | S17: ='LBO transaction assumption'!$D$15 -> FALSE | T17: ='LBO transaction assumption'!$D$15 -> FALSE | U17: ='LBO transaction assumption'!$D$15 -> FALSE
B18: Pct. Applied | E18: =E16*E17 -> 0 | F18: =F16*F17 -> 0 | G18: 0 | H18: 0 | I18: 0 | J18: 0 | K18: 0 | L18: 0 | M18: 0 | N18: 0 | O18: 0 | P18: 0 | Q18: =Q16*Q17 -> 0 | R18: =R16*R17 -> 0 | S18: =S16*S17 -> 0 | T18: =T16*T17 -> 0 | U18: =U16*U17 -> 0
B19: EBITDA after strategy | E19: =(1+E18)*E11 -> 11178.62197 | F19: =(1+F18)*F11 -> 11063.32575 | G19: 11063.32575 | H19: 11063.32575 | I19: 11063.32575 | J19: 11063.32575 | K19: 11063.32575 | L19: 11063.32575 | M19: 11063.32575 | N19: 11063.32575 | O19: 0 | P19: 0 | Q19: =(1+Q18)*Q11 -> 0 | R19: =(1+R18)*R11 -> 0 | S19: =(1+S18)*S11 -> 0 | T19: =(1+T18)*T11 -> 0 | U19: =(1+U18)*U11 -> 0
B21: Terminal proceeds (exit multiple ) | D21: ='LBO transaction assumption'!D11 -> 14 | E21: =$D$21*E19*E5 -> 0 | F21: 0 | G21: 0 | H21: 0 | I21: 0 | J21: 0 | K21: 0 | L21: 0 | M21: 0 | N21: 154886.5605 | O21: 0 | P21: 0 | Q21: 0 | R21: 0 | S21: 0 | T21: 0 | U21: 0
B23: Acq. Year | D23: ='LBO transaction assumption'!D3 -> 2016
B24: EBITDA in acq. Year | D24: =LOOKUP(D23,Valuation!3:3,'Assumptions and Free Cash Flow'!139:139) -> 11295.0828
B25: Acq. Multiple | D25: ='LBO transaction assumption'!D9 -> 12.6
B26: Acq. Price | D26: =D24*D25 -> 142318.0433
B28: Investment, cash out | D28: =-D26-D40 -> -180450.0433
B29: Cash in, operations | E29: =E19-E12-E13 -> 5562.711098 | F29: =F19-F12-F13 -> 5448.573987 | G29: 5563.325752 | H29: 5563.325752 | I29: 5563.325752 | J29: 5563.325752 | K29: 5563.325752 | L29: 5563.325752 | M29: 5563.325752 | N29: 5563.325752 | O29: 0 | P29: 0 | Q29: =Q19-Q12-Q13 -> 0 | R29: =R19-R12-R13 -> 0 | S29: =S19-S12-S13 -> 0 | T29: =T19-T12-T13 -> 0 | U29: =U19-U12-U13 -> 0
B30: Cash in, exit | E30: =E21 -> 0 | F30: =F21 -> 0 | G30: 0 | H30: 0 | I30: 0 | J30: 0 | K30: 0 | L30: 0 | M30: 0 | N30: 154886.5605 | O30: 0 | P30: 0 | Q30: =Q21 -> 0 | R30: =R21 -> 0 | S30: =S21 -> 0 | T30: =T21 -> 0 | U30: =U21 -> 0
B31: Total cash flow | D31: =D28+D29+D30 -> -180450.0433 | E31: =E28+E29+E30 -> 5562.711098 | F31: =F28+F29+F30 -> 5448.573987 | G31: 5563.325752 | H31: 5563.325752 | I31: 5563.325752 | J31: 5563.325752 | K31: 5563.325752 | L31: 5563.325752 | M31: 5563.325752 | N31: 160449.8863 | O31: 0 | P31: 0 | Q31: =Q28+Q29+Q30 -> 0 | R31: =R28+R29+R30 -> 0 | S31: =S28+S29+S30 -> 0 | T31: =T28+T29+T30 -> 0 | U31: =U28+U29+U30 -> 0
B33: IRR | D33: =IRR(D31:P31) -> 0.01768719033
B34: XIRR | D34: =XIRR(D31:P31,D7:P7) -> 0.0179433018
A36: Sources and Uses
B38: Uses
B39: Acq. Price | D39: =-D28 -> 180450.0433
B40: Repay existing debt | D40: ='LBO transaction assumption'!D22 -> 38132
B41: Fees | D41: ='LBO transaction assumption'!D19*SUM(D46:D48) -> 903.606624
B42: Advisory fee | D42: ='LBO transaction assumption'!D20*LBO!D39 -> 1804.500433
B43: Total | D43: =SUM(D39:D42) -> 221290.1503
B45: Sources
B46: A-debt | D46: ='LBO transaction assumption'!D26*LBO!D24 -> 45180.3312
B47: B-debt | D47: ='LBO transaction assumption'!D29*LBO!D24 -> 22590.1656
B48: C-debt | D48: ='LBO transaction assumption'!D32*LBO!D24 -> 22590.1656
B49: Sale of existing assets
B50: Equity | D50: =D43-SUM(D46:D48) -> 130929.4879
B51: Total sources | D51: =SUM(D46:D50) -> 221290.1503
A54: Debt Schedule
B55: A-Debt
B56: Balance BOP | E56: =D59 -> 45180.3312 | F56: =E59 -> 40521.22673 | G56: 35883.07727 | H56: 31037.41307 | I56: 26094.83558 | J56: 21053.40654 | K56: 15911.14891 | L56: 10666.04614 | M56: 5316.04131 | N56: 0 | O56: 0 | P56: 0 | Q56: =P59 -> 0 | R56: =Q59 -> 0 | S56: =R59 -> 0 | T56: =S59 -> 0 | U56: =T59 -> 0
B57: Drawdown | D57: =D46 -> 45180.3312
B58: Repayment | E58: =E87 -> 4659.104474 | F58: =F87 -> 4638.149452 | G58: 4845.664207 | H58: 4942.577491 | I58: 5041.429041 | J58: 5142.257622 | K58: 5245.102774 | L58: 5350.004829 | M58: 5316.04131 | N58: 0 | O58: 0 | P58: 0 | Q58: =Q87 -> 0 | R58: =R87 -> 0 | S58: =S87 -> 0 | T58: =T87 -> 0 | U58: =U87 -> 0
B59: Balance EOP | D59: =D56+D57-D58 -> 45180.3312 | E59: =E56+E57-E58 -> 40521.22673 | F59: =F56+F57-F58 -> 35883.07727 | G59: 31037.41307 | H59: 26094.83558 | I59: 21053.40654 | J59: 15911.14891 | K59: 10666.04614 | L59: 5316.04131 | M59: 0 | N59: 0 | O59: 0 | P59: 0 | Q59: =Q56+Q57-Q58 -> 0 | R59: =R56+R57-R58 -> 0 | S59: =S56+S57-S58 -> 0 | T59: =T56+T57-T58 -> 0 | U59: =U56+U57-U58 -> 0
B61: Interest | C61: ='LBO transaction assumption'!D27 -> 0.02 | D61: =D56*$C61 -> 0 | E61: =E56*$C61 -> 903.606624 | F61: 810.4245345 | G61: 717.6615455 | H61: 620.7482613 | I61: 521.8967115 | J61: 421.0681307 | K61: 318.2229783 | L61: 213.3209228 | M61: 106.3208262 | N61: 0 | O61: 0 | P61: 0 | Q61: =Q56*$C61 -> 0 | R61: =R56*$C61 -> 0 | S61: =S56*$C61 -> 0 | T61: =T56*$C61 -> 0 | U61: =U56*$C61 -> 0
B63: B-Debt
B64: Balance BOP | E64: =D67 -> 22590.1656 | F64: =E67 -> 23267.87057 | G64: 23965.90669 | H64: 24684.88389 | I64: 25425.4304 | J64: 26188.19331 | K64: 26973.83911 | L64: 27783.05429 | M64: 28616.54592 | N64: 29334.07868 | O64: 0 | P64: 0 | Q64: =P67 -> 0 | R64: =Q67 -> 0 | S64: =R67 -> 0 | T64: =S67 -> 0 | U64: =T67 -> 0
B65: Drawdown | D65: =D47 -> 22590.1656
B66: Repayment | E66: =E91 -> -677.704968 | F66: =F91 -> -698.036117 | G66: -718.9772006 | H66: -740.5465166 | I66: -762.7629121 | J66: -785.6457994 | K66: -809.2151734 | L66: -833.4916286 | M66: -717.5327615 | N66: 29334.07868 | O66: 0 | P66: 0 | Q66: =Q91 -> 0 | R66: =R91 -> 0 | S66: =S91 -> 0 | T66: =T91 -> 0 | U66: =U91 -> 0
B67: Balance EOP | D67: =D64+D65-D66 -> 22590.1656 | E67: =E64+E65-E66 -> 23267.87057 | F67: 23965.90669 | G67: 24684.88389 | H67: 25425.4304 | I67: 26188.19331 | J67: 26973.83911 | K67: 27783.05429 | L67: 28616.54592 | M67: 29334.07868 | N67: 0 | O67: 0 | P67: 0 | Q67: =Q64+Q65-Q66 -> 0 | R67: =R64+R65-R66 -> 0 | S67: =S64+S65-S66 -> 0 | T67: =T64+T65-T66 -> 0 | U67: =U64+U65-U66 -> 0
B69: Interest | C69: ='LBO transaction assumption'!D30 -> 0.03 | D69: =D64*$C69 -> 0 | E69: =E64*$C69 -> 677.704968 | F69: 698.036117 | G69: 718.9772006 | H69: 740.5465166 | I69: 762.7629121 | J69: 785.6457994 | K69: 809.2151734 | L69: 833.4916286 | M69: 858.4963775 | N69: 880.0223603 | O69: 0 | P69: 0 | Q69: =Q64*$C69 -> 0 | R69: =R64*$C69 -> 0 | S69: =S64*$C69 -> 0 | T69: =T64*$C69 -> 0 | U69: =U64*$C69 -> 0
B71: C-Debt
B72: Balance BOP | E72: =D76 -> 22590.1656 | F72: =E76 -> 23493.77222 | G72: 24433.52311 | H72: 25410.86404 | I72: 26427.2986 | J72: 27484.39054 | K72: 28583.76616 | L72: 29727.11681 | M72: 30916.20148 | N72: 32152.84954 | O72: 0 | P72: 0 | Q72: =P76 -> 0 | R72: =Q76 -> 0 | S72: =R76 -> 0 | T72: =S76 -> 0 | U72: =T76 -> 0
B73: Drawdown | D73: =D48 -> 22590.1656
B74: Interest | C74: ='LBO transaction assumption'!D33 -> 0.04 | E74: =E72*$C74 -> 903.606624 | F74: =F72*$C74 -> 939.750889 | G74: 977.3409245 | H74: 1016.434561 | I74: 1057.091944 | J74: 1099.375622 | K74: 1143.350647 | L74: 1189.084672 | M74: 1236.648059 | N74: 1286.113982 | O74: 0 | P74: 0 | Q74: =Q72*$C74 -> 0 | R74: =R72*$C74 -> 0 | S74: =S72*$C74 -> 0 | T74: =T72*$C74 -> 0 | U74: =U72*$C74 -> 0
B75: Repayment | E75: =E93 -> 0 | F75: =F93 -> 0 | G75: 0 | H75: 0 | I75: 0 | J75: 0 | K75: 0 | L75: 0 | M75: 0 | N75: 33438.96352 | O75: 0 | P75: 0 | Q75: =Q93 -> 0 | R75: =R93 -> 0 | S75: =S93 -> 0 | T75: =T93 -> 0 | U75: =U93 -> 0
B76: Balance EOP | D76: =D72+D73+D74-D75 -> 22590.1656 | E76: =E72+E73+E74-E75 -> 23493.77222 | F76: 24433.52311 | G76: 25410.86404 | H76: 26427.2986 | I76: 27484.39054 | J76: 28583.76616 | K76: 29727.11681 | L76: 30916.20148 | M76: 32152.84954 | N76: 0 | O76: 0 | P76: 0 | Q76: =Q72+Q73+Q74-Q75 -> 0 | R76: =R72+R73+R74-R75 -> 0 | S76: =S72+S73+S74-S75 -> 0 | T76: =T72+T73+T74-T75 -> 0 | U76: =U72+U73+U74-U75 -> 0
A78: Waterfall
B80: EBITDA | E80: =E19 -> 11178.62197 | F80: =F19 -> 11063.32575 | G80: 11063.32575 | H80: 11063.32575 | I80: 11063.32575 | J80: 11063.32575 | K80: 11063.32575 | L80: 11063.32575 | M80: 11063.32575 | N80: 11063.32575 | O80: 0 | P80: 0 | Q80: =Q19 -> 0 | R80: =R19 -> 0 | S80: =S19 -> 0 | T80: =T19 -> 0 | U80: =U19 -> 0
B81: NWC change | E81: =E12 -> 115.9108741 | F81: =F12 -> 114.7517653 | G81: 0 | H81: 0 | I81: 0 | J81: 0 | K81: 0 | L81: 0 | M81: 0 | N81: 0 | O81: 0 | P81: 0 | Q81: =Q12 -> 0 | R81: 0 | S81: 0 | T81: 0 | U81: 0
B82: CAPEX | E82: =E13 -> 5500 | F82: =F13 -> 5500 | G82: 5500 | H82: 5500 | I82: 5500 | J82: 5500 | K82: 5500 | L82: 5500 | M82: 5500 | N82: 5500 | O82: 0 | P82: 0 | Q82: 0 | R82: 0 | S82: 0 | T82: 0 | U82: 0
B83: Terminal proceeds | E83: =E21 -> 0 | F83: =F21 -> 0 | G83: 0 | H83: 0 | I83: 0 | J83: 0 | K83: 0 | L83: 0 | M83: 0 | N83: 154886.5605 | O83: 0 | P83: 0 | Q83: =Q21 -> 0 | R83: =R21 -> 0 | S83: =S21 -> 0 | T83: =T21 -> 0 | U83: =U21 -> 0
B84: CFADS | E84: =+E80-E81-E82+E83 -> 5562.711098 | F84: =+F80-F81-F82+F83 -> 5448.573987 | G84: 5563.325752 | H84: 5563.325752 | I84: 5563.325752 | J84: 5563.325752 | K84: 5563.325752 | L84: 5563.325752 | M84: 5563.325752 | N84: 160449.8863 | O84: 0 | P84: 0 | Q84: =+Q80-Q81-Q82+Q83 -> 0 | R84: =+R80-R81-R82+R83 -> 0 | S84: =+S80-S81-S82+S83 -> 0 | T84: =+T80-T81-T82+T83 -> 0 | U84: =+U80-U81-U82+U83 -> 0
B85: Less: Interest on A-Debt | E85: =E61 -> 903.606624 | F85: =F61 -> 810.4245345 | G85: 717.6615455 | H85: 620.7482613 | I85: 521.8967115 | J85: 421.0681307 | K85: 318.2229783 | L85: 213.3209228 | M85: 106.3208262 | N85: 0 | O85: 0 | P85: 0 | Q85: =Q61 -> 0 | R85: =R61 -> 0 | S85: =S61 -> 0 | T85: =T61 -> 0 | U85: =U61 -> 0
B86: Subtotal | E86: =+E84-E85 -> 4659.104474 | F86: =+F84-F85 -> 4638.149452 | G86: 4845.664207 | H86: 4942.577491 | I86: 5041.429041 | J86: 5142.257622 | K86: 5245.102774 | L86: 5350.004829 | M86: 5457.004926 | N86: 160449.8863 | O86: 0 | P86: 0 | Q86: =+Q84-Q85 -> 0 | R86: =+R84-R85 -> 0 | S86: =+S84-S85 -> 0 | T86: =+T84-T85 -> 0 | U86: =+U84-U85 -> 0
B87: Less: Repayment of A-Debt | E87: =MIN(E86,E56) -> 4659.104474 | F87: =MIN(F86,F56) -> 4638.149452 | G87: 4845.664207 | H87: 4942.577491 | I87: 5041.429041 | J87: 5142.257622 | K87: 5245.102774 | L87: 5350.004829 | M87: 5316.04131 | N87: 0 | O87: 0 | P87: 0 | Q87: =MIN(Q86,Q56) -> 0 | R87: =MIN(R86,R56) -> 0 | S87: =MIN(S86,S56) -> 0 | T87: =MIN(T86,T56) -> 0 | U87: =MIN(U86,U56) -> 0
B88: Subtotal | E88: =E86-E87 -> 0 | F88: =F86-F87 -> 0 | G88: 0 | H88: 0 | I88: 0 | J88: 0 | K88: 0 | L88: 0 | M88: 140.963616 | N88: 160449.8863 | O88: 0 | P88: 0 | Q88: =Q86-Q87 -> 0 | R88: =R86-R87 -> 0 | S88: =S86-S87 -> 0 | T88: =T86-T87 -> 0 | U88: =U86-U87 -> 0
B89: Less: Interest on B-Debt | E89: =E69 -> 677.704968 | F89: =F69 -> 698.036117 | G89: 718.9772006 | H89: 740.5465166 | I89: 762.7629121 | J89: 785.6457994 | K89: 809.2151734 | L89: 833.4916286 | M89: 858.4963775 | N89: 880.0223603 | O89: 0 | P89: 0 | Q89: =Q69 -> 0 | R89: =R69 -> 0 | S89: =S69 -> 0 | T89: =T69 -> 0 | U89: =U69 -> 0
B90: Subtotal | E90: =E88-E89 -> -677.704968 | F90: =F88-F89 -> -698.036117 | G90: -718.9772006 | H90: -740.5465166 | I90: -762.7629121 | J90: -785.6457994 | K90: -809.2151734 | L90: -833.4916286 | M90: -717.5327615 | N90: 159569.8639 | O90: 0 | P90: 0 | Q90: =Q88-Q89 -> 0 | R90: =R88-R89 -> 0 | S90: =S88-S89 -> 0 | T90: =T88-T89 -> 0 | U90: =U88-U89 -> 0
B91: Less: Repayment of B-Debt | E91: =MIN(E90,E64) -> -677.704968 | F91: =MIN(F90,F64) -> -698.036117 | G91: -718.9772006 | H91: -740.5465166 | I91: -762.7629121 | J91: -785.6457994 | K91: -809.2151734 | L91: -833.4916286 | M91: -717.5327615 | N91: 29334.07868 | O91: 0 | P91: 0 | Q91: =MIN(Q90,Q64) -> 0 | R91: =MIN(R90,R64) -> 0 | S91: =MIN(S90,S64) -> 0 | T91: =MIN(T90,T64) -> 0 | U91: =MIN(U90,U64) -> 0
B92: Subtotal | E92: =E90-E91 -> 0 | F92: =F90-F91 -> 0 | G92: 0 | H92: 0 | I92: 0 | J92: 0 | K92: 0 | L92: 0 | M92: 0 | N92: 130235.7852 | O92: 0 | P92: 0 | Q92: =Q90-Q91 -> 0 | R92: =R90-R91 -> 0 | S92: =S90-S91 -> 0 | T92: =T90-T91 -> 0 | U92: =U90-U91 -> 0
B93: Less: Repayment of C-Debt | E93: =MIN(E92,E72+E74) -> 0 | F93: =MIN(F92,F72+F74) -> 0 | G93: 0 | H93: 0 | I93: 0 | J93: 0 | K93: 0 | L93: 0 | M93: 0 | N93: 33438.96352 | O93: 0 | P93: 0 | Q93: =MIN(Q92,Q72+Q74) -> 0 | R93: =MIN(R92,R72+R74) -> 0 | S93: =MIN(S92,S72+S74) -> 0 | T93: =MIN(T92,T72+T74) -> 0 | U93: =MIN(U92,U72+U74) -> 0
B94: Cash flow to Equity | E94: =E92-E93 -> 0 | F94: =F92-F93 -> 0 | G94: 0 | H94: 0 | I94: 0 | J94: 0 | K94: 0 | L94: 0 | M94: 0 | N94: 96796.82172 | O94: 0 | P94: 0 | Q94: =Q92-Q93 -> 0 | R94: =R92-R93 -> 0 | S94: =S92-S93 -> 0 | T94: =T92-T93 -> 0 | U94: =U92-U93 -> 0
A97: IRR
B98: A-Debt, pre fees | C98: =IRR(D98:P98) -> 0.02 | D98: =-D46+D85+D87 -> -45180.3312 | E98: =-E46+E85+E87 -> 5562.711098 | F98: 5448.573987 | G98: 5563.325752 | H98: 5563.325752 | I98: 5563.325752 | J98: 5563.325752 | K98: 5563.325752 | L98: 5563.325752 | M98: 5422.362136 | N98: 0 | O98: 0 | P98: 0 | Q98: =-Q46+Q85+Q87 -> 0 | R98: =-R46+R85+R87 -> 0 | S98: =-S46+S85+S87 -> 0 | T98: =-T46+T85+T87 -> 0 | U98: =-U46+U85+U87 -> 0
B99: B-Debt, pre fees | C99: =IRR(D99:P99) -> 0.03 | D99: =-D47+D89+D91 -> -22590.1656 | E99: =-E47+E89+E91 -> 0 | F99: 0 | G99: 0 | H99: 0 | I99: 0 | J99: 0 | K99: 0 | L99: 0 | M99: 140.963616 | N99: 30214.10104 | O99: 0 | P99: 0 | Q99: =-Q47+Q89+Q91 -> 0 | R99: =-R47+R89+R91 -> 0 | S99: =-S47+S89+S91 -> 0 | T99: =-T47+T89+T91 -> 0 | U99: =-U47+U89+U91 -> 0
B100: C-Debt, pre fees | C100: =IRR(D100:P100) -> 0.04 | D100: =-D48+D93 -> -22590.1656 | E100: =-E48+E93 -> 0 | F100: 0 | G100: 0 | H100: 0 | I100: 0 | J100: 0 | K100: 0 | L100: 0 | M100: 0 | N100: 33438.96352 | O100: 0 | P100: 0 | Q100: =-Q48+Q93 -> 0 | R100: =-R48+R93 -> 0 | S100: =-S48+S93 -> 0 | T100: =-T48+T93 -> 0 | U100: =-U48+U93 -> 0
C101: =IRR(D101:P101) -> 0.03031953924 | D101: =SUM(D98:D100) -> -90360.6624 | E101: =SUM(E98:E100) -> 5562.711098 | F101: 5448.573987 | G101: 5563.325752 | H101: 5563.325752 | I101: 5563.325752 | J101: 5563.325752 | K101: 5563.325752 | L101: 5563.325752 | M101: 5563.325752 | N101: 63653.06456 | O101: 0 | P101: 0 | Q101: =SUM(Q98:Q100) -> 0 | R101: =SUM(R98:R100) -> 0 | S101: =SUM(S98:S100) -> 0 | T101: =SUM(T98:T100) -> 0 | U101: =SUM(U98:U100) -> 0
B103: Equity IRR | C103: =IRR(D103:P103) -> -0.02975287879 | D103: =-LBO!D50 -> -130929.4879 | E103: =E94 -> 0 | F103: =F94 -> 0 | G103: 0 | H103: 0 | I103: 0 | J103: 0 | K103: 0 | L103: 0 | M103: 0 | N103: 96796.82172 | O103: 0 | P103: 0 | Q103: =Q94 -> 0 | R103: =R94 -> 0 | S103: =S94 -> 0 | T103: =T94 -> 0 | U103: =U94 -> 0
C104: =IRR(D104:P104) -> -0.005695261162 | D104: =D103+D101 -> -221290.1503 | E104: =E103+E101 -> 5562.711098 | F104: 5448.573987 | G104: 5563.325752 | H104: 5563.325752 | I104: 5563.325752 | J104: 5563.325752 | K104: 5563.325752 | L104: 5563.325752 | M104: 5563.325752 | N104: 160449.8863 | O104: 0 | P104: 0 | Q104: =Q103+Q101 -> 0 | R104: =R103+R101 -> 0 | S104: =S103+S101 -> 0 | T104: =T103+T101 -> 0 | U104: =U103+U101 -> 0

Sheet Scatter

Sheet Graphs
B1: Titles from Assumption Page
D2: From Union Function | E2: Row
J3: Code # | K3: Row
B4: =IF(ISTEXT('Assumptions and Free Cash Flow'!C8),'Assumptions and Free Cash Flow'!C8,"") ->  | D4: =union(B4:B230,A6) -> 0 | E4: =MATCH(D4,'Assumptions and Free Cash Flow'!C:C,0) ->  | J4: 115 | K4: =INDEX(E5:E130,J4) -> 188
B5: =IF(ISTEXT('Assumptions and Free Cash Flow'!C9),'Assumptions and Free Cash Flow'!C9,"") -> Operating profit before depreciation amortisation and impairment | D5: Operating profit before depreciation amortisation and impairment | E5: =MATCH(D5,'Assumptions and Free Cash Flow'!C:C,0) -> 9
B6: =IF(ISTEXT('Assumptions and Free Cash Flow'!C10),'Assumptions and Free Cash Flow'!C10,"") -> Less: Restructuring Cash Payments from Cash Flow | D6: Less: Restructuring Cash Payments from Cash Flow | E6: =MATCH(D6,'Assumptions and Free Cash Flow'!C:C,0) -> 10 | J6: 43 | K6: =INDEX(E5:E128,J6) -> 72
B7: =IF(ISTEXT('Assumptions and Free Cash Flow'!C11),'Assumptions and Free Cash Flow'!C11,"") -> Less: Income from associates | D7: Less: Income from associates | E7: =MATCH(D7,'Assumptions and Free Cash Flow'!C:C,0) -> 11
B8: =IF(ISTEXT('Assumptions and Free Cash Flow'!C12),'Assumptions and Free Cash Flow'!C12,"") -> EBITDA | D8: EBITDA | E8: =MATCH(D8,'Assumptions and Free Cash Flow'!C:C,0) -> 12
B9: =IF(ISTEXT('Assumptions and Free Cash Flow'!C13),'Assumptions and Free Cash Flow'!C13,"") ->  | D9: Net Revenues | E9: =MATCH(D9,'Assumptions and Free Cash Flow'!C:C,0) -> 14 | G9: Graph
B10: =IF(ISTEXT('Assumptions and Free Cash Flow'!C14),'Assumptions and Free Cash Flow'!C14,"") -> Net Revenues | D10: COGS | E10: =MATCH(D10,'Assumptions and Free Cash Flow'!C:C,0) -> 15 | I10: ='Assumptions and Free Cash Flow'!M1 -> 2005 | J10: ='Assumptions and Free Cash Flow'!N1 -> 2006 | K10: ='Assumptions and Free Cash Flow'!O1 -> 2007 | L10: ='Assumptions and Free Cash Flow'!P1 -> 2008 | M10: ='Assumptions and Free Cash Flow'!Q1 -> 2009 | N10: ='Assumptions and Free Cash Flow'!R1 -> 2010 | O10: ='Assumptions and Free Cash Flow'!S1 -> 2011 | P10: ='Assumptions and Free Cash Flow'!T1 -> 2012 | Q10: ='Assumptions and Free Cash Flow'!U1 -> 2013 | R10: ='Assumptions and Free Cash Flow'!V1 -> 2014 | S10: ='Assumptions and Free Cash Flow'!W1 -> 2015 | T10: ='Assumptions and Free Cash Flow'!X1 -> 2016 | U10: ='Assumptions and Free Cash Flow'!Y1 -> 2017 | V10: ='Assumptions and Free Cash Flow'!Z1 -> 2018 | W10: ='Assumptions and Free Cash Flow'!AA1 -> 2019 | X10: ='Assumptions and Free Cash Flow'!AB1 -> 2020 | Y10: ='Assumptions and Free Cash Flow'!AC1 -> 2021 | Z10: ='Assumptions and Free Cash Flow'!AD1 -> 2022 | AA10: ='Assumptions and Free Cash Flow'!AE1 -> 2023 | AB10: ='Assumptions and Free Cash Flow'!AF1 -> 2024 | AC10: ='Assumptions and Free Cash Flow'!AG1 -> 2025
B11: =IF(ISTEXT('Assumptions and Free Cash Flow'!C15),'Assumptions and Free Cash Flow'!C15,"") -> COGS | D11: Less: Depreciation Expense | E11: =MATCH(D11,'Assumptions and Free Cash Flow'!C:C,0) -> 16 | H11: 2015 | I11: =I10<=$H$11 -> TRUE | J11: =J10<=$H$11 -> TRUE | K11: TRUE | L11: TRUE | M11: TRUE | N11: TRUE | O11: TRUE | P11: TRUE | Q11: TRUE | R11: TRUE | S11: TRUE | T11: FALSE | U11: FALSE | V11: FALSE | W11: FALSE | X11: FALSE | Y11: FALSE | Z11: FALSE | AA11: FALSE | AB11: FALSE | AC11: FALSE
B12: =IF(ISTEXT('Assumptions and Free Cash Flow'!C16),'Assumptions and Free Cash Flow'!C16,"") -> Less: Depreciation Expense | D12: COGS without Depreciation | E12: =MATCH(D12,'Assumptions and Free Cash Flow'!C:C,0) -> 17 | H12: =INDEX('Assumptions and Free Cash Flow'!C:C,Graphs!$K$4) -> ROIC Historic and Projected | I12: =INDEX('Assumptions and Free Cash Flow'!M:M,Graphs!$K$4) -> 0.09645382561 | J12: =INDEX('Assumptions and Free Cash Flow'!N:N,Graphs!$K$4) -> 0.06047868813 | K12: =INDEX('Assumptions and Free Cash Flow'!O:O,Graphs!$K$4) -> 0.08346502553 | L12: =INDEX('Assumptions and Free Cash Flow'!P:P,Graphs!$K$4) -> 0.08194386143 | M12: =INDEX('Assumptions and Free Cash Flow'!Q:Q,Graphs!$K$4) -> 0.06189063969 | N12: =INDEX('Assumptions and Free Cash Flow'!R:R,Graphs!$K$4) -> 0.07398956226 | O12: =INDEX('Assumptions and Free Cash Flow'!S:S,Graphs!$K$4) -> 0.06692036905 | P12: =INDEX('Assumptions and Free Cash Flow'!T:T,Graphs!$K$4) -> 0.06268949775 | Q12: =INDEX('Assumptions and Free Cash Flow'!U:U,Graphs!$K$4) -> 0.06117329526 | R12: =INDEX('Assumptions and Free Cash Flow'!V:V,Graphs!$K$4) -> 0.05914750332 | S12: =INDEX('Assumptions and Free Cash Flow'!W:W,Graphs!$K$4) -> 0.06188931451 | T12: =INDEX('Assumptions and Free Cash Flow'!X:X,Graphs!$K$4) -> 0.06050045477 | U12: =INDEX('Assumptions and Free Cash Flow'!Y:Y,Graphs!$K$4) -> 0.05703459441 | V12: =INDEX('Assumptions and Free Cash Flow'!Z:Z,Graphs!$K$4) -> 0.05428121155 | W12: =INDEX('Assumptions and Free Cash Flow'!AA:AA,Graphs!$K$4) -> 0.05288745686 | X12: =INDEX('Assumptions and Free Cash Flow'!AB:AB,Graphs!$K$4) -> 0.05177503734 | Y12: =INDEX('Assumptions and Free Cash Flow'!AC:AC,Graphs!$K$4) -> 0.0508614602 | Z12: =INDEX('Assumptions and Free Cash Flow'!AD:AD,Graphs!$K$4) -> 0.05010979804 | AA12: =INDEX('Assumptions and Free Cash Flow'!AE:AE,Graphs!$K$4) -> 0.0494904155 | AB12: =INDEX('Assumptions and Free Cash Flow'!AF:AF,Graphs!$K$4) -> 0.04897939537 | AC12: =INDEX('Assumptions and Free Cash Flow'!AG:AG,Graphs!$K$4) -> 0.04855734446
B13: =IF(ISTEXT('Assumptions and Free Cash Flow'!C17),'Assumptions and Free Cash Flow'!C17,"") -> COGS without Depreciation | D13: COGS Margin | E13: =MATCH(D13,'Assumptions and Free Cash Flow'!C:C,0) -> 18 | I13: =I10 -> 2005 | J13: =J10 -> 2006 | K13: 2007 | L13: 2008 | M13: 2009 | N13: 2010 | O13: 2011 | P13: 2012 | Q13: 2013 | R13: 2014 | S13: 2015 | T13: 2016 | U13: 2017 | V13: 2018 | W13: 2019 | X13: 2020 | Y13: 2021 | Z13: 2022 | AA13: 2023 | AB13: 2024 | AC13: 2025
B14: =IF(ISTEXT('Assumptions and Free Cash Flow'!C18),'Assumptions and Free Cash Flow'!C18,"") -> COGS Margin | D14: EBITDA Margin | E14: =MATCH(D14,'Assumptions and Free Cash Flow'!C:C,0) -> 20 | H14: History | I14: =IF(I11,I12) -> 0.09645382561 | J14: =IF(J11,J12) -> 0.06047868813 | K14: 0.08346502553 | L14: 0.08194386143 | M14: 0.06189063969 | N14: 0.07398956226 | O14: 0.06692036905 | P14: 0.06268949775 | Q14: 0.06117329526 | R14: 0.05914750332 | S14: 0.06188931451 | T14: FALSE | U14: FALSE | V14: FALSE | W14: FALSE | X14: FALSE | Y14: FALSE | Z14: FALSE | AA14: FALSE | AB14: FALSE | AC14: FALSE
B15: =IF(ISTEXT('Assumptions and Free Cash Flow'!C19),'Assumptions and Free Cash Flow'!C19,"") ->  | D15: SG&A as Pct of Sales | E15: =MATCH(D15,'Assumptions and Free Cash Flow'!C:C,0) -> 21 | H15: Projected | I15: =IF(NOT(I11),I12) -> FALSE | J15: =IF(NOT(J11),J12) -> FALSE | K15: FALSE | L15: FALSE | M15: FALSE | N15: FALSE | O15: FALSE | P15: FALSE | Q15: FALSE | R15: FALSE | S15: FALSE | T15: 0.06050045477 | U15: 0.05703459441 | V15: 0.05428121155 | W15: 0.05288745686 | X15: 0.05177503734 | Y15: 0.0508614602 | Z15: 0.05010979804 | AA15: 0.0494904155 | AB15: 0.04897939537 | AC15: 0.04855734446
B16: =IF(ISTEXT('Assumptions and Free Cash Flow'!C20),'Assumptions and Free Cash Flow'!C20,"") -> EBITDA Margin | D16: Property Plant and Equipment | E16: =MATCH(D16,'Assumptions and Free Cash Flow'!C:C,0) -> 24
B17: =IF(ISTEXT('Assumptions and Free Cash Flow'!C21),'Assumptions and Free Cash Flow'!C21,"") -> SG&A as Pct of Sales | D17: Depreciation Rate | E17: =MATCH(D17,'Assumptions and Free Cash Flow'!C:C,0) -> 26
B18: =IF(ISTEXT('Assumptions and Free Cash Flow'!C22),'Assumptions and Free Cash Flow'!C22,"") -> Admin as Pct of Sales | D18: Capital Expenditures - Gross | E18: =MATCH(D18,'Assumptions and Free Cash Flow'!C:C,0) -> 28 | I18: =I10 -> 2005 | J18: =J10 -> 2006 | K18: 2007 | L18: 2008 | M18: 2009 | N18: 2010 | O18: 2011 | P18: 2012 | Q18: 2013 | R18: 2014 | S18: 2015 | T18: 2016 | U18: 2017 | V18: 2018 | W18: 2019 | X18: 2020 | Y18: 2021 | Z18: 2022 | AA18: 2023 | AB18: 2024 | AC18: 2025
B19: =IF(ISTEXT('Assumptions and Free Cash Flow'!C23),'Assumptions and Free Cash Flow'!C23,"") ->  | D19: Capital Expenditures - Net | E19: =MATCH(D19,'Assumptions and Free Cash Flow'!C:C,0) -> 29 | H19: =INDEX('Assumptions and Free Cash Flow'!C:C,Graphs!$K$6) -> Average Investment in Associates | I19: =INDEX('Assumptions and Free Cash Flow'!M:M,Graphs!$K$6) -> 1105 | J19: =INDEX('Assumptions and Free Cash Flow'!N:N,Graphs!$K$6) -> 842 | K19: =INDEX('Assumptions and Free Cash Flow'!O:O,Graphs!$K$6) -> 600.5 | L19: =INDEX('Assumptions and Free Cash Flow'!P:P,Graphs!$K$6) -> 1423 | M19: =INDEX('Assumptions and Free Cash Flow'!Q:Q,Graphs!$K$6) -> 2445.5 | N19: =INDEX('Assumptions and Free Cash Flow'!R:R,Graphs!$K$6) -> 3772 | O19: =INDEX('Assumptions and Free Cash Flow'!S:S,Graphs!$K$6) -> 4964 | P19: =INDEX('Assumptions and Free Cash Flow'!T:T,Graphs!$K$6) -> 5646 | Q19: =INDEX('Assumptions and Free Cash Flow'!U:U,Graphs!$K$6) -> 5006 | R19: =INDEX('Assumptions and Free Cash Flow'!V:V,Graphs!$K$6) -> 4024 | S19: =INDEX('Assumptions and Free Cash Flow'!W:W,Graphs!$K$6) -> 4476.5 | T19: =INDEX('Assumptions and Free Cash Flow'!X:X,Graphs!$K$6) -> 0 | U19: =INDEX('Assumptions and Free Cash Flow'!Y:Y,Graphs!$K$6) -> 0 | V19: =INDEX('Assumptions and Free Cash Flow'!Z:Z,Graphs!$K$6) -> 0 | W19: =INDEX('Assumptions and Free Cash Flow'!AA:AA,Graphs!$K$6) -> 0 | X19: =INDEX('Assumptions and Free Cash Flow'!AB:AB,Graphs!$K$6) -> 0 | Y19: =INDEX('Assumptions and Free Cash Flow'!AC:AC,Graphs!$K$6) -> 0 | Z19: =INDEX('Assumptions and Free Cash Flow'!AD:AD,Graphs!$K$6) -> 0 | AA19: =INDEX('Assumptions and Free Cash Flow'!AE:AE,Graphs!$K$6) -> 0 | AB19: =INDEX('Assumptions and Free Cash Flow'!AF:AF,Graphs!$K$6) -> 0 | AC19: =INDEX('Assumptions and Free Cash Flow'!AG:AG,Graphs!$K$6) -> 0
B20: =IF(ISTEXT('Assumptions and Free Cash Flow'!C24),'Assumptions and Free Cash Flow'!C24,"") -> Property Plant and Equipment | D20: Cap Exp to Depreciation | E20: =MATCH(D20,'Assumptions and Free Cash Flow'!C:C,0) -> 30
B21: =IF(ISTEXT('Assumptions and Free Cash Flow'!C25),'Assumptions and Free Cash Flow'!C25,"") -> Average | D21: Trade and Other Recievables | E21: =MATCH(D21,'Assumptions and Free Cash Flow'!C:C,0) -> 34
B22: =IF(ISTEXT('Assumptions and Free Cash Flow'!C26),'Assumptions and Free Cash Flow'!C26,"") -> Depreciation Rate | D22: Trade and Other as Percent of Sales | E22: =MATCH(D22,'Assumptions and Free Cash Flow'!C:C,0) -> 35 | I22: =I19 -> 1105 | J22: =J19 -> 842 | K22: 600.5 | L22: 1423 | M22: 2445.5 | N22: 3772 | O22: 4964 | P22: 5646 | Q22: 5006 | R22: 4024 | S22: 4476.5 | T22: 0 | U22: 0 | V22: 0 | W22: 0 | X22: 0 | Y22: 0 | Z22: 0 | AA22: 0 | AB22: 0 | AC22: 0
B23: =IF(ISTEXT('Assumptions and Free Cash Flow'!C27),'Assumptions and Free Cash Flow'!C27,"") ->  | D23: Accounts Payable | E23: =MATCH(D23,'Assumptions and Free Cash Flow'!C:C,0) -> 37 | H23: =H12 -> ROIC Historic and Projected | I23: =I12 -> 0.09645382561 | J23: =J12 -> 0.06047868813 | K23: 0.08346502553 | L23: 0.08194386143 | M23: 0.06189063969 | N23: 0.07398956226 | O23: 0.06692036905 | P23: 0.06268949775 | Q23: 0.06117329526 | R23: 0.05914750332 | S23: 0.06188931451 | T23: 0.06050045477 | U23: 0.05703459441 | V23: 0.05428121155 | W23: 0.05288745686 | X23: 0.05177503734 | Y23: 0.0508614602 | Z23: 0.05010979804 | AA23: 0.0494904155 | AB23: 0.04897939537 | AC23: 0.04855734446
B24: =IF(ISTEXT('Assumptions and Free Cash Flow'!C28),'Assumptions and Free Cash Flow'!C28,"") -> Capital Expenditures - Gross | D24: A/P as Percent of COGS | E24: =MATCH(D24,'Assumptions and Free Cash Flow'!C:C,0) -> 38
B25: =IF(ISTEXT('Assumptions and Free Cash Flow'!C29),'Assumptions and Free Cash Flow'!C29,"") -> Capital Expenditures - Net | D25: Tax Rate Applied | E25: =MATCH(D25,'Assumptions and Free Cash Flow'!C:C,0) -> 42
B26: =IF(ISTEXT('Assumptions and Free Cash Flow'!C30),'Assumptions and Free Cash Flow'!C30,"") -> Cap Exp to Depreciation | D26: NOPAT - EBIT x (1-t) | E26: =MATCH(D26,'Assumptions and Free Cash Flow'!C:C,0) -> 44
B27: =IF(ISTEXT('Assumptions and Free Cash Flow'!C31),'Assumptions and Free Cash Flow'!C31,"") ->  | D27: Invested Capital - EOY | E27: =MATCH(D27,'Assumptions and Free Cash Flow'!C:C,0) -> 46
B28: =IF(ISTEXT('Assumptions and Free Cash Flow'!C32),'Assumptions and Free Cash Flow'!C32,"") -> Tax Rate | D28: Invested Capital - Average | E28: =MATCH(D28,'Assumptions and Free Cash Flow'!C:C,0) -> 47
B29: =IF(ISTEXT('Assumptions and Free Cash Flow'!C33),'Assumptions and Free Cash Flow'!C33,"") ->  | D29: ROIC | E29: =MATCH(D29,'Assumptions and Free Cash Flow'!C:C,0) -> 48
B30: =IF(ISTEXT('Assumptions and Free Cash Flow'!C34),'Assumptions and Free Cash Flow'!C34,"") -> Trade and Other Recievables | D30: Equity Capital without Minority Interest | E30: =MATCH(D30,'Assumptions and Free Cash Flow'!C:C,0) -> 50
B31: =IF(ISTEXT('Assumptions and Free Cash Flow'!C35),'Assumptions and Free Cash Flow'!C35,"") -> Trade and Other as Percent of Sales | D31: Net Income to Common | E31: =MATCH(D31,'Assumptions and Free Cash Flow'!C:C,0) -> 52
B32: =IF(ISTEXT('Assumptions and Free Cash Flow'!C36),'Assumptions and Free Cash Flow'!C36,"") ->  | D32: ROE | E32: =MATCH(D32,'Assumptions and Free Cash Flow'!C:C,0) -> 53
B33: =IF(ISTEXT('Assumptions and Free Cash Flow'!C37),'Assumptions and Free Cash Flow'!C37,"") -> Accounts Payable | D33: Minority Interest | E33: =MATCH(D33,'Assumptions and Free Cash Flow'!C:C,0) -> 55
B34: =IF(ISTEXT('Assumptions and Free Cash Flow'!C38),'Assumptions and Free Cash Flow'!C38,"") -> A/P as Percent of COGS | D34: Average | E34: =MATCH(D34,'Assumptions and Free Cash Flow'!C:C,0) -> 25
B35: =IF(ISTEXT('Assumptions and Free Cash Flow'!C39),'Assumptions and Free Cash Flow'!C39,"") ->  | D35: Earnings from Minority Interest | E35: =MATCH(D35,'Assumptions and Free Cash Flow'!C:C,0) -> 57
B36: =IF(ISTEXT('Assumptions and Free Cash Flow'!C40),'Assumptions and Free Cash Flow'!C40,"") ->  | D36: ROE to Minority Interest | E36: =MATCH(D36,'Assumptions and Free Cash Flow'!C:C,0) -> 58
B37: =IF(ISTEXT('Assumptions and Free Cash Flow'!C41),'Assumptions and Free Cash Flow'!C41,"") ->  | D37: Total Gross Debt | E37: =MATCH(D37,'Assumptions and Free Cash Flow'!C:C,0) -> 60
B38: =IF(ISTEXT('Assumptions and Free Cash Flow'!C42),'Assumptions and Free Cash Flow'!C42,"") -> Tax Rate Applied | D38: Average Gross Debt | E38: =MATCH(D38,'Assumptions and Free Cash Flow'!C:C,0) -> 61
B39: =IF(ISTEXT('Assumptions and Free Cash Flow'!C43),'Assumptions and Free Cash Flow'!C43,"") -> EBIT | D39: Interest Expense | E39: =MATCH(D39,'Assumptions and Free Cash Flow'!C:C,0) -> 62
B40: =IF(ISTEXT('Assumptions and Free Cash Flow'!C44),'Assumptions and Free Cash Flow'!C44,"") -> NOPAT - EBIT x (1-t) | D40: Average Interest Expese | E40: =MATCH(D40,'Assumptions and Free Cash Flow'!C:C,0) -> 63
B41: =IF(ISTEXT('Assumptions and Free Cash Flow'!C45),'Assumptions and Free Cash Flow'!C45,"") ->  | D41: Cash and Investments | E41: =MATCH(D41,'Assumptions and Free Cash Flow'!C:C,0) -> 65
B42: =IF(ISTEXT('Assumptions and Free Cash Flow'!C46),'Assumptions and Free Cash Flow'!C46,"") -> Invested Capital - EOY | D42: Average Cash and Investments | E42: =MATCH(D42,'Assumptions and Free Cash Flow'!C:C,0) -> 66
B43: =IF(ISTEXT('Assumptions and Free Cash Flow'!C47),'Assumptions and Free Cash Flow'!C47,"") -> Invested Capital - Average | D43: Interest Income | E43: =MATCH(D43,'Assumptions and Free Cash Flow'!C:C,0) -> 67
B44: =IF(ISTEXT('Assumptions and Free Cash Flow'!C48),'Assumptions and Free Cash Flow'!C48,"") -> ROIC | D44: Average Interest Income Rate | E44: =MATCH(D44,'Assumptions and Free Cash Flow'!C:C,0) -> 68
B45: =IF(ISTEXT('Assumptions and Free Cash Flow'!C49),'Assumptions and Free Cash Flow'!C49,"") ->  | D45: Income from Associates | E45: =MATCH(D45,'Assumptions and Free Cash Flow'!C:C,0) -> 70
B46: =IF(ISTEXT('Assumptions and Free Cash Flow'!C50),'Assumptions and Free Cash Flow'!C50,"") -> Equity Capital without Minority Interest | D46: Investment in Associates | E46: =MATCH(D46,'Assumptions and Free Cash Flow'!C:C,0) -> 71
B47: =IF(ISTEXT('Assumptions and Free Cash Flow'!C51),'Assumptions and Free Cash Flow'!C51,"") -> Average | D47: Average Investment in Associates | E47: =MATCH(D47,'Assumptions and Free Cash Flow'!C:C,0) -> 72
B48: =IF(ISTEXT('Assumptions and Free Cash Flow'!C52),'Assumptions and Free Cash Flow'!C52,"") -> Net Income to Common | D48: Return on Investments in Associates | E48: =MATCH(D48,'Assumptions and Free Cash Flow'!C:C,0) -> 73
B49: =IF(ISTEXT('Assumptions and Free Cash Flow'!C53),'Assumptions and Free Cash Flow'!C53,"") -> ROE | D49: Share Price | E49: =MATCH(D49,'Assumptions and Free Cash Flow'!C:C,0) -> 75
B50: =IF(ISTEXT('Assumptions and Free Cash Flow'!C54),'Assumptions and Free Cash Flow'!C54,"") ->  | D50: Market Capital | E50: =MATCH(D50,'Assumptions and Free Cash Flow'!C:C,0) -> 76
B51: =IF(ISTEXT('Assumptions and Free Cash Flow'!C55),'Assumptions and Free Cash Flow'!C55,"") -> Minority Interest | D51: Earnings to Common | E51: =MATCH(D51,'Assumptions and Free Cash Flow'!C:C,0) -> 77
B52: =IF(ISTEXT('Assumptions and Free Cash Flow'!C56),'Assumptions and Free Cash Flow'!C56,"") -> Average | D52: P/E ratio from LTM | E52: =MATCH(D52,'Assumptions and Free Cash Flow'!C:C,0) -> 78
B53: =IF(ISTEXT('Assumptions and Free Cash Flow'!C57),'Assumptions and Free Cash Flow'!C57,"") -> Earnings from Minority Interest | D53: P/E ratio from Forward | E53: =MATCH(D53,'Assumptions and Free Cash Flow'!C:C,0) -> 79
B54: =IF(ISTEXT('Assumptions and Free Cash Flow'!C58),'Assumptions and Free Cash Flow'!C58,"") -> ROE to Minority Interest | D54: Net Debt | E54: =MATCH(D54,'Assumptions and Free Cash Flow'!C:C,0) -> 81
B55: =IF(ISTEXT('Assumptions and Free Cash Flow'!C59),'Assumptions and Free Cash Flow'!C59,"") ->  | D55: Enterprise Value | E55: =MATCH(D55,'Assumptions and Free Cash Flow'!C:C,0) -> 82
B56: =IF(ISTEXT('Assumptions and Free Cash Flow'!C60),'Assumptions and Free Cash Flow'!C60,"") -> Total Gross Debt | D56: EV to EBITDA | E56: =MATCH(D56,'Assumptions and Free Cash Flow'!C:C,0) -> 84
B57: =IF(ISTEXT('Assumptions and Free Cash Flow'!C61),'Assumptions and Free Cash Flow'!C61,"") -> Average Gross Debt | D57: EV to EBIT | E57: =MATCH(D57,'Assumptions and Free Cash Flow'!C:C,0) -> 85
B58: =IF(ISTEXT('Assumptions and Free Cash Flow'!C62),'Assumptions and Free Cash Flow'!C62,"") -> Interest Expense | D58: Price to Book Ratio | E58: =MATCH(D58,'Assumptions and Free Cash Flow'!C:C,0) -> 87
B59: =IF(ISTEXT('Assumptions and Free Cash Flow'!C63),'Assumptions and Free Cash Flow'!C63,"") -> Average Interest Expese | D59: EV to Invested Capital Ratio | E59: =MATCH(D59,'Assumptions and Free Cash Flow'!C:C,0) -> 88
B60: =IF(ISTEXT('Assumptions and Free Cash Flow'!C64),'Assumptions and Free Cash Flow'!C64,"") ->  | D60: Number of shares year end excl treasury shares | E60: =MATCH(D60,'Assumptions and Free Cash Flow'!C:C,0) -> 90
B61: =IF(ISTEXT('Assumptions and Free Cash Flow'!C65),'Assumptions and Free Cash Flow'!C65,"") -> Cash and Investments | D61: Volume of sales | E61: =MATCH(D61,'Assumptions and Free Cash Flow'!C:C,0) -> 95
B62: =IF(ISTEXT('Assumptions and Free Cash Flow'!C66),'Assumptions and Free Cash Flow'!C66,"") -> Average Cash and Investments | D62: Bear case Volumes | E62: =MATCH(D62,'Assumptions and Free Cash Flow'!C:C,0) -> 96
B63: =IF(ISTEXT('Assumptions and Free Cash Flow'!C67),'Assumptions and Free Cash Flow'!C67,"") -> Interest Income | D63: Historic price per volume unit | E63: =MATCH(D63,'Assumptions and Free Cash Flow'!C:C,0) -> 98
B64: =IF(ISTEXT('Assumptions and Free Cash Flow'!C68),'Assumptions and Free Cash Flow'!C68,"") -> Average Interest Income Rate | D64: Bear case Price | E64: =MATCH(D64,'Assumptions and Free Cash Flow'!C:C,0) -> 99
B65: =IF(ISTEXT('Assumptions and Free Cash Flow'!C69),'Assumptions and Free Cash Flow'!C69,"") ->  | D65: Cost per volume sold | E65: =MATCH(D65,'Assumptions and Free Cash Flow'!C:C,0) -> 102
B66: =IF(ISTEXT('Assumptions and Free Cash Flow'!C70),'Assumptions and Free Cash Flow'!C70,"") -> Income from Associates | D66: COGS in pct of revenue | E66: =MATCH(D66,'Assumptions and Free Cash Flow'!C:C,0) -> 103
B67: =IF(ISTEXT('Assumptions and Free Cash Flow'!C71),'Assumptions and Free Cash Flow'!C71,"") -> Investment in Associates | D67: Admin as Pct of Sales | E67: =MATCH(D67,'Assumptions and Free Cash Flow'!C:C,0) -> 22
B68: =IF(ISTEXT('Assumptions and Free Cash Flow'!C72),'Assumptions and Free Cash Flow'!C72,"") -> Average Investment in Associates | D68: Other Income and Restructuring | E68: =MATCH(D68,'Assumptions and Free Cash Flow'!C:C,0) -> 106
B69: =IF(ISTEXT('Assumptions and Free Cash Flow'!C73),'Assumptions and Free Cash Flow'!C73,"") -> Return on Investments in Associates | D69: Accounts receivables in pct of revenue | E69: =MATCH(D69,'Assumptions and Free Cash Flow'!C:C,0) -> 109
B70: =IF(ISTEXT('Assumptions and Free Cash Flow'!C74),'Assumptions and Free Cash Flow'!C74,"") ->  | D70: Inventory in pct of COGS | E70: =MATCH(D70,'Assumptions and Free Cash Flow'!C:C,0) -> 110
B71: =IF(ISTEXT('Assumptions and Free Cash Flow'!C75),'Assumptions and Free Cash Flow'!C75,"") -> Share Price | D71: Accounts payables in pct of COGS | E71: =MATCH(D71,'Assumptions and Free Cash Flow'!C:C,0) -> 111
B72: =IF(ISTEXT('Assumptions and Free Cash Flow'!C76),'Assumptions and Free Cash Flow'!C76,"") -> Market Capital | D72: Other current liabilities in pct of revenue | E72: =MATCH(D72,'Assumptions and Free Cash Flow'!C:C,0) -> 112
B73: =IF(ISTEXT('Assumptions and Free Cash Flow'!C77),'Assumptions and Free Cash Flow'!C77,"") -> Earnings to Common | D73: Capex | E73: =MATCH(D73,'Assumptions and Free Cash Flow'!C:C,0) -> 114
B74: =IF(ISTEXT('Assumptions and Free Cash Flow'!C78),'Assumptions and Free Cash Flow'!C78,"") -> P/E ratio from LTM | D74: Depreciation | E74: =MATCH(D74,'Assumptions and Free Cash Flow'!C:C,0) -> 116
B75: =IF(ISTEXT('Assumptions and Free Cash Flow'!C79),'Assumptions and Free Cash Flow'!C79,"") -> P/E ratio from Forward | D75: Tax Rate | E75: =MATCH(D75,'Assumptions and Free Cash Flow'!C:C,0) -> 117
B76: =IF(ISTEXT('Assumptions and Free Cash Flow'!C80),'Assumptions and Free Cash Flow'!C80,"") ->  | D76: Price | E76: =MATCH(D76,'Assumptions and Free Cash Flow'!C:C,0) -> 121
B77: =IF(ISTEXT('Assumptions and Free Cash Flow'!C81),'Assumptions and Free Cash Flow'!C81,"") -> Net Debt | D77: Quantity | E77: =MATCH(D77,'Assumptions and Free Cash Flow'!C:C,0) -> 122
B78: =IF(ISTEXT('Assumptions and Free Cash Flow'!C82),'Assumptions and Free Cash Flow'!C82,"") -> Enterprise Value | D78: Revenue for valuation | E78: =MATCH(D78,'Assumptions and Free Cash Flow'!C:C,0) -> 123
B79: =IF(ISTEXT('Assumptions and Free Cash Flow'!C83),'Assumptions and Free Cash Flow'!C83,"") ->  | D79: COGS for valuation | E79: =MATCH(D79,'Assumptions and Free Cash Flow'!C:C,0) -> 127
B80: =IF(ISTEXT('Assumptions and Free Cash Flow'!C84),'Assumptions and Free Cash Flow'!C84,"") -> EV to EBITDA | D80: SG&A in pct of revenue | E80: =MATCH(D80,'Assumptions and Free Cash Flow'!C:C,0) -> 130
B81: =IF(ISTEXT('Assumptions and Free Cash Flow'!C85),'Assumptions and Free Cash Flow'!C85,"") -> EV to EBIT | D81: SG&A for valuation | E81: =MATCH(D81,'Assumptions and Free Cash Flow'!C:C,0) -> 131
B82: =IF(ISTEXT('Assumptions and Free Cash Flow'!C86),'Assumptions and Free Cash Flow'!C86,"") ->  | D82: Admin in pct of sales | E82: =MATCH(D82,'Assumptions and Free Cash Flow'!C:C,0) -> 134
B83: =IF(ISTEXT('Assumptions and Free Cash Flow'!C87),'Assumptions and Free Cash Flow'!C87,"") -> Price to Book Ratio | D83: Admin for valuation | E83: =MATCH(D83,'Assumptions and Free Cash Flow'!C:C,0) -> 135
B84: =IF(ISTEXT('Assumptions and Free Cash Flow'!C88),'Assumptions and Free Cash Flow'!C88,"") -> EV to Invested Capital Ratio | D84: Other - Restructuring | E84: =MATCH(D84,'Assumptions and Free Cash Flow'!C:C,0) -> 137
B85: =IF(ISTEXT('Assumptions and Free Cash Flow'!C89),'Assumptions and Free Cash Flow'!C89,"") ->  | D85: EBITDA Historic and Projected | E85: =MATCH(D85,'Assumptions and Free Cash Flow'!C:C,0) -> 139
B86: =IF(ISTEXT('Assumptions and Free Cash Flow'!C90),'Assumptions and Free Cash Flow'!C90,"") -> Number of shares year end excl treasury shares | D86: EBITDA historic | E86: =MATCH(D86,'Assumptions and Free Cash Flow'!C:C,0) -> 140
B87: =IF(ISTEXT('Assumptions and Free Cash Flow'!C91),'Assumptions and Free Cash Flow'!C91,"") ->  | D87: Difference | E87: =MATCH(D87,'Assumptions and Free Cash Flow'!C:C,0) -> 141
B88: =IF(ISTEXT('Assumptions and Free Cash Flow'!C92),'Assumptions and Free Cash Flow'!C92,"") ->  | D88: Accounts receivable | E88: =MATCH(D88,'Assumptions and Free Cash Flow'!C:C,0) -> 144
B89: =IF(ISTEXT('Assumptions and Free Cash Flow'!C93),'Assumptions and Free Cash Flow'!C93,"") ->  | D89: Inventory | E89: =MATCH(D89,'Assumptions and Free Cash Flow'!C:C,0) -> 145
B90: =IF(ISTEXT('Assumptions and Free Cash Flow'!C94),'Assumptions and Free Cash Flow'!C94,"") ->  | D90: Accounts payable | E90: =MATCH(D90,'Assumptions and Free Cash Flow'!C:C,0) -> 37
B91: =IF(ISTEXT('Assumptions and Free Cash Flow'!C95),'Assumptions and Free Cash Flow'!C95,"") -> Volume of sales | D91: Other current liabilities | E91: =MATCH(D91,'Assumptions and Free Cash Flow'!C:C,0) -> 147
B92: =IF(ISTEXT('Assumptions and Free Cash Flow'!C96),'Assumptions and Free Cash Flow'!C96,"") -> Bear case Volumes | D92: Other current Assets | E92: =MATCH(D92,'Assumptions and Free Cash Flow'!C:C,0) -> 148
B93: =IF(ISTEXT('Assumptions and Free Cash Flow'!C97),'Assumptions and Free Cash Flow'!C97,"") ->  | D93: Net working capital | E93: =MATCH(D93,'Assumptions and Free Cash Flow'!C:C,0) -> 149
B94: =IF(ISTEXT('Assumptions and Free Cash Flow'!C98),'Assumptions and Free Cash Flow'!C98,"") -> Historic price per volume unit | D94: Change in net working capital | E94: =MATCH(D94,'Assumptions and Free Cash Flow'!C:C,0) -> 150
B95: =IF(ISTEXT('Assumptions and Free Cash Flow'!C99),'Assumptions and Free Cash Flow'!C99,"") -> Bear case Price | D95: EBITDA projected and history | E95: =MATCH(D95,'Assumptions and Free Cash Flow'!C:C,0) -> 151
B96: =IF(ISTEXT('Assumptions and Free Cash Flow'!C100),'Assumptions and Free Cash Flow'!C100,"") ->  | D96: Capital Expenditures | E96: =MATCH(D96,'Assumptions and Free Cash Flow'!C:C,0) -> 156
B97: =IF(ISTEXT('Assumptions and Free Cash Flow'!C101),'Assumptions and Free Cash Flow'!C101,"") ->  | D97: Opening Balance | E97: =MATCH(D97,'Assumptions and Free Cash Flow'!C:C,0) -> 161
B98: =IF(ISTEXT('Assumptions and Free Cash Flow'!C102),'Assumptions and Free Cash Flow'!C102,"") -> Cost per volume sold | D98: Add cap Exp | E98: =MATCH(D98,'Assumptions and Free Cash Flow'!C:C,0) -> 162
B99: =IF(ISTEXT('Assumptions and Free Cash Flow'!C103),'Assumptions and Free Cash Flow'!C103,"") -> COGS in pct of revenue | D99: Less Depreciation | E99: =MATCH(D99,'Assumptions and Free Cash Flow'!C:C,0) -> 163
B100: =IF(ISTEXT('Assumptions and Free Cash Flow'!C104),'Assumptions and Free Cash Flow'!C104,"") -> SG&A as Pct of Sales | D100: Closing | E100: =MATCH(D100,'Assumptions and Free Cash Flow'!C:C,0) -> 164
B101: =IF(ISTEXT('Assumptions and Free Cash Flow'!C105),'Assumptions and Free Cash Flow'!C105,"") -> Admin as Pct of Sales | D101: Net Plant | E101: =MATCH(D101,'Assumptions and Free Cash Flow'!C:C,0) -> 167
B102: =IF(ISTEXT('Assumptions and Free Cash Flow'!C106),'Assumptions and Free Cash Flow'!C106,"") -> Other Income and Restructuring | D102: Intangibles | E102: =MATCH(D102,'Assumptions and Free Cash Flow'!C:C,0) -> 168
B103: =IF(ISTEXT('Assumptions and Free Cash Flow'!C107),'Assumptions and Free Cash Flow'!C107,"") ->  | D103: Net Working Capital' | E103: =MATCH(D103,'Assumptions and Free Cash Flow'!C:C,0) -> 169
B104: =IF(ISTEXT('Assumptions and Free Cash Flow'!C108),'Assumptions and Free Cash Flow'!C108,"") ->  | D104: Net Deferred Tax | E104: =MATCH(D104,'Assumptions and Free Cash Flow'!C:C,0) -> 154
B105: =IF(ISTEXT('Assumptions and Free Cash Flow'!C109),'Assumptions and Free Cash Flow'!C109,"") -> Accounts receivables in pct of revenue | D105: Total Invested Capital | E105: =MATCH(D105,'Assumptions and Free Cash Flow'!C:C,0) -> 171
B106: =IF(ISTEXT('Assumptions and Free Cash Flow'!C110),'Assumptions and Free Cash Flow'!C110,"") -> Inventory in pct of COGS | D106: Average Invested Capital | E106: =MATCH(D106,'Assumptions and Free Cash Flow'!C:C,0) -> 172
B107: =IF(ISTEXT('Assumptions and Free Cash Flow'!C111),'Assumptions and Free Cash Flow'!C111,"") -> Accounts payables in pct of COGS | D107: Net Plant Historic | E107: =MATCH(D107,'Assumptions and Free Cash Flow'!C:C,0) -> 174
B108: =IF(ISTEXT('Assumptions and Free Cash Flow'!C112),'Assumptions and Free Cash Flow'!C112,"") -> Other current liabilities in pct of revenue | D108: Intangible Historic | E108: =MATCH(D108,'Assumptions and Free Cash Flow'!C:C,0) -> 175
B109: =IF(ISTEXT('Assumptions and Free Cash Flow'!C113),'Assumptions and Free Cash Flow'!C113,"") ->  | D109: Receivables Historic | E109: =MATCH(D109,'Assumptions and Free Cash Flow'!C:C,0) -> 176
B110: =IF(ISTEXT('Assumptions and Free Cash Flow'!C114),'Assumptions and Free Cash Flow'!C114,"") -> Capex | D110: Inventory Historic | E110: =MATCH(D110,'Assumptions and Free Cash Flow'!C:C,0) -> 177
B111: =IF(ISTEXT('Assumptions and Free Cash Flow'!C115),'Assumptions and Free Cash Flow'!C115,"") ->  | D111: Less: Payables Historic | E111: =MATCH(D111,'Assumptions and Free Cash Flow'!C:C,0) -> 178
B112: =IF(ISTEXT('Assumptions and Free Cash Flow'!C116),'Assumptions and Free Cash Flow'!C116,"") -> Depreciation | D112: Less: Other Current Liabilities Histoic | E112: =MATCH(D112,'Assumptions and Free Cash Flow'!C:C,0) -> 179
B113: =IF(ISTEXT('Assumptions and Free Cash Flow'!C117),'Assumptions and Free Cash Flow'!C117,"") -> Tax Rate | D113: Add: Deferred Tax Historic | E113: =MATCH(D113,'Assumptions and Free Cash Flow'!C:C,0) -> 180
B114: =IF(ISTEXT('Assumptions and Free Cash Flow'!C118),'Assumptions and Free Cash Flow'!C118,"") ->  | D114: Total Invested Capital Historic | E114: =MATCH(D114,'Assumptions and Free Cash Flow'!C:C,0) -> 181
B115: =IF(ISTEXT('Assumptions and Free Cash Flow'!C119),'Assumptions and Free Cash Flow'!C119,"") ->  | D115: EBIT | E115: =MATCH(D115,'Assumptions and Free Cash Flow'!C:C,0) -> 43
B116: =IF(ISTEXT('Assumptions and Free Cash Flow'!C120),'Assumptions and Free Cash Flow'!C120,"") ->  | D116: Tax Rate | E116: =MATCH(D116,'Assumptions and Free Cash Flow'!C:C,0) -> 32
B117: =IF(ISTEXT('Assumptions and Free Cash Flow'!C121),'Assumptions and Free Cash Flow'!C121,"") -> Price | D117: Taxes on EBIT | E117: =MATCH(D117,'Assumptions and Free Cash Flow'!C:C,0) -> 185
B118: =IF(ISTEXT('Assumptions and Free Cash Flow'!C122),'Assumptions and Free Cash Flow'!C122,"") -> Quantity | D118: NOPAT | E118: =MATCH(D118,'Assumptions and Free Cash Flow'!C:C,0) -> 186
B119: =IF(ISTEXT('Assumptions and Free Cash Flow'!C123),'Assumptions and Free Cash Flow'!C123,"") -> Revenue for valuation | D119: ROIC Historic and Projected | E119: =MATCH(D119,'Assumptions and Free Cash Flow'!C:C,0) -> 188
B120: =IF(ISTEXT('Assumptions and Free Cash Flow'!C124),'Assumptions and Free Cash Flow'!C124,"") ->  | D120: 0 | E120: =MATCH(D120,'Assumptions and Free Cash Flow'!C:C,0) -> 
B121: =IF(ISTEXT('Assumptions and Free Cash Flow'!C125),'Assumptions and Free Cash Flow'!C125,"") ->  | D121: 0 | E121: =MATCH(D121,'Assumptions and Free Cash Flow'!C:C,0) -> 
B122: =IF(ISTEXT('Assumptions and Free Cash Flow'!C126),'Assumptions and Free Cash Flow'!C126,"") -> COGS in pct of revenue | D122: 0 | E122: =MATCH(D122,'Assumptions and Free Cash Flow'!C:C,0) -> 
B123: =IF(ISTEXT('Assumptions and Free Cash Flow'!C127),'Assumptions and Free Cash Flow'!C127,"") -> COGS for valuation | D123: 0 | E123: =MATCH(D123,'Assumptions and Free Cash Flow'!C:C,0) -> 
B124: =IF(ISTEXT('Assumptions and Free Cash Flow'!C128),'Assumptions and Free Cash Flow'!C128,"") ->  | D124: 0 | E124: =MATCH(D124,'Assumptions and Free Cash Flow'!C:C,0) -> 
B125: =IF(ISTEXT('Assumptions and Free Cash Flow'!C129),'Assumptions and Free Cash Flow'!C129,"") ->  | D125: 0 | E125: =MATCH(D125,'Assumptions and Free Cash Flow'!C:C,0) -> 
B126: =IF(ISTEXT('Assumptions and Free Cash Flow'!C130),'Assumptions and Free Cash Flow'!C130,"") -> SG&A in pct of revenue | D126: 0 | E126: =MATCH(D126,'Assumptions and Free Cash Flow'!C:C,0) -> 
B127: =IF(ISTEXT('Assumptions and Free Cash Flow'!C131),'Assumptions and Free Cash Flow'!C131,"") -> SG&A for valuation | D127: 0 | E127: =MATCH(D127,'Assumptions and Free Cash Flow'!C:C,0) -> 
B128: =IF(ISTEXT('Assumptions and Free Cash Flow'!C132),'Assumptions and Free Cash Flow'!C132,"") ->  | D128: 0 | E128: =MATCH(D128,'Assumptions and Free Cash Flow'!C:C,0) -> 
B129: =IF(ISTEXT('Assumptions and Free Cash Flow'!C133),'Assumptions and Free Cash Flow'!C133,"") ->  | D129: 0 | E129: =MATCH(D129,'Assumptions and Free Cash Flow'!C:C,0) -> 
B130: =IF(ISTEXT('Assumptions and Free Cash Flow'!C134),'Assumptions and Free Cash Flow'!C134,"") -> Admin in pct of sales | D130: 0 | E130: =MATCH(D130,'Assumptions and Free Cash Flow'!C:C,0) -> 
B131: =IF(ISTEXT('Assumptions and Free Cash Flow'!C135),'Assumptions and Free Cash Flow'!C135,"") -> Admin for valuation | D131: 0 | E131: =MATCH(D131,'Assumptions and Free Cash Flow'!C:C,0) -> 
B132: =IF(ISTEXT('Assumptions and Free Cash Flow'!C136),'Assumptions and Free Cash Flow'!C136,"") ->  | D132: 0 | E132: =MATCH(D132,'Assumptions and Free Cash Flow'!C:C,0) -> 
B133: =IF(ISTEXT('Assumptions and Free Cash Flow'!C137),'Assumptions and Free Cash Flow'!C137,"") -> Other - Restructuring | D133: 0 | E133: =MATCH(D133,'Assumptions and Free Cash Flow'!C:C,0) -> 
B134: =IF(ISTEXT('Assumptions and Free Cash Flow'!C138),'Assumptions and Free Cash Flow'!C138,"") ->  | D134: 0 | E134: =MATCH(D134,'Assumptions and Free Cash Flow'!C:C,0) -> 
B135: =IF(ISTEXT('Assumptions and Free Cash Flow'!C139),'Assumptions and Free Cash Flow'!C139,"") -> EBITDA Historic and Projected | D135: 0 | E135: =MATCH(D135,'Assumptions and Free Cash Flow'!C:C,0) -> 
B136: =IF(ISTEXT('Assumptions and Free Cash Flow'!C140),'Assumptions and Free Cash Flow'!C140,"") -> EBITDA historic | D136: 0 | E136: =MATCH(D136,'Assumptions and Free Cash Flow'!C:C,0) -> 
B137: =IF(ISTEXT('Assumptions and Free Cash Flow'!C141),'Assumptions and Free Cash Flow'!C141,"") -> Difference | D137: 0 | E137: =MATCH(D137,'Assumptions and Free Cash Flow'!C:C,0) -> 
B138: =IF(ISTEXT('Assumptions and Free Cash Flow'!C142),'Assumptions and Free Cash Flow'!C142,"") ->  | D138: 0 | E138: =MATCH(D138,'Assumptions and Free Cash Flow'!C:C,0) -> 
B139: =IF(ISTEXT('Assumptions and Free Cash Flow'!C143),'Assumptions and Free Cash Flow'!C143,"") ->  | D139: 0 | E139: =MATCH(D139,'Assumptions and Free Cash Flow'!C:C,0) -> 
B140: =IF(ISTEXT('Assumptions and Free Cash Flow'!C144),'Assumptions and Free Cash Flow'!C144,"") -> Accounts receivable | D140: 0 | E140: =MATCH(D140,'Assumptions and Free Cash Flow'!C:C,0) -> 
B141: =IF(ISTEXT('Assumptions and Free Cash Flow'!C145),'Assumptions and Free Cash Flow'!C145,"") -> Inventory | D141: 0 | E141: =MATCH(D141,'Assumptions and Free Cash Flow'!C:C,0) -> 
B142: =IF(ISTEXT('Assumptions and Free Cash Flow'!C146),'Assumptions and Free Cash Flow'!C146,"") -> Accounts payable | D142: 0 | E142: =MATCH(D142,'Assumptions and Free Cash Flow'!C:C,0) -> 
B143: =IF(ISTEXT('Assumptions and Free Cash Flow'!C147),'Assumptions and Free Cash Flow'!C147,"") -> Other current liabilities | D143: 0 | E143: =MATCH(D143,'Assumptions and Free Cash Flow'!C:C,0) -> 
B144: =IF(ISTEXT('Assumptions and Free Cash Flow'!C148),'Assumptions and Free Cash Flow'!C148,"") -> Other current Assets | D144: 0 | E144: =MATCH(D144,'Assumptions and Free Cash Flow'!C:C,0) -> 
B145: =IF(ISTEXT('Assumptions and Free Cash Flow'!C149),'Assumptions and Free Cash Flow'!C149,"") -> Net working capital | D145: 0 | E145: =MATCH(D145,'Assumptions and Free Cash Flow'!C:C,0) -> 
B146: =IF(ISTEXT('Assumptions and Free Cash Flow'!C150),'Assumptions and Free Cash Flow'!C150,"") -> Change in net working capital
B147: =IF(ISTEXT('Assumptions and Free Cash Flow'!C151),'Assumptions and Free Cash Flow'!C151,"") -> EBITDA projected and history
B148: =IF(ISTEXT('Assumptions and Free Cash Flow'!C154),'Assumptions and Free Cash Flow'!C154,"") -> Net Deferred Tax
B149: =IF(ISTEXT('Assumptions and Free Cash Flow'!C155),'Assumptions and Free Cash Flow'!C155,"") -> 
B150: =IF(ISTEXT('Assumptions and Free Cash Flow'!C156),'Assumptions and Free Cash Flow'!C156,"") -> Capital Expenditures
B151: =IF(ISTEXT('Assumptions and Free Cash Flow'!C157),'Assumptions and Free Cash Flow'!C157,"") -> 
B152: =IF(ISTEXT('Assumptions and Free Cash Flow'!C158),'Assumptions and Free Cash Flow'!C158,"") -> 
B153: =IF(ISTEXT('Assumptions and Free Cash Flow'!C159),'Assumptions and Free Cash Flow'!C159,"") -> 
B154: =IF(ISTEXT('Assumptions and Free Cash Flow'!C160),'Assumptions and Free Cash Flow'!C160,"") -> 
B155: =IF(ISTEXT('Assumptions and Free Cash Flow'!C161),'Assumptions and Free Cash Flow'!C161,"") -> Opening Balance
B156: =IF(ISTEXT('Assumptions and Free Cash Flow'!C162),'Assumptions and Free Cash Flow'!C162,"") -> Add cap Exp
B157: =IF(ISTEXT('Assumptions and Free Cash Flow'!C163),'Assumptions and Free Cash Flow'!C163,"") -> Less Depreciation
B158: =IF(ISTEXT('Assumptions and Free Cash Flow'!C164),'Assumptions and Free Cash Flow'!C164,"") -> Closing
B159: =IF(ISTEXT('Assumptions and Free Cash Flow'!C165),'Assumptions and Free Cash Flow'!C165,"") -> 
B160: =IF(ISTEXT('Assumptions and Free Cash Flow'!C166),'Assumptions and Free Cash Flow'!C166,"") -> 
B161: =IF(ISTEXT('Assumptions and Free Cash Flow'!C167),'Assumptions and Free Cash Flow'!C167,"") -> Net Plant
B162: =IF(ISTEXT('Assumptions and Free Cash Flow'!C168),'Assumptions and Free Cash Flow'!C168,"") -> Intangibles
B163: =IF(ISTEXT('Assumptions and Free Cash Flow'!C169),'Assumptions and Free Cash Flow'!C169,"") -> Net Working Capital'
B164: =IF(ISTEXT('Assumptions and Free Cash Flow'!C170),'Assumptions and Free Cash Flow'!C170,"") -> Net Deferred Tax
B165: =IF(ISTEXT('Assumptions and Free Cash Flow'!C171),'Assumptions and Free Cash Flow'!C171,"") -> Total Invested Capital
B166: =IF(ISTEXT('Assumptions and Free Cash Flow'!C172),'Assumptions and Free Cash Flow'!C172,"") -> Average Invested Capital
B167: =IF(ISTEXT('Assumptions and Free Cash Flow'!C173),'Assumptions and Free Cash Flow'!C173,"") -> 
B168: =IF(ISTEXT('Assumptions and Free Cash Flow'!C174),'Assumptions and Free Cash Flow'!C174,"") -> Net Plant Historic
B169: =IF(ISTEXT('Assumptions and Free Cash Flow'!C175),'Assumptions and Free Cash Flow'!C175,"") -> Intangible Historic
B170: =IF(ISTEXT('Assumptions and Free Cash Flow'!C176),'Assumptions and Free Cash Flow'!C176,"") -> Receivables Historic
B171: =IF(ISTEXT('Assumptions and Free Cash Flow'!C177),'Assumptions and Free Cash Flow'!C177,"") -> Inventory Historic
B172: =IF(ISTEXT('Assumptions and Free Cash Flow'!C178),'Assumptions and Free Cash Flow'!C178,"") -> Less: Payables Historic
B173: =IF(ISTEXT('Assumptions and Free Cash Flow'!C179),'Assumptions and Free Cash Flow'!C179,"") -> Less: Other Current Liabilities Histoic
B174: =IF(ISTEXT('Assumptions and Free Cash Flow'!C180),'Assumptions and Free Cash Flow'!C180,"") -> Add: Deferred Tax Historic
B175: =IF(ISTEXT('Assumptions and Free Cash Flow'!C181),'Assumptions and Free Cash Flow'!C181,"") -> Total Invested Capital Historic
B176: =IF(ISTEXT('Assumptions and Free Cash Flow'!C182),'Assumptions and Free Cash Flow'!C182,"") -> 
B177: =IF(ISTEXT('Assumptions and Free Cash Flow'!C183),'Assumptions and Free Cash Flow'!C183,"") -> EBIT
B178: =IF(ISTEXT('Assumptions and Free Cash Flow'!C184),'Assumptions and Free Cash Flow'!C184,"") -> Tax Rate
B179: =IF(ISTEXT('Assumptions and Free Cash Flow'!C185),'Assumptions and Free Cash Flow'!C185,"") -> Taxes on EBIT
B180: =IF(ISTEXT('Assumptions and Free Cash Flow'!C186),'Assumptions and Free Cash Flow'!C186,"") -> NOPAT
B181: =IF(ISTEXT('Assumptions and Free Cash Flow'!C187),'Assumptions and Free Cash Flow'!C187,"") -> 
B182: =IF(ISTEXT('Assumptions and Free Cash Flow'!C188),'Assumptions and Free Cash Flow'!C188,"") -> ROIC Historic and Projected
B183: =IF(ISTEXT('Assumptions and Free Cash Flow'!C189),'Assumptions and Free Cash Flow'!C189,"") -> 
B184: =IF(ISTEXT('Assumptions and Free Cash Flow'!C190),'Assumptions and Free Cash Flow'!C190,"") -> 
B185: =IF(ISTEXT('Assumptions and Free Cash Flow'!C191),'Assumptions and Free Cash Flow'!C191,"") -> 
B186: =IF(ISTEXT('Assumptions and Free Cash Flow'!C192),'Assumptions and Free Cash Flow'!C192,"") -> 
B187: =IF(ISTEXT('Assumptions and Free Cash Flow'!C193),'Assumptions and Free Cash Flow'!C193,"") -> 
B188: =IF(ISTEXT('Assumptions and Free Cash Flow'!C194),'Assumptions and Free Cash Flow'!C194,"") -> 
B189: =IF(ISTEXT('Assumptions and Free Cash Flow'!C195),'Assumptions and Free Cash Flow'!C195,"") -> 
B190: =IF(ISTEXT('Assumptions and Free Cash Flow'!C196),'Assumptions and Free Cash Flow'!C196,"") -> 
B191: =IF(ISTEXT('Assumptions and Free Cash Flow'!C197),'Assumptions and Free Cash Flow'!C197,"") -> 
B192: =IF(ISTEXT('Assumptions and Free Cash Flow'!C198),'Assumptions and Free Cash Flow'!C198,"") -> 
B193: =IF(ISTEXT('Assumptions and Free Cash Flow'!C199),'Assumptions and Free Cash Flow'!C199,"") -> 
B194: =IF(ISTEXT('Assumptions and Free Cash Flow'!C200),'Assumptions and Free Cash Flow'!C200,"") -> 
B195: =IF(ISTEXT('Assumptions and Free Cash Flow'!C201),'Assumptions and Free Cash Flow'!C201,"") -> 
B196: =IF(ISTEXT('Assumptions and Free Cash Flow'!C202),'Assumptions and Free Cash Flow'!C202,"") -> 
B197: =IF(ISTEXT('Assumptions and Free Cash Flow'!C203),'Assumptions and Free Cash Flow'!C203,"") -> 
B198: =IF(ISTEXT('Assumptions and Free Cash Flow'!C204),'Assumptions and Free Cash Flow'!C204,"") -> 
B199: =IF(ISTEXT('Assumptions and Free Cash Flow'!C205),'Assumptions and Free Cash Flow'!C205,"") -> 
B200: =IF(ISTEXT('Assumptions and Free Cash Flow'!C206),'Assumptions and Free Cash Flow'!C206,"") -> 
... 30 more rows
